Workbook

Sheet كشف المستحقات
A1: كشف مستحقات العاملين للفترة من 1/ 7/ 2021م وحتى 2021/7/31م
A2: م | B2: رقم الخزان | C2: رقم المالك | D2: اسم مالك الخزان | E2: المبلغ | F2: التوقيع أو البصمة
A3: 1 | B3: 1 | C3: 911-13583-1 | D3: زين احمد احمد | E3: 60000
A4: 2 | B4: 2 | C4: 911-13583-2 | D4: يحيى ناصر محمد | E4: 120000
A5: 3 | B5: 3 | C5: 911-13583-3 | D5: صلاح الدين ناصر محمد | E5: 86000
A6: 4 | B6: 4 | C6: 911-13583-4 | D6: لطيفه حسن علي ناصر | E6: 0
A7: 5 | B7: 5 | C7: 911-13583-5 | D7: جمال أحمد ثابت محمد | E7: 40000
A8: 6 | B8: 6 | C8: 911-13583-6 | D8: بدره أحمد ثابت محمد سعيد | E8: 40000
A9: 7 | B9: 7 | C9: 911-13583-7 | D9: ماجد ثابت عبد الله | E9: 100000
A10: 8 | B10: 8 | C10: 911-13583-8 | D10: رزيقه محمد حسين | E10: 0
A11: 9 | B11: 9 | C11: 911-13583-9 | D11: عادل علي محمد | E11: 120000
A12: 10 | B12: 10 | C12: 911-13583-10 | D12: عبدالملك محمد علي سعيد | E12: 120000
A13: 11 | B13: 11 | C13: 911-13583-11 | D13: كريمه حسن علي سعيد | E13: 60000
A14: 12 | B14: 12 | C14: 911-13583-12 | D14: محمد سعد سعيد | E14: 60000
A15: 13 | B15: 13 | C15: 911-13583-13 | D15: صالح محمد سعيد | E15: 120000
A16: 14 | B16: 14 | C16: 911-13583-14 | D16: عادل قائد ناجي | E16: 0
A17: 15 | B17: 15 | C17: 911-13583-15 | D17: محسن عبد الله حسن | E17: 60000
A18: 16 | B18: 16 | C18: 911-13583-16 | D18: فارس محمد سعد سعيد | E18: 60000
A19: 17 | B19: 17 | C19: 911-13583-17 | D19: أحمد ناصر عبد الله | E19: 0
A20: 18 | B20: 18 | C20: 911-13583-18 | D20: هيثم صالح صالح حسن | E20: 60000
A21: 19 | B21: 19 | C21: 911-13583-19 | D21: حفظ الله محمد سعيد | E21: 60000
A22: 20 | B22: 20 | C22: 911-13583-20 | D22: يحيى ثابت محمد سعيد | E22: 86000
A23: 21 | B23: 21 | C23: 911-13583-21 | D23: عبد الرحمن عبد الواحد محسن محمد | E23: 86000
A24: 22 | B24: 22 | C24: 911-13583-22 | D24: عزالدين محمد محمد سعيد | E24: 60000
A25: 23 | B25: 23 | C25: 911-13583-23 | D25: حمود عبده ناجي حسن | E25: 160000
A26: 24 | B26: 24 | C26: 911-13583-24 | D26: محمد عبده ناجي | E26: 120000
A27: 25 | B27: 25 | C27: 911-13583-25 | D27: صادق علي ناصر العنسي | E27: 60000
A28: 26 | B28: 26 | C28: 911-13583-26 | D28: ضيف الله علي ناجي حسن | E28: 0
A29: 27 | B29: 27 | C29: 911-13583-27 | D29: امير سعد ناجي حسن | E29: 86000
A30: 28 | B30: 28 | C30: 911-13583-28 | D30: محمد مسعد ناجي حسن | E30: 40000
A31: 29 | B31: 29 | C31: 911-13583-29 | D31: رشاد احمد صالح حسن | E31: 0
A32: 30 | B32: 30 | C32: 911-13583-30 | D32: الشرفي علي ناجي سعيد | E32: 120000
A33: 31 | B33: 31 | C33: 911-13583-31 | D33: علي علي محمد ناصر | E33: 60000
A34: 32 | B34: 32 | C34: 911-13583-32 | D34: صادق علي محمد سعيد ناصر | E34: 60000
A35: 33 | B35: 33 | C35: 911-13583-33 | D35: محمد علي محمد سعيد | E35: 60000
A36: 34 | B36: 34 | C36: 911-13583-34 | D36: محي الدين محمد محمد | E36: 60000
A37: 35 | B37: 35 | C37: 911-13583-35 | D37: علي محمد سعيد | E37: 60000
A38: 36 | B38: 36 | C38: 911-13583-36 | D38: محمد محسن ناجي | E38: 0
A39: 37 | B39: 37 | C39: 911-13583-37 | D39: مراد مجاهد على محمد | E39: 120000
A40: 38 | B40: 38 | C40: 911-13583-38 | D40: حفظ الله صالح محمد صالح | E40: 120000
A41: 39 | B41: 39 | C41: 911-13583-39 | D41: عبد الله سعد حسن علي | E41: 146000
A42: 40 | B42: 40 | C42: 911-13583-40 | D42: تقوى محمد أحمد | E42: 0
A43: 41 | B43: 41 | C43: 911-13583-41 | D43: عبد الله محمد سعيد | E43: 0
A44: 42 | B44: 42 | C44: 911-13583-42 | D44: علي صالح محمد سعيد أحمد | E44: 0
A45: 43 | B45: 43 | C45: 911-13583-43 | D45: محمد صالح محمد سعيد | E45: 60000
A46: 44 | B46: 44 | C46: 911-13583-44 | D46: عبده علي محمد | E46: 60000
A47: 45 | B47: 45 | C47: 911-13583-45 | D47: ابراهيم يحيى علي سعيد | E47: 60000
A48: 46 | B48: 46 | C48: 911-13583-46 | D48: حميد عبده ناجي حسن | E48: 60000
A49: 47 | B49: 47 | C49: 911-13583-47 | D49: مراد ناجي أحمد غالب علي | E49: 146000
A50: 48 | B50: 48 | C50: 911-13583-48 | D50: صدام ناجي أحمد غالب | E50: 86000
A51: 49 | B51: 49 | C51: 911-13583-49 | D51: عبده ناجي أحمد | E51: 146000
A52: 50 | B52: 50 | C52: 911-13583-50 | D52: خليل محمد صالح أحمد | E52: 60000
A53: 51 | B53: 51 | C53: 911-13583-51 | D53: عبده محمد صالح أحمد | E53: 86000
A54: 52 | B54: 52 | C54: 911-13583-52 | D54: علي ناجي أحمد | E54: 60000
A55: 53 | B55: 53 | C55: 911-13583-53 | D55: رمزي محمد صالح أحمد | E55: 60000
A56: 54 | B56: 54 | C56: 911-13583-54 | D56: مديره محمد ناجي | E56: 86000
A57: 55 | B57: 55 | C57: 911-13583-55 | D57: كاتبه عبد الله محمد | E57: 60000
A58: 56 | B58: 56 | C58: 911-13583-56 | D58: عمار محمد صالح | E58: 146000
A59: 57 | B59: 57 | C59: 911-13583-57 | D59: مبروك محمد صالح علي | E59: 120000
A60: 58 | B60: 58 | C60: 911-13583-58 | D60: عدنان صالح صالح حسن | E60: 74000
A61: 59 | B61: 59 | C61: 911-13583-59 | D61: عبد الحكيم محسن علي صالح | E61: 0
A62: 60 | B62: 60 | C62: 911-13583-60 | D62: سعد عبدالله حسن | E62: 0
A63: 61 | B63: 61 | C63: 911-13583-61 | D63: محمد ناصر محمد | E63: 0
A64: 62 | B64: 62 | C64: 911-13583-62 | D64: اكرم علي غالب | E64: 60000
A65: 63 | B65: 63 | C65: 911-13583-63 | D65: محمد غالب محمد | E65: 60000
A66: 64 | B66: 64 | C66: 911-13583-64 | D66: فؤاد محمد غالب محمد | E66: 60000
A67: 65 | B67: 65 | C67: 911-13583-65 | D67: علي أحمد غالب | E67: 60000
A68: 66 | B68: 66 | C68: 911-13583-66 | D68: فاطمه سعد احمد احمد | E68: 60000
A69: 67 | B69: 67 | C69: 911-13583-67 | D69: زيد محمد علي صالح | E69: 60000
A70: 68 | B70: 68 | C70: 911-13583-68 | D70: علي غالب محمد | E70: 86000
A71: 69 | B71: 69 | C71: 911-13583-69 | D71: محمد علي غالب محمد | E71: 60000
A72: 70 | B72: 70 | C72: 911-13583-70 | D72: حمود مسعد محمد | E72: 120000
A73: 71 | B73: 71 | C73: 911-13583-71 | D73: سعد أحمد سعيد | E73: 56000
A74: 72 | B74: 72 | C74: 911-13583-72 | D74: خالد أحمد سعيد | E74: 86000
A75: 73 | B75: 73 | C75: 911-13583-73 | D75: علي سعد ناجي | E75: 120000
A76: 74 | B76: 74 | C76: 911-13583-74 | D76: أحمد علي سعد | E76: 120000
A77: 75 | B77: 75 | C77: 911-13583-75 | D77: امل علي سعد ناجي | E77: 160000
A78: 76 | B78: 76 | C78: 911-13583-76 | D78: جمال جميل مسعد محمد | E78: 0
A79: 77 | B79: 77 | C79: 911-13583-77 | D79: مراد علي غالب محمد | E79: 120000
A80: 78 | B80: 78 | C80: 911-13583-78 | D80: عبد الكريم غالب قايد | E80: 120000
A81: 79 | B81: 79 | C81: 911-13583-79 | D81: لطف غالب قايد | E81: 120000
A82: 80 | B82: 80 | C82: 911-13583-80 | D82: عبدالخالق محمد علي علي | E82: 120000
A83: 81 | B83: 81 | C83: 911-13583-81 | D83: عبده علي أحمد عبدالله | E83: 120000
A84: 82 | B84: 82 | C84: 911-13583-82 | D84: مثير غالب قايد محمد | E84: 134000
A85: 83 | B85: 83 | C85: 911-13583-83 | D85: محي الدين محمد أحمد | E85: 120000
A86: 84 | B86: 84 | C86: 911-13583-84 | D86: عبدالسلام محمد أحمد | E86: 134000
A87: 85 | B87: 85 | C87: 911-13583-85 | D87: م. محمد عبد الله عبد الجبار | E87: 136255
A88: 86 | B88: 86 | C88: 911-13583-86 | D88: م.علوي عبده محمد علي | E88: 136255
A117: الإجمالي العام | E117: =SUM(E3:E88) -> 6468510

Sheet كشف المستحقات -النتيجة المطلوبة
A1: كشف مستحقات العاملين للفترة من 1/ 7/ 2021م وحتى 2021/7/31م | I1: =MAX('كشف المستحقات'!A1:A30028) -> 86
A2: م | B2: رقم الخزان | C2: رقم المالك | D2: اسم مالك الخزان | E2: المبلغ | F2: التوقيع أو البصمة
A3: 1 | B3: =IFERROR(VLOOKUP(A3,'كشف المستحقات'!A$3:F$628,2,FALSE),"") -> 1 | C3: =IFERROR(VLOOKUP(A3,'كشف المستحقات'!A$3:F$628,3,FALSE),"") -> 911-13583-1 | D3: =IFERROR(VLOOKUP(A3,'كشف المستحقات'!A$3:F$628,4,FALSE),"") -> زين احمد احمد | E3: =IFERROR(VLOOKUP(A3,'كشف المستحقات'!A$3:F$628,5,FALSE),"") -> 60000
A4: 2 | B4: =IFERROR(VLOOKUP(A4,'كشف المستحقات'!A$3:F$628,2,FALSE),"") -> 2 | C4: =IFERROR(VLOOKUP(A4,'كشف المستحقات'!A$3:F$628,3,FALSE),"") -> 911-13583-2 | D4: =IFERROR(VLOOKUP(A4,'كشف المستحقات'!A$3:F$628,4,FALSE),"") -> يحيى ناصر محمد | E4: =IFERROR(VLOOKUP(A4,'كشف المستحقات'!A$3:F$628,5,FALSE),"") -> 120000
A5: 3 | B5: =IFERROR(VLOOKUP(A5,'كشف المستحقات'!A$3:F$628,2,FALSE),"") -> 3 | C5: =IFERROR(VLOOKUP(A5,'كشف المستحقات'!A$3:F$628,3,FALSE),"") -> 911-13583-3 | D5: =IFERROR(VLOOKUP(A5,'كشف المستحقات'!A$3:F$628,4,FALSE),"") -> صلاح الدين ناصر محمد | E5: =IFERROR(VLOOKUP(A5,'كشف المستحقات'!A$3:F$628,5,FALSE),"") -> 86000
A6: 4 | B6: =IFERROR(VLOOKUP(A6,'كشف المستحقات'!A$3:F$628,2,FALSE),"") -> 4 | C6: =IFERROR(VLOOKUP(A6,'كشف المستحقات'!A$3:F$628,3,FALSE),"") -> 911-13583-4 | D6: =IFERROR(VLOOKUP(A6,'كشف المستحقات'!A$3:F$628,4,FALSE),"") -> لطيفه حسن علي ناصر | E6: =IFERROR(VLOOKUP(A6,'كشف المستحقات'!A$3:F$628,5,FALSE),"") -> 0
A7: 5 | B7: =IFERROR(VLOOKUP(A7,'كشف المستحقات'!A$3:F$628,2,FALSE),"") -> 5 | C7: =IFERROR(VLOOKUP(A7,'كشف المستحقات'!A$3:F$628,3,FALSE),"") -> 911-13583-5 | D7: =IFERROR(VLOOKUP(A7,'كشف المستحقات'!A$3:F$628,4,FALSE),"") -> جمال أحمد ثابت محمد | E7: =IFERROR(VLOOKUP(A7,'كشف المستحقات'!A$3:F$628,5,FALSE),"") -> 40000
A8: 6 | B8: =IFERROR(VLOOKUP(A8,'كشف المستحقات'!A$3:F$628,2,FALSE),"") -> 6 | C8: =IFERROR(VLOOKUP(A8,'كشف المستحقات'!A$3:F$628,3,FALSE),"") -> 911-13583-6 | D8: =IFERROR(VLOOKUP(A8,'كشف المستحقات'!A$3:F$628,4,FALSE),"") -> بدره أحمد ثابت محمد سعيد | E8: =IFERROR(VLOOKUP(A8,'كشف المستحقات'!A$3:F$628,5,FALSE),"") -> 40000
A9: 7 | B9: =IFERROR(VLOOKUP(A9,'كشف المستحقات'!A$3:F$628,2,FALSE),"") -> 7 | C9: =IFERROR(VLOOKUP(A9,'كشف المستحقات'!A$3:F$628,3,FALSE),"") -> 911-13583-7 | D9: =IFERROR(VLOOKUP(A9,'كشف المستحقات'!A$3:F$628,4,FALSE),"") -> ماجد ثابت عبد الله | E9: =IFERROR(VLOOKUP(A9,'كشف المستحقات'!A$3:F$628,5,FALSE),"") -> 100000
A10: 8 | B10: =IFERROR(VLOOKUP(A10,'كشف المستحقات'!A$3:F$628,2,FALSE),"") -> 8 | C10: =IFERROR(VLOOKUP(A10,'كشف المستحقات'!A$3:F$628,3,FALSE),"") -> 911-13583-8 | D10: =IFERROR(VLOOKUP(A10,'كشف المستحقات'!A$3:F$628,4,FALSE),"") -> رزيقه محمد حسين | E10: =IFERROR(VLOOKUP(A10,'كشف المستحقات'!A$3:F$628,5,FALSE),"") -> 0
A11: 9 | B11: =IFERROR(VLOOKUP(A11,'كشف المستحقات'!A$3:F$628,2,FALSE),"") -> 9 | C11: =IFERROR(VLOOKUP(A11,'كشف المستحقات'!A$3:F$628,3,FALSE),"") -> 911-13583-9 | D11: =IFERROR(VLOOKUP(A11,'كشف المستحقات'!A$3:F$628,4,FALSE),"") -> عادل علي محمد | E11: =IFERROR(VLOOKUP(A11,'كشف المستحقات'!A$3:F$628,5,FALSE),"") -> 120000
A12: 10 | B12: =IFERROR(VLOOKUP(A12,'كشف المستحقات'!A$3:F$628,2,FALSE),"") -> 10 | C12: =IFERROR(VLOOKUP(A12,'كشف المستحقات'!A$3:F$628,3,FALSE),"") -> 911-13583-10 | D12: =IFERROR(VLOOKUP(A12,'كشف المستحقات'!A$3:F$628,4,FALSE),"") -> عبدالملك محمد علي سعيد | E12: =IFERROR(VLOOKUP(A12,'كشف المستحقات'!A$3:F$628,5,FALSE),"") -> 120000
A13: 11 | B13: =IFERROR(VLOOKUP(A13,'كشف المستحقات'!A$3:F$628,2,FALSE),"") -> 11 | C13: =IFERROR(VLOOKUP(A13,'كشف المستحقات'!A$3:F$628,3,FALSE),"") -> 911-13583-11 | D13: =IFERROR(VLOOKUP(A13,'كشف المستحقات'!A$3:F$628,4,FALSE),"") -> كريمه حسن علي سعيد | E13: =IFERROR(VLOOKUP(A13,'كشف المستحقات'!A$3:F$628,5,FALSE),"") -> 60000 | G13: =SUM(E3:E13) -> 746000
A14: جملة الصفحة الحالية | E14: =SUM(E3:E13) -> 746000
A17: إجمالي ما قبله | E17: =E14 -> 746000
A18: 12 | B18: =IFERROR(VLOOKUP(A18,'كشف المستحقات'!A$3:F$628,2,FALSE),"") -> 12 | C18: =IFERROR(VLOOKUP(A18,'كشف المستحقات'!A$3:F$628,3,FALSE),"") -> 911-13583-12 | D18: =IFERROR(VLOOKUP(A18,'كشف المستحقات'!A$3:F$628,4,FALSE),"") -> محمد سعد سعيد | E18: =IFERROR(VLOOKUP(A18,'كشف المستحقات'!A$3:F$628,5,FALSE),"") -> 60000
A19: =A18+1 -> 13 | B19: =IFERROR(VLOOKUP(A19,'كشف المستحقات'!A$3:F$628,2,FALSE),"") -> 13 | C19: =IFERROR(VLOOKUP(A19,'كشف المستحقات'!A$3:F$628,3,FALSE),"") -> 911-13583-13 | D19: =IFERROR(VLOOKUP(A19,'كشف المستحقات'!A$3:F$628,4,FALSE),"") -> صالح محمد سعيد | E19: =IFERROR(VLOOKUP(A19,'كشف المستحقات'!A$3:F$628,5,FALSE),"") -> 120000
A20: =A19+1 -> 14 | B20: =IFERROR(VLOOKUP(A20,'كشف المستحقات'!A$3:F$628,2,FALSE),"") -> 14 | C20: =IFERROR(VLOOKUP(A20,'كشف المستحقات'!A$3:F$628,3,FALSE),"") -> 911-13583-14 | D20: =IFERROR(VLOOKUP(A20,'كشف المستحقات'!A$3:F$628,4,FALSE),"") -> عادل قائد ناجي | E20: =IFERROR(VLOOKUP(A20,'كشف المستحقات'!A$3:F$628,5,FALSE),"") -> 0
A21: 15 | B21: =IFERROR(VLOOKUP(A21,'كشف المستحقات'!A$3:F$628,2,FALSE),"") -> 15 | C21: =IFERROR(VLOOKUP(A21,'كشف المستحقات'!A$3:F$628,3,FALSE),"") -> 911-13583-15 | D21: =IFERROR(VLOOKUP(A21,'كشف المستحقات'!A$3:F$628,4,FALSE),"") -> محسن عبد الله حسن | E21: =IFERROR(VLOOKUP(A21,'كشف المستحقات'!A$3:F$628,5,FALSE),"") -> 60000
A22: 16 | B22: =IFERROR(VLOOKUP(A22,'كشف المستحقات'!A$3:F$628,2,FALSE),"") -> 16 | C22: =IFERROR(VLOOKUP(A22,'كشف المستحقات'!A$3:F$628,3,FALSE),"") -> 911-13583-16 | D22: =IFERROR(VLOOKUP(A22,'كشف المستحقات'!A$3:F$628,4,FALSE),"") -> فارس محمد سعد سعيد | E22: =IFERROR(VLOOKUP(A22,'كشف المستحقات'!A$3:F$628,5,FALSE),"") -> 60000
A23: 17 | B23: =IFERROR(VLOOKUP(A23,'كشف المستحقات'!A$3:F$628,2,FALSE),"") -> 17 | C23: =IFERROR(VLOOKUP(A23,'كشف المستحقات'!A$3:F$628,3,FALSE),"") -> 911-13583-17 | D23: =IFERROR(VLOOKUP(A23,'كشف المستحقات'!A$3:F$628,4,FALSE),"") -> أحمد ناصر عبد الله | E23: =IFERROR(VLOOKUP(A23,'كشف المستحقات'!A$3:F$628,5,FALSE),"") -> 0
A24: 18 | B24: =IFERROR(VLOOKUP(A24,'كشف المستحقات'!A$3:F$628,2,FALSE),"") -> 18 | C24: =IFERROR(VLOOKUP(A24,'كشف المستحقات'!A$3:F$628,3,FALSE),"") -> 911-13583-18 | D24: =IFERROR(VLOOKUP(A24,'كشف المستحقات'!A$3:F$628,4,FALSE),"") -> هيثم صالح صالح حسن | E24: =IFERROR(VLOOKUP(A24,'كشف المستحقات'!A$3:F$628,5,FALSE),"") -> 60000
A25: 19 | B25: =IFERROR(VLOOKUP(A25,'كشف المستحقات'!A$3:F$628,2,FALSE),"") -> 19 | C25: =IFERROR(VLOOKUP(A25,'كشف المستحقات'!A$3:F$628,3,FALSE),"") -> 911-13583-19 | D25: =IFERROR(VLOOKUP(A25,'كشف المستحقات'!A$3:F$628,4,FALSE),"") -> حفظ الله محمد سعيد | E25: =IFERROR(VLOOKUP(A25,'كشف المستحقات'!A$3:F$628,5,FALSE),"") -> 60000
A26: 20 | B26: =IFERROR(VLOOKUP(A26,'كشف المستحقات'!A$3:F$628,2,FALSE),"") -> 20 | C26: =IFERROR(VLOOKUP(A26,'كشف المستحقات'!A$3:F$628,3,FALSE),"") -> 911-13583-20 | D26: =IFERROR(VLOOKUP(A26,'كشف المستحقات'!A$3:F$628,4,FALSE),"") -> يحيى ثابت محمد سعيد | E26: =IFERROR(VLOOKUP(A26,'كشف المستحقات'!A$3:F$628,5,FALSE),"") -> 86000
A27: 21 | B27: =IFERROR(VLOOKUP(A27,'كشف المستحقات'!A$3:F$628,2,FALSE),"") -> 21 | C27: =IFERROR(VLOOKUP(A27,'كشف المستحقات'!A$3:F$628,3,FALSE),"") -> 911-13583-21 | D27: =IFERROR(VLOOKUP(A27,'كشف المستحقات'!A$3:F$628,4,FALSE),"") -> عبد الرحمن عبد الواحد محسن محمد | E27: =IFERROR(VLOOKUP(A27,'كشف المستحقات'!A$3:F$628,5,FALSE),"") -> 86000
A28: 22 | B28: =IFERROR(VLOOKUP(A28,'كشف المستحقات'!A$3:F$628,2,FALSE),"") -> 22 | C28: =IFERROR(VLOOKUP(A28,'كشف المستحقات'!A$3:F$628,3,FALSE),"") -> 911-13583-22 | D28: =IFERROR(VLOOKUP(A28,'كشف المستحقات'!A$3:F$628,4,FALSE),"") -> عزالدين محمد محمد سعيد | E28: =IFERROR(VLOOKUP(A28,'كشف المستحقات'!A$3:F$628,5,FALSE),"") -> 60000 | G28: =SUM(E18:E28) -> 652000
A29: جملة الصفحة الحالية | E29: =SUM(E17:E28) -> 1398000
A32: إجمالي ما قبله | E32: =E29 -> 1398000
A33: 23 | B33: =IFERROR(VLOOKUP(A33,'كشف المستحقات'!A$3:F$628,2,FALSE),"") -> 23 | C33: =IFERROR(VLOOKUP(A33,'كشف المستحقات'!A$3:F$628,3,FALSE),"") -> 911-13583-23 | D33: =IFERROR(VLOOKUP(A33,'كشف المستحقات'!A$3:F$628,4,FALSE),"") -> حمود عبده ناجي حسن | E33: =IFERROR(VLOOKUP(A33,'كشف المستحقات'!A$3:F$628,5,FALSE),"") -> 160000
A34: =A33+1 -> 24 | B34: =IFERROR(VLOOKUP(A34,'كشف المستحقات'!A$3:F$628,2,FALSE),"") -> 24 | C34: =IFERROR(VLOOKUP(A34,'كشف المستحقات'!A$3:F$628,3,FALSE),"") -> 911-13583-24 | D34: =IFERROR(VLOOKUP(A34,'كشف المستحقات'!A$3:F$628,4,FALSE),"") -> محمد عبده ناجي | E34: =IFERROR(VLOOKUP(A34,'كشف المستحقات'!A$3:F$628,5,FALSE),"") -> 120000
A35: =A34+1 -> 25 | B35: =IFERROR(VLOOKUP(A35,'كشف المستحقات'!A$3:F$628,2,FALSE),"") -> 25 | C35: =IFERROR(VLOOKUP(A35,'كشف المستحقات'!A$3:F$628,3,FALSE),"") -> 911-13583-25 | D35: =IFERROR(VLOOKUP(A35,'كشف المستحقات'!A$3:F$628,4,FALSE),"") -> صادق علي ناصر العنسي | E35: =IFERROR(VLOOKUP(A35,'كشف المستحقات'!A$3:F$628,5,FALSE),"") -> 60000
A36: 26 | B36: =IFERROR(VLOOKUP(A36,'كشف المستحقات'!A$3:F$628,2,FALSE),"") -> 26 | C36: =IFERROR(VLOOKUP(A36,'كشف المستحقات'!A$3:F$628,3,FALSE),"") -> 911-13583-26 | D36: =IFERROR(VLOOKUP(A36,'كشف المستحقات'!A$3:F$628,4,FALSE),"") -> ضيف الله علي ناجي حسن | E36: =IFERROR(VLOOKUP(A36,'كشف المستحقات'!A$3:F$628,5,FALSE),"") -> 0
A37: 27 | B37: =IFERROR(VLOOKUP(A37,'كشف المستحقات'!A$3:F$628,2,FALSE),"") -> 27 | C37: =IFERROR(VLOOKUP(A37,'كشف المستحقات'!A$3:F$628,3,FALSE),"") -> 911-13583-27 | D37: =IFERROR(VLOOKUP(A37,'كشف المستحقات'!A$3:F$628,4,FALSE),"") -> امير سعد ناجي حسن | E37: =IFERROR(VLOOKUP(A37,'كشف المستحقات'!A$3:F$628,5,FALSE),"") -> 86000
A38: 28 | B38: =IFERROR(VLOOKUP(A38,'كشف المستحقات'!A$3:F$628,2,FALSE),"") -> 28 | C38: =IFERROR(VLOOKUP(A38,'كشف المستحقات'!A$3:F$628,3,FALSE),"") -> 911-13583-28 | D38: =IFERROR(VLOOKUP(A38,'كشف المستحقات'!A$3:F$628,4,FALSE),"") -> محمد مسعد ناجي حسن | E38: =IFERROR(VLOOKUP(A38,'كشف المستحقات'!A$3:F$628,5,FALSE),"") -> 40000
A39: 29 | B39: =IFERROR(VLOOKUP(A39,'كشف المستحقات'!A$3:F$628,2,FALSE),"") -> 29 | C39: =IFERROR(VLOOKUP(A39,'كشف المستحقات'!A$3:F$628,3,FALSE),"") -> 911-13583-29 | D39: =IFERROR(VLOOKUP(A39,'كشف المستحقات'!A$3:F$628,4,FALSE),"") -> رشاد احمد صالح حسن | E39: =IFERROR(VLOOKUP(A39,'كشف المستحقات'!A$3:F$628,5,FALSE),"") -> 0
A40: 30 | B40: =IFERROR(VLOOKUP(A40,'كشف المستحقات'!A$3:F$628,2,FALSE),"") -> 30 | C40: =IFERROR(VLOOKUP(A40,'كشف المستحقات'!A$3:F$628,3,FALSE),"") -> 911-13583-30 | D40: =IFERROR(VLOOKUP(A40,'كشف المستحقات'!A$3:F$628,4,FALSE),"") -> الشرفي علي ناجي سعيد | E40: =IFERROR(VLOOKUP(A40,'كشف المستحقات'!A$3:F$628,5,FALSE),"") -> 120000
A41: 31 | B41: =IFERROR(VLOOKUP(A41,'كشف المستحقات'!A$3:F$628,2,FALSE),"") -> 31 | C41: =IFERROR(VLOOKUP(A41,'كشف المستحقات'!A$3:F$628,3,FALSE),"") -> 911-13583-31 | D41: =IFERROR(VLOOKUP(A41,'كشف المستحقات'!A$3:F$628,4,FALSE),"") -> علي علي محمد ناصر | E41: =IFERROR(VLOOKUP(A41,'كشف المستحقات'!A$3:F$628,5,FALSE),"") -> 60000
A42: 32 | B42: =IFERROR(VLOOKUP(A42,'كشف المستحقات'!A$3:F$628,2,FALSE),"") -> 32 | C42: =IFERROR(VLOOKUP(A42,'كشف المستحقات'!A$3:F$628,3,FALSE),"") -> 911-13583-32 | D42: =IFERROR(VLOOKUP(A42,'كشف المستحقات'!A$3:F$628,4,FALSE),"") -> صادق علي محمد سعيد ناصر | E42: =IFERROR(VLOOKUP(A42,'كشف المستحقات'!A$3:F$628,5,FALSE),"") -> 60000
A43: 33 | B43: =IFERROR(VLOOKUP(A43,'كشف المستحقات'!A$3:F$628,2,FALSE),"") -> 33 | C43: =IFERROR(VLOOKUP(A43,'كشف المستحقات'!A$3:F$628,3,FALSE),"") -> 911-13583-33 | D43: =IFERROR(VLOOKUP(A43,'كشف المستحقات'!A$3:F$628,4,FALSE),"") -> محمد علي محمد سعيد | E43: =IFERROR(VLOOKUP(A43,'كشف المستحقات'!A$3:F$628,5,FALSE),"") -> 60000 | G43: =SUM(E33:E43) -> 766000
A44: جملة الصفحة الحالية | E44: =SUM(E32:E43) -> 2164000
A47: إجمالي ما قبله | E47: =E44 -> 2164000
A48: 34 | B48: =IFERROR(VLOOKUP(A48,'كشف المستحقات'!A$3:F$628,2,FALSE),"") -> 34 | C48: =IFERROR(VLOOKUP(A48,'كشف المستحقات'!A$3:F$628,3,FALSE),"") -> 911-13583-34 | D48: =IFERROR(VLOOKUP(A48,'كشف المستحقات'!A$3:F$628,4,FALSE),"") -> محي الدين محمد محمد | E48: =IFERROR(VLOOKUP(A48,'كشف المستحقات'!A$3:F$628,5,FALSE),"") -> 60000
A49: =A48+1 -> 35 | B49: =IFERROR(VLOOKUP(A49,'كشف المستحقات'!A$3:F$628,2,FALSE),"") -> 35 | C49: =IFERROR(VLOOKUP(A49,'كشف المستحقات'!A$3:F$628,3,FALSE),"") -> 911-13583-35 | D49: =IFERROR(VLOOKUP(A49,'كشف المستحقات'!A$3:F$628,4,FALSE),"") -> علي محمد سعيد | E49: =IFERROR(VLOOKUP(A49,'كشف المستحقات'!A$3:F$628,5,FALSE),"") -> 60000
A50: =A49+1 -> 36 | B50: =IFERROR(VLOOKUP(A50,'كشف المستحقات'!A$3:F$628,2,FALSE),"") -> 36 | C50: =IFERROR(VLOOKUP(A50,'كشف المستحقات'!A$3:F$628,3,FALSE),"") -> 911-13583-36 | D50: =IFERROR(VLOOKUP(A50,'كشف المستحقات'!A$3:F$628,4,FALSE),"") -> محمد محسن ناجي | E50: =IFERROR(VLOOKUP(A50,'كشف المستحقات'!A$3:F$628,5,FALSE),"") -> 0
A51: 37 | B51: =IFERROR(VLOOKUP(A51,'كشف المستحقات'!A$3:F$628,2,FALSE),"") -> 37 | C51: =IFERROR(VLOOKUP(A51,'كشف المستحقات'!A$3:F$628,3,FALSE),"") -> 911-13583-37 | D51: =IFERROR(VLOOKUP(A51,'كشف المستحقات'!A$3:F$628,4,FALSE),"") -> مراد مجاهد على محمد | E51: =IFERROR(VLOOKUP(A51,'كشف المستحقات'!A$3:F$628,5,FALSE),"") -> 120000
A52: 38 | B52: =IFERROR(VLOOKUP(A52,'كشف المستحقات'!A$3:F$628,2,FALSE),"") -> 38 | C52: =IFERROR(VLOOKUP(A52,'كشف المستحقات'!A$3:F$628,3,FALSE),"") -> 911-13583-38 | D52: =IFERROR(VLOOKUP(A52,'كشف المستحقات'!A$3:F$628,4,FALSE),"") -> حفظ الله صالح محمد صالح | E52: =IFERROR(VLOOKUP(A52,'كشف المستحقات'!A$3:F$628,5,FALSE),"") -> 120000
A53: 39 | B53: =IFERROR(VLOOKUP(A53,'كشف المستحقات'!A$3:F$628,2,FALSE),"") -> 39 | C53: =IFERROR(VLOOKUP(A53,'كشف المستحقات'!A$3:F$628,3,FALSE),"") -> 911-13583-39 | D53: =IFERROR(VLOOKUP(A53,'كشف المستحقات'!A$3:F$628,4,FALSE),"") -> عبد الله سعد حسن علي | E53: =IFERROR(VLOOKUP(A53,'كشف المستحقات'!A$3:F$628,5,FALSE),"") -> 146000
A54: 40 | B54: =IFERROR(VLOOKUP(A54,'كشف المستحقات'!A$3:F$628,2,FALSE),"") -> 40 | C54: =IFERROR(VLOOKUP(A54,'كشف المستحقات'!A$3:F$628,3,FALSE),"") -> 911-13583-40 | D54: =IFERROR(VLOOKUP(A54,'كشف المستحقات'!A$3:F$628,4,FALSE),"") -> تقوى محمد أحمد | E54: =IFERROR(VLOOKUP(A54,'كشف المستحقات'!A$3:F$628,5,FALSE),"") -> 0
A55: 41 | B55: =IFERROR(VLOOKUP(A55,'كشف المستحقات'!A$3:F$628,2,FALSE),"") -> 41 | C55: =IFERROR(VLOOKUP(A55,'كشف المستحقات'!A$3:F$628,3,FALSE),"") -> 911-13583-41 | D55: =IFERROR(VLOOKUP(A55,'كشف المستحقات'!A$3:F$628,4,FALSE),"") -> عبد الله محمد سعيد | E55: =IFERROR(VLOOKUP(A55,'كشف المستحقات'!A$3:F$628,5,FALSE),"") -> 0
A56: 42 | B56: =IFERROR(VLOOKUP(A56,'كشف المستحقات'!A$3:F$628,2,FALSE),"") -> 42 | C56: =IFERROR(VLOOKUP(A56,'كشف المستحقات'!A$3:F$628,3,FALSE),"") -> 911-13583-42 | D56: =IFERROR(VLOOKUP(A56,'كشف المستحقات'!A$3:F$628,4,FALSE),"") -> علي صالح محمد سعيد أحمد | E56: =IFERROR(VLOOKUP(A56,'كشف المستحقات'!A$3:F$628,5,FALSE),"") -> 0
A57: 43 | B57: =IFERROR(VLOOKUP(A57,'كشف المستحقات'!A$3:F$628,2,FALSE),"") -> 43 | C57: =IFERROR(VLOOKUP(A57,'كشف المستحقات'!A$3:F$628,3,FALSE),"") -> 911-13583-43 | D57: =IFERROR(VLOOKUP(A57,'كشف المستحقات'!A$3:F$628,4,FALSE),"") -> محمد صالح محمد سعيد | E57: =IFERROR(VLOOKUP(A57,'كشف المستحقات'!A$3:F$628,5,FALSE),"") -> 60000
A58: 44 | B58: =IFERROR(VLOOKUP(A58,'كشف المستحقات'!A$3:F$628,2,FALSE),"") -> 44 | C58: =IFERROR(VLOOKUP(A58,'كشف المستحقات'!A$3:F$628,3,FALSE),"") -> 911-13583-44 | D58: =IFERROR(VLOOKUP(A58,'كشف المستحقات'!A$3:F$628,4,FALSE),"") -> عبده علي محمد | E58: =IFERROR(VLOOKUP(A58,'كشف المستحقات'!A$3:F$628,5,FALSE),"") -> 60000 | G58: =SUM(E48:E58) -> 626000
A59: جملة الصفحة الحالية | E59: =SUM(E47:E58) -> 2790000
A62: إجمالي ما قبله | E62: =E59 -> 2790000
A63: 45 | B63: =IFERROR(VLOOKUP(A63,'كشف المستحقات'!A$3:F$628,2,FALSE),"") -> 45 | C63: =IFERROR(VLOOKUP(A63,'كشف المستحقات'!A$3:F$628,3,FALSE),"") -> 911-13583-45 | D63: =IFERROR(VLOOKUP(A63,'كشف المستحقات'!A$3:F$628,4,FALSE),"") -> ابراهيم يحيى علي سعيد | E63: =IFERROR(VLOOKUP(A63,'كشف المستحقات'!A$3:F$628,5,FALSE),"") -> 60000
A64: =A63+1 -> 46 | B64: =IFERROR(VLOOKUP(A64,'كشف المستحقات'!A$3:F$628,2,FALSE),"") -> 46 | C64: =IFERROR(VLOOKUP(A64,'كشف المستحقات'!A$3:F$628,3,FALSE),"") -> 911-13583-46 | D64: =IFERROR(VLOOKUP(A64,'كشف المستحقات'!A$3:F$628,4,FALSE),"") -> حميد عبده ناجي حسن | E64: =IFERROR(VLOOKUP(A64,'كشف المستحقات'!A$3:F$628,5,FALSE),"") -> 60000
A65: =A64+1 -> 47 | B65: =IFERROR(VLOOKUP(A65,'كشف المستحقات'!A$3:F$628,2,FALSE),"") -> 47 | C65: =IFERROR(VLOOKUP(A65,'كشف المستحقات'!A$3:F$628,3,FALSE),"") -> 911-13583-47 | D65: =IFERROR(VLOOKUP(A65,'كشف المستحقات'!A$3:F$628,4,FALSE),"") -> مراد ناجي أحمد غالب علي | E65: =IFERROR(VLOOKUP(A65,'كشف المستحقات'!A$3:F$628,5,FALSE),"") -> 146000
A66: 48 | B66: =IFERROR(VLOOKUP(A66,'كشف المستحقات'!A$3:F$628,2,FALSE),"") -> 48 | C66: =IFERROR(VLOOKUP(A66,'كشف المستحقات'!A$3:F$628,3,FALSE),"") -> 911-13583-48 | D66: =IFERROR(VLOOKUP(A66,'كشف المستحقات'!A$3:F$628,4,FALSE),"") -> صدام ناجي أحمد غالب | E66: =IFERROR(VLOOKUP(A66,'كشف المستحقات'!A$3:F$628,5,FALSE),"") -> 86000
A67: 49 | B67: =IFERROR(VLOOKUP(A67,'كشف المستحقات'!A$3:F$628,2,FALSE),"") -> 49 | C67: =IFERROR(VLOOKUP(A67,'كشف المستحقات'!A$3:F$628,3,FALSE),"") -> 911-13583-49 | D67: =IFERROR(VLOOKUP(A67,'كشف المستحقات'!A$3:F$628,4,FALSE),"") -> عبده ناجي أحمد | E67: =IFERROR(VLOOKUP(A67,'كشف المستحقات'!A$3:F$628,5,FALSE),"") -> 146000
A68: 50 | B68: =IFERROR(VLOOKUP(A68,'كشف المستحقات'!A$3:F$628,2,FALSE),"") -> 50 | C68: =IFERROR(VLOOKUP(A68,'كشف المستحقات'!A$3:F$628,3,FALSE),"") -> 911-13583-50 | D68: =IFERROR(VLOOKUP(A68,'كشف المستحقات'!A$3:F$628,4,FALSE),"") -> خليل محمد صالح أحمد | E68: =IFERROR(VLOOKUP(A68,'كشف المستحقات'!A$3:F$628,5,FALSE),"") -> 60000
A69: 51 | B69: =IFERROR(VLOOKUP(A69,'كشف المستحقات'!A$3:F$628,2,FALSE),"") -> 51 | C69: =IFERROR(VLOOKUP(A69,'كشف المستحقات'!A$3:F$628,3,FALSE),"") -> 911-13583-51 | D69: =IFERROR(VLOOKUP(A69,'كشف المستحقات'!A$3:F$628,4,FALSE),"") -> عبده محمد صالح أحمد | E69: =IFERROR(VLOOKUP(A69,'كشف المستحقات'!A$3:F$628,5,FALSE),"") -> 86000
A70: 52 | B70: =IFERROR(VLOOKUP(A70,'كشف المستحقات'!A$3:F$628,2,FALSE),"") -> 52 | C70: =IFERROR(VLOOKUP(A70,'كشف المستحقات'!A$3:F$628,3,FALSE),"") -> 911-13583-52 | D70: =IFERROR(VLOOKUP(A70,'كشف المستحقات'!A$3:F$628,4,FALSE),"") -> علي ناجي أحمد | E70: =IFERROR(VLOOKUP(A70,'كشف المستحقات'!A$3:F$628,5,FALSE),"") -> 60000
A71: 53 | B71: =IFERROR(VLOOKUP(A71,'كشف المستحقات'!A$3:F$628,2,FALSE),"") -> 53 | C71: =IFERROR(VLOOKUP(A71,'كشف المستحقات'!A$3:F$628,3,FALSE),"") -> 911-13583-53 | D71: =IFERROR(VLOOKUP(A71,'كشف المستحقات'!A$3:F$628,4,FALSE),"") -> رمزي محمد صالح أحمد | E71: =IFERROR(VLOOKUP(A71,'كشف المستحقات'!A$3:F$628,5,FALSE),"") -> 60000
A72: 54 | B72: =IFERROR(VLOOKUP(A72,'كشف المستحقات'!A$3:F$628,2,FALSE),"") -> 54 | C72: =IFERROR(VLOOKUP(A72,'كشف المستحقات'!A$3:F$628,3,FALSE),"") -> 911-13583-54 | D72: =IFERROR(VLOOKUP(A72,'كشف المستحقات'!A$3:F$628,4,FALSE),"") -> مديره محمد ناجي | E72: =IFERROR(VLOOKUP(A72,'كشف المستحقات'!A$3:F$628,5,FALSE),"") -> 86000
A73: 55 | B73: =IFERROR(VLOOKUP(A73,'كشف المستحقات'!A$3:F$628,2,FALSE),"") -> 55 | C73: =IFERROR(VLOOKUP(A73,'كشف المستحقات'!A$3:F$628,3,FALSE),"") -> 911-13583-55 | D73: =IFERROR(VLOOKUP(A73,'كشف المستحقات'!A$3:F$628,4,FALSE),"") -> كاتبه عبد الله محمد | E73: =IFERROR(VLOOKUP(A73,'كشف المستحقات'!A$3:F$628,5,FALSE),"") -> 60000 | G73: =SUM(E63:E73) -> 910000
A74: جملة الصفحة الحالية | E74: =SUM(E62:E73) -> 3700000
A77: إجمالي ما قبله | E77: =E74 -> 3700000
A78: 56 | B78: =IFERROR(VLOOKUP(A78,'كشف المستحقات'!A$3:F$628,2,FALSE),"") -> 56 | C78: =IFERROR(VLOOKUP(A78,'كشف المستحقات'!A$3:F$628,3,FALSE),"") -> 911-13583-56 | D78: =IFERROR(VLOOKUP(A78,'كشف المستحقات'!A$3:F$628,4,FALSE),"") -> عمار محمد صالح | E78: =IFERROR(VLOOKUP(A78,'كشف المستحقات'!A$3:F$628,5,FALSE),"") -> 146000
A79: =A78+1 -> 57 | B79: =IFERROR(VLOOKUP(A79,'كشف المستحقات'!A$3:F$628,2,FALSE),"") -> 57 | C79: =IFERROR(VLOOKUP(A79,'كشف المستحقات'!A$3:F$628,3,FALSE),"") -> 911-13583-57 | D79: =IFERROR(VLOOKUP(A79,'كشف المستحقات'!A$3:F$628,4,FALSE),"") -> مبروك محمد صالح علي | E79: =IFERROR(VLOOKUP(A79,'كشف المستحقات'!A$3:F$628,5,FALSE),"") -> 120000
A80: =A79+1 -> 58 | B80: =IFERROR(VLOOKUP(A80,'كشف المستحقات'!A$3:F$628,2,FALSE),"") -> 58 | C80: =IFERROR(VLOOKUP(A80,'كشف المستحقات'!A$3:F$628,3,FALSE),"") -> 911-13583-58 | D80: =IFERROR(VLOOKUP(A80,'كشف المستحقات'!A$3:F$628,4,FALSE),"") -> عدنان صالح صالح حسن | E80: =IFERROR(VLOOKUP(A80,'كشف المستحقات'!A$3:F$628,5,FALSE),"") -> 74000
A81: 59 | B81: =IFERROR(VLOOKUP(A81,'كشف المستحقات'!A$3:F$628,2,FALSE),"") -> 59 | C81: =IFERROR(VLOOKUP(A81,'كشف المستحقات'!A$3:F$628,3,FALSE),"") -> 911-13583-59 | D81: =IFERROR(VLOOKUP(A81,'كشف المستحقات'!A$3:F$628,4,FALSE),"") -> عبد الحكيم محسن علي صالح | E81: =IFERROR(VLOOKUP(A81,'كشف المستحقات'!A$3:F$628,5,FALSE),"") -> 0
A82: 60 | B82: =IFERROR(VLOOKUP(A82,'كشف المستحقات'!A$3:F$628,2,FALSE),"") -> 60 | C82: =IFERROR(VLOOKUP(A82,'كشف المستحقات'!A$3:F$628,3,FALSE),"") -> 911-13583-60 | D82: =IFERROR(VLOOKUP(A82,'كشف المستحقات'!A$3:F$628,4,FALSE),"") -> سعد عبدالله حسن | E82: =IFERROR(VLOOKUP(A82,'كشف المستحقات'!A$3:F$628,5,FALSE),"") -> 0
A83: 61 | B83: =IFERROR(VLOOKUP(A83,'كشف المستحقات'!A$3:F$628,2,FALSE),"") -> 61 | C83: =IFERROR(VLOOKUP(A83,'كشف المستحقات'!A$3:F$628,3,FALSE),"") -> 911-13583-61 | D83: =IFERROR(VLOOKUP(A83,'كشف المستحقات'!A$3:F$628,4,FALSE),"") -> محمد ناصر محمد | E83: =IFERROR(VLOOKUP(A83,'كشف المستحقات'!A$3:F$628,5,FALSE),"") -> 0
A84: 62 | B84: =IFERROR(VLOOKUP(A84,'كشف المستحقات'!A$3:F$628,2,FALSE),"") -> 62 | C84: =IFERROR(VLOOKUP(A84,'كشف المستحقات'!A$3:F$628,3,FALSE),"") -> 911-13583-62 | D84: =IFERROR(VLOOKUP(A84,'كشف المستحقات'!A$3:F$628,4,FALSE),"") -> اكرم علي غالب | E84: =IFERROR(VLOOKUP(A84,'كشف المستحقات'!A$3:F$628,5,FALSE),"") -> 60000
A85: 63 | B85: =IFERROR(VLOOKUP(A85,'كشف المستحقات'!A$3:F$628,2,FALSE),"") -> 63 | C85: =IFERROR(VLOOKUP(A85,'كشف المستحقات'!A$3:F$628,3,FALSE),"") -> 911-13583-63 | D85: =IFERROR(VLOOKUP(A85,'كشف المستحقات'!A$3:F$628,4,FALSE),"") -> محمد غالب محمد | E85: =IFERROR(VLOOKUP(A85,'كشف المستحقات'!A$3:F$628,5,FALSE),"") -> 60000
A86: 64 | B86: =IFERROR(VLOOKUP(A86,'كشف المستحقات'!A$3:F$628,2,FALSE),"") -> 64 | C86: =IFERROR(VLOOKUP(A86,'كشف المستحقات'!A$3:F$628,3,FALSE),"") -> 911-13583-64 | D86: =IFERROR(VLOOKUP(A86,'كشف المستحقات'!A$3:F$628,4,FALSE),"") -> فؤاد محمد غالب محمد | E86: =IFERROR(VLOOKUP(A86,'كشف المستحقات'!A$3:F$628,5,FALSE),"") -> 60000
A87: 65 | B87: =IFERROR(VLOOKUP(A87,'كشف المستحقات'!A$3:F$628,2,FALSE),"") -> 65 | C87: =IFERROR(VLOOKUP(A87,'كشف المستحقات'!A$3:F$628,3,FALSE),"") -> 911-13583-65 | D87: =IFERROR(VLOOKUP(A87,'كشف المستحقات'!A$3:F$628,4,FALSE),"") -> علي أحمد غالب | E87: =IFERROR(VLOOKUP(A87,'كشف المستحقات'!A$3:F$628,5,FALSE),"") -> 60000
A88: 66 | B88: =IFERROR(VLOOKUP(A88,'كشف المستحقات'!A$3:F$628,2,FALSE),"") -> 66 | C88: =IFERROR(VLOOKUP(A88,'كشف المستحقات'!A$3:F$628,3,FALSE),"") -> 911-13583-66 | D88: =IFERROR(VLOOKUP(A88,'كشف المستحقات'!A$3:F$628,4,FALSE),"") -> فاطمه سعد احمد احمد | E88: =IFERROR(VLOOKUP(A88,'كشف المستحقات'!A$3:F$628,5,FALSE),"") -> 60000 | G88: =SUM(E78:E88) -> 640000
A89: جملة الصفحة الحالية | E89: =SUM(E77:E88) -> 4340000
A92: إجمالي ما قبله | E92: =E89 -> 4340000
A93: 67 | B93: =IFERROR(VLOOKUP(A93,'كشف المستحقات'!A$3:F$628,2,FALSE),"") -> 67 | C93: =IFERROR(VLOOKUP(A93,'كشف المستحقات'!A$3:F$628,3,FALSE),"") -> 911-13583-67 | D93: =IFERROR(VLOOKUP(A93,'كشف المستحقات'!A$3:F$628,4,FALSE),"") -> زيد محمد علي صالح | E93: =IFERROR(VLOOKUP(A93,'كشف المستحقات'!A$3:F$628,5,FALSE),"") -> 60000
A94: =A93+1 -> 68 | B94: =IFERROR(VLOOKUP(A94,'كشف المستحقات'!A$3:F$628,2,FALSE),"") -> 68 | C94: =IFERROR(VLOOKUP(A94,'كشف المستحقات'!A$3:F$628,3,FALSE),"") -> 911-13583-68 | D94: =IFERROR(VLOOKUP(A94,'كشف المستحقات'!A$3:F$628,4,FALSE),"") -> علي غالب محمد | E94: =IFERROR(VLOOKUP(A94,'كشف المستحقات'!A$3:F$628,5,FALSE),"") -> 86000
A95: =A94+1 -> 69 | B95: =IFERROR(VLOOKUP(A95,'كشف المستحقات'!A$3:F$628,2,FALSE),"") -> 69 | C95: =IFERROR(VLOOKUP(A95,'كشف المستحقات'!A$3:F$628,3,FALSE),"") -> 911-13583-69 | D95: =IFERROR(VLOOKUP(A95,'كشف المستحقات'!A$3:F$628,4,FALSE),"") -> محمد علي غالب محمد | E95: =IFERROR(VLOOKUP(A95,'كشف المستحقات'!A$3:F$628,5,FALSE),"") -> 60000
A96: 70 | B96: =IFERROR(VLOOKUP(A96,'كشف المستحقات'!A$3:F$628,2,FALSE),"") -> 70 | C96: =IFERROR(VLOOKUP(A96,'كشف المستحقات'!A$3:F$628,3,FALSE),"") -> 911-13583-70 | D96: =IFERROR(VLOOKUP(A96,'كشف المستحقات'!A$3:F$628,4,FALSE),"") -> حمود مسعد محمد | E96: =IFERROR(VLOOKUP(A96,'كشف المستحقات'!A$3:F$628,5,FALSE),"") -> 120000
A97: 71 | B97: =IFERROR(VLOOKUP(A97,'كشف المستحقات'!A$3:F$628,2,FALSE),"") -> 71 | C97: =IFERROR(VLOOKUP(A97,'كشف المستحقات'!A$3:F$628,3,FALSE),"") -> 911-13583-71 | D97: =IFERROR(VLOOKUP(A97,'كشف المستحقات'!A$3:F$628,4,FALSE),"") -> سعد أحمد سعيد | E97: =IFERROR(VLOOKUP(A97,'كشف المستحقات'!A$3:F$628,5,FALSE),"") -> 56000
A98: 72 | B98: =IFERROR(VLOOKUP(A98,'كشف المستحقات'!A$3:F$628,2,FALSE),"") -> 72 | C98: =IFERROR(VLOOKUP(A98,'كشف المستحقات'!A$3:F$628,3,FALSE),"") -> 911-13583-72 | D98: =IFERROR(VLOOKUP(A98,'كشف المستحقات'!A$3:F$628,4,FALSE),"") -> خالد أحمد سعيد | E98: =IFERROR(VLOOKUP(A98,'كشف المستحقات'!A$3:F$628,5,FALSE),"") -> 86000
A99: 73 | B99: =IFERROR(VLOOKUP(A99,'كشف المستحقات'!A$3:F$628,2,FALSE),"") -> 73 | C99: =IFERROR(VLOOKUP(A99,'كشف المستحقات'!A$3:F$628,3,FALSE),"") -> 911-13583-73 | D99: =IFERROR(VLOOKUP(A99,'كشف المستحقات'!A$3:F$628,4,FALSE),"") -> علي سعد ناجي | E99: =IFERROR(VLOOKUP(A99,'كشف المستحقات'!A$3:F$628,5,FALSE),"") -> 120000
A100: 74 | B100: =IFERROR(VLOOKUP(A100,'كشف المستحقات'!A$3:F$628,2,FALSE),"") -> 74 | C100: =IFERROR(VLOOKUP(A100,'كشف المستحقات'!A$3:F$628,3,FALSE),"") -> 911-13583-74 | D100: =IFERROR(VLOOKUP(A100,'كشف المستحقات'!A$3:F$628,4,FALSE),"") -> أحمد علي سعد | E100: =IFERROR(VLOOKUP(A100,'كشف المستحقات'!A$3:F$628,5,FALSE),"") -> 120000
A101: 75 | B101: =IFERROR(VLOOKUP(A101,'كشف المستحقات'!A$3:F$628,2,FALSE),"") -> 75 | C101: =IFERROR(VLOOKUP(A101,'كشف المستحقات'!A$3:F$628,3,FALSE),"") -> 911-13583-75 | D101: =IFERROR(VLOOKUP(A101,'كشف المستحقات'!A$3:F$628,4,FALSE),"") -> امل علي سعد ناجي | E101: =IFERROR(VLOOKUP(A101,'كشف المستحقات'!A$3:F$628,5,FALSE),"") -> 160000
A102: 76 | B102: =IFERROR(VLOOKUP(A102,'كشف المستحقات'!A$3:F$628,2,FALSE),"") -> 76 | C102: =IFERROR(VLOOKUP(A102,'كشف المستحقات'!A$3:F$628,3,FALSE),"") -> 911-13583-76 | D102: =IFERROR(VLOOKUP(A102,'كشف المستحقات'!A$3:F$628,4,FALSE),"") -> جمال جميل مسعد محمد | E102: =IFERROR(VLOOKUP(A102,'كشف المستحقات'!A$3:F$628,5,FALSE),"") -> 0
A103: 77 | B103: =IFERROR(VLOOKUP(A103,'كشف المستحقات'!A$3:F$628,2,FALSE),"") -> 77 | C103: =IFERROR(VLOOKUP(A103,'كشف المستحقات'!A$3:F$628,3,FALSE),"") -> 911-13583-77 | D103: =IFERROR(VLOOKUP(A103,'كشف المستحقات'!A$3:F$628,4,FALSE),"") -> مراد علي غالب محمد | E103: =IFERROR(VLOOKUP(A103,'كشف المستحقات'!A$3:F$628,5,FALSE),"") -> 120000 | G103: =SUM(E93:E103) -> 988000
A104: جملة الصفحة الحالية | E104: =SUM(E92:E103) -> 5328000
A107: إجمالي ما قبله | E107: =E104 -> 5328000
A108: 78 | B108: =IFERROR(VLOOKUP(A108,'كشف المستحقات'!A$3:F$628,2,FALSE),"") -> 78 | C108: =IFERROR(VLOOKUP(A108,'كشف المستحقات'!A$3:F$628,3,FALSE),"") -> 911-13583-78 | D108: =IFERROR(VLOOKUP(A108,'كشف المستحقات'!A$3:F$628,4,FALSE),"") -> عبد الكريم غالب قايد | E108: =IFERROR(VLOOKUP(A108,'كشف المستحقات'!A$3:F$628,5,FALSE),"") -> 120000
A109: =A108+1 -> 79 | B109: =IFERROR(VLOOKUP(A109,'كشف المستحقات'!A$3:F$628,2,FALSE),"") -> 79 | C109: =IFERROR(VLOOKUP(A109,'كشف المستحقات'!A$3:F$628,3,FALSE),"") -> 911-13583-79 | D109: =IFERROR(VLOOKUP(A109,'كشف المستحقات'!A$3:F$628,4,FALSE),"") -> لطف غالب قايد | E109: =IFERROR(VLOOKUP(A109,'كشف المستحقات'!A$3:F$628,5,FALSE),"") -> 120000
A110: =A109+1 -> 80 | B110: =IFERROR(VLOOKUP(A110,'كشف المستحقات'!A$3:F$628,2,FALSE),"") -> 80 | C110: =IFERROR(VLOOKUP(A110,'كشف المستحقات'!A$3:F$628,3,FALSE),"") -> 911-13583-80 | D110: =IFERROR(VLOOKUP(A110,'كشف المستحقات'!A$3:F$628,4,FALSE),"") -> عبدالخالق محمد علي علي | E110: =IFERROR(VLOOKUP(A110,'كشف المستحقات'!A$3:F$628,5,FALSE),"") -> 120000
A111: 81 | B111: =IFERROR(VLOOKUP(A111,'كشف المستحقات'!A$3:F$628,2,FALSE),"") -> 81 | C111: =IFERROR(VLOOKUP(A111,'كشف المستحقات'!A$3:F$628,3,FALSE),"") -> 911-13583-81 | D111: =IFERROR(VLOOKUP(A111,'كشف المستحقات'!A$3:F$628,4,FALSE),"") -> عبده علي أحمد عبدالله | E111: =IFERROR(VLOOKUP(A111,'كشف المستحقات'!A$3:F$628,5,FALSE),"") -> 120000
A112: 82 | B112: =IFERROR(VLOOKUP(A112,'كشف المستحقات'!A$3:F$628,2,FALSE),"") -> 82 | C112: =IFERROR(VLOOKUP(A112,'كشف المستحقات'!A$3:F$628,3,FALSE),"") -> 911-13583-82 | D112: =IFERROR(VLOOKUP(A112,'كشف المستحقات'!A$3:F$628,4,FALSE),"") -> مثير غالب قايد محمد | E112: =IFERROR(VLOOKUP(A112,'كشف المستحقات'!A$3:F$628,5,FALSE),"") -> 134000
A113: 83 | B113: =IFERROR(VLOOKUP(A113,'كشف المستحقات'!A$3:F$628,2,FALSE),"") -> 83 | C113: =IFERROR(VLOOKUP(A113,'كشف المستحقات'!A$3:F$628,3,FALSE),"") -> 911-13583-83 | D113: =IFERROR(VLOOKUP(A113,'كشف المستحقات'!A$3:F$628,4,FALSE),"") -> محي الدين محمد أحمد | E113: =IFERROR(VLOOKUP(A113,'كشف المستحقات'!A$3:F$628,5,FALSE),"") -> 120000
A114: 84 | B114: =IFERROR(VLOOKUP(A114,'كشف المستحقات'!A$3:F$628,2,FALSE),"") -> 84 | C114: =IFERROR(VLOOKUP(A114,'كشف المستحقات'!A$3:F$628,3,FALSE),"") -> 911-13583-84 | D114: =IFERROR(VLOOKUP(A114,'كشف المستحقات'!A$3:F$628,4,FALSE),"") -> عبدالسلام محمد أحمد | E114: =IFERROR(VLOOKUP(A114,'كشف المستحقات'!A$3:F$628,5,FALSE),"") -> 134000
A115: 85 | B115: =IFERROR(VLOOKUP(A115,'كشف المستحقات'!A$3:F$628,2,FALSE),"") -> 85 | C115: =IFERROR(VLOOKUP(A115,'كشف المستحقات'!A$3:F$628,3,FALSE),"") -> 911-13583-85 | D115: =IFERROR(VLOOKUP(A115,'كشف المستحقات'!A$3:F$628,4,FALSE),"") -> م. محمد عبد الله عبد الجبار | E115: =IFERROR(VLOOKUP(A115,'كشف المستحقات'!A$3:F$628,5,FALSE),"") -> 136255
A116: 86 | B116: =IFERROR(VLOOKUP(A116,'كشف المستحقات'!A$3:F$628,2,FALSE),"") -> 86 | C116: =IFERROR(VLOOKUP(A116,'كشف المستحقات'!A$3:F$628,3,FALSE),"") -> 911-13583-86 | D116: =IFERROR(VLOOKUP(A116,'كشف المستحقات'!A$3:F$628,4,FALSE),"") -> م.علوي عبده محمد علي | E116: =IFERROR(VLOOKUP(A116,'كشف المستحقات'!A$3:F$628,5,FALSE),"") -> 136255
A117: 87 | B117: =IFERROR(VLOOKUP(A117,'كشف المستحقات'!A$3:F$628,2,FALSE),"") ->  | C117: =IFERROR(VLOOKUP(A117,'كشف المستحقات'!A$3:F$628,3,FALSE),"") ->  | D117: =IFERROR(VLOOKUP(A117,'كشف المستحقات'!A$3:F$628,4,FALSE),"") ->  | E117: =IFERROR(VLOOKUP(A117,'كشف المستحقات'!A$3:F$628,5,FALSE),"") -> 
A118: 88 | B118: =IFERROR(VLOOKUP(A118,'كشف المستحقات'!A$3:F$628,2,FALSE),"") ->  | C118: =IFERROR(VLOOKUP(A118,'كشف المستحقات'!A$3:F$628,3,FALSE),"") ->  | D118: =IFERROR(VLOOKUP(A118,'كشف المستحقات'!A$3:F$628,4,FALSE),"") ->  | E118: =IFERROR(VLOOKUP(A118,'كشف المستحقات'!A$3:F$628,5,FALSE),"") ->  | G118: =SUM(E108:E118) -> 1140510
A119: جملة الصفحة الحالية | E119: =SUM(E107:E118) -> 6468510

Sheet تحليلي دفعة 1 - مع الفنيين (hidden)
A1: الجمهورية اليمنية | E1: كشف تحليلي للدفعة رقم (1) (مستخلص 1) المستحقة لمالكي السقايات | N1: مشروع: السقايات الخاصة لقرية الموقعة - عزلة موشك
A2: رثاسة مجلس الوزراء | E2: للفترة من 07 / 03 / 2021 م الى 11 / 03 / 2021 م | N2: مديرية مغرب عنس - ذمار
A3: الصندوق الإجتماعي للتنمية فرع ذمار - البيضاء | N3: رقم المشروع: 13583 - 911
A4: وحدة المياه والبيئة | E4: نسبة الإنجاز =4,224,000 * 100 / 36,288,000 = 11.64% | N4: رقم الدفعة: (1)
A5: قطاع المياه | N5: مبلغ الدفعة = | P5: =R215 -> 4425120
A6: م | B6: رقم السقاية | C6: كود المستفيد | D6: البند اسم مالك السقاية | E6: الحفر(أ) | F6: الحفر(ب) | G6: المباني بانواعها المختلفة (أ) | H6: المباني بانواعها المختلفة (ب) | I6: ارضية السقايات (أ) | J6: ارضية السقايات (ب) | K6: التلبيس (أ) | L6: التلبيس (ب) | M6: انجاز 50% من السطح بانواعة المختلفة | N6: اكمال السقف مع المعالجة بطلاء مناسب للبيئة | O6: ملحقات السقاية (انابيب التوصيل, حنفيه ان وجدت,غطاء فتحة السقف,فلتر التنظيف) | P6: تنظيف المساحات الساكبه | Q6: رفع المخلفات | R6: الاجمالي | S6: إجمالي المبلغ المنصرف لكل سقاية | V6: 36288000
E7: 26000 | F7: 14000 | G7: 60000 | H7: 60000 | I7: 26000 | J7: 26000 | K7: 30000 | L7: 30000 | M7: 70000 | N7: 40000 | O7: 22000 | P7: 14000 | Q7: 14000 | R7: =SUM(E7:Q7) -> 432000
A8: 1 | B8: 1 | C8: 911-13583-1 | D8: زين احمد احمد الظاهري | E8: 26000 | F8: 14000 | G8: 60000 | R8: 100000 | S8: =SUM(R8:R10) -> 100000
A9: =A8+1 -> 2 | C9: 911-13583-1-1 | D9: أيمن محمد ناصر محمد | R9: 0
A10: =A9+1 -> 3 | C10: 911-13583-1-2 | D10: أشرف محمد ناصر محمد | R10: 0
A11: 4 | B11: 2 | C11: 911-13583-2 | D11: يحيى ناصر محمد الموشكي | E11: 26000 | F11: 14000 | R11: 40000 | S11: =SUM(R11:R13) -> 40000
A12: 5 | C12: 911-13583-2-1 | D12: البدر يحيى ناصر محمد الموشكي | R12: 0
A13: 6 | C13: 911-13583-2-2 | D13: اسماء صالح علي ناصر اليريمي | R13: 0
A14: 7 | B14: 3 | C14: 911-13583-3 | D14: صلاح الدين ناصر محمد الموشكي | E14: 26000 | F14: 14000 | G14: 60000 | R14: 100000 | S14: =SUM(R14:R15) -> 100000
A15: 8 | C15: 911-13583-3-1 | D15: سبأ أحمد أحمد ناصر الظاهري | R15: 0
A16: 9 | B16: 4 | C16: 911-13583-4 | D16: لطيفه حسن علي ناصر اليريمي | E16: 26000 | F16: 14000 | G16: 60000 | R16: 100000 | S16: =SUM(R16:R17) -> 100000
A17: 10 | C17: 911-13583-4-1 | D17: عبد الواحد محسن محمد | R17: 0
A18: 11 | B18: 5 | C18: 911-13583-5 | D18: جمال أحمد ثابت محمد الموشكي | R18: 0 | S18: =SUM(R18:R19) -> 0
A19: 12 | C19: 911-13583-5-1 | D19: نورا صالح علي محمد الموشكي | R19: 0
A20: 13 | B20: 6 | C20: 911-13583-6 | D20: بدره أحمد ثابت محمد سعيد | R20: 0 | S20: =SUM(R20:R22) -> 0
A21: 14 | C21: 911-13583-6-1 | D21: شعيب أحمد ثابت الموشكي | R21: 0
A22: 15 | C22: 911-13583-6-2 | D22: فاطمه حسين غالب | R22: 0
A23: 16 | B23: 7 | C23: 911-13583-7 | D23: ماجد ثابت عبد الله الموشكي | R23: 0 | S23: =SUM(R23:R24) -> 0
A24: 17 | C24: 911-13583-7-1 | D24: عائشه محمد سعد سعيد | R24: 0
A25: 18 | B25: 8 | C25: 911-13583-8 | D25: رزيقه محمد حسين المحلي | R25: 0 | S25: =SUM(R25:R26) -> 0
A26: 19 | C26: 911-13583-8-1 | D26: نجم الدين محمد عبدالله | R26: 0
A27: 20 | B27: 9 | C27: 911-13583-9 | D27: عادل علي محمد الموشكي | E27: 26000 | F27: 14000 | R27: 40000 | S27: =SUM(R27:R29) -> 40000
A28: 21 | C28: 911-13583-9-1 | D28: الصديق عادل علي الموشكي | R28: 0
A29: 22 | C29: 911-13583-9-2 | D29: سميره يحيى ثابت سعد | R29: 0
A30: 23 | B30: 10 | C30: 911-13583-10 | D30: عبدالملك محمد علي سعيد الموشكي | E30: 26000 | F30: 14000 | R30: 40000 | S30: =SUM(R30:R32) -> 40000
A31: 24 | C31: 911-13583-10-1 | D31: محمد علي سعيد الموشكي | R31: 0
A32: 25 | C32: 911-13583-10-2 | D32: نجلاء محمد صالح علي | R32: 0
A33: 26 | B33: 11 | C33: 911-13583-11 | D33: كريمه حسن علي سعيد | E33: 26000 | F33: 14000 | R33: 40000 | S33: =SUM(R33:R34) -> 40000
A34: 27 | C34: 911-13583-11-1 | D34: عبد الرحمن محمد يحيى الموشكي | R34: 0
A35: 28 | B35: 12 | C35: 911-13583-12 | D35: محمد سعد سعيد الموشكي | E35: 26000 | F35: 14000 | R35: 40000 | S35: =SUM(R35:R37) -> 40000
A36: 29 | C36: 911-13583-12-1 | D36: عبد السلام محمد سعد سعيد | R36: 0
A37: 30 | C37: 911-13583-12-2 | D37: نبيله حسين علي أحمد | R37: 0
A38: 31 | B38: 13 | C38: 911-13583-13 | D38: صالح محمد سعيد الموشكي | E38: 26000 | F38: 14000 | R38: 40000 | S38: =SUM(R38:R39) -> 40000
A39: 32 | C39: 911-13583-13-1 | D39: كفاء حسن علي ناصر اليريمي | R39: 0
A40: 33 | B40: 14 | C40: 911-13583-14 | D40: عادل قائد ناجي الموشكي | R40: 0 | S40: =SUM(R40:R42) -> 0
A41: 34 | C41: 911-13583-14-1 | D41: العماد عادل قائد ناجي الموشكي | R41: 0
A42: 35 | C42: 911-13583-14-2 | D42: نجلاء محمد ناجي الشجني | R42: 0
A43: 36 | B43: 15 | C43: 911-13583-15 | D43: محسن عبد الله حسن الموشكي | E43: 26000 | F43: 14000 | R43: 40000 | S43: =SUM(R43:R44) -> 40000
A44: 37 | C44: 911-13583-15-1 | D44: ايمان علي ناجي حسن | R44: 0
A45: 38 | B45: 16 | C45: 911-13583-16 | D45: فارس محمد سعد سعيد الموشكي | E45: 26000 | F45: 14000 | R45: 40000 | S45: =SUM(R45:R46) -> 40000
A46: 39 | C46: 911-13583-16-1 | D46: انتصار علي محمد سعيد ناصر | R46: 0
A47: 40 | B47: 17 | C47: 911-13583-17 | D47: أحمد ناصر عبد الله الموشكي | R47: 0 | S47: =SUM(R47:R48) -> 0
A48: 41 | C48: 911-13583-17-1 | D48: منال علي عبد الله حسن | R48: 0
A49: 42 | B49: 18 | C49: 911-13583-18 | D49: هيثم صالح صالح حسن | E49: 26000 | F49: 14000 | R49: 40000 | S49: =SUM(R49:R50) -> 40000
A50: 43 | C50: 911-13583-18-1 | D50: اخلاق سعد ناجي حسن الموقعي | R50: 0
A51: 44 | B51: 19 | C51: 911-13583-19 | D51: حفظ الله محمد سعيد الموشكي | E51: 26000 | F51: 14000 | R51: 40000 | S51: =SUM(R51:R53) -> 40000
A52: 45 | C52: 911-13583-19-1 | D52: امنه علي يحيى حسن الحاج | R52: 0
A53: 46 | C53: 911-13583-19-2 | D53: حفيظه يحيى علي سعيد | R53: 0
A54: 47 | B54: 20 | C54: 911-13583-20 | D54: يحيى ثابت محمد سعيد الموشكي | E54: 26000 | F54: 14000 | G54: 60000 | R54: 100000 | S54: =SUM(R54:R56) -> 100000
A55: 48 | C55: 911-13583-20-1 | D55: اديبه علي أحمد سعيد | R55: 0
A56: 49 | C56: 911-13583-20-2 | D56: العز يحيى ثابت محمد | R56: 0
A57: 50 | B57: 21 | C57: 911-13583-21 | D57: عبد الرحمن عبد الواحد محسن محمد | E57: 26000 | F57: 14000 | G57: 60000 | R57: 100000 | S57: =SUM(R57:R59) -> 100000
A58: 51 | C58: 911-13583-21-1 | D58: محمد عبد الواحد محسن محمد | R58: 0
A59: 52 | C59: 911-13583-21-2 | D59: نبيله سعد سعيد | R59: 0
A60: 53 | B60: 22 | C60: 911-13583-22 | D60: عزالدين محمد محمد سعيد الموشكي | E60: 26000 | F60: 14000 | G60: 60000 | R60: 100000 | S60: =SUM(R60:R61) -> 100000
A61: 54 | C61: 911-13583-22-1 | D61: تهاني علي ناجي سعيد | R61: 0
A62: 55 | B62: 23 | C62: 911-13583-23 | D62: حمود عبده ناجي حسن الموقعي | R62: 0 | S62: =SUM(R62:R63) -> 0
A63: 56 | C63: 911-13583-23-1 | D63: امان على حسين الموقعي | R63: 0
A64: 57 | B64: 24 | C64: 911-13583-24 | D64: محمد عبده ناجي الموشكي | E64: 26000 | F64: 14000 | R64: 40000 | S64: =SUM(R64:R65) -> 40000
A65: 58 | C65: 911-13583-24-1 | D65: أحلام محمد صالح الموقعي | R65: 0
A66: 59 | B66: 25 | C66: 911-13583-25 | D66: صادق علي ناصر العنسي | E66: 26000 | F66: 14000 | R66: 40000 | S66: =SUM(R66:R67) -> 40000
A67: 60 | C67: 911-13583-25-1 | D67: هدى محمد عبد الله حسن | R67: 0
A68: 61 | B68: 26 | C68: 911-13583-26 | D68: ضيف الله علي ناجي حسن | R68: 0 | S68: =SUM(R68:R70) -> 0
A69: 62 | C69: 911-13583-26-1 | D69: علي ناجي صالح علي العنسي | R69: 0
A70: 63 | C70: 911-13583-26-2 | D70: جميله علي سعد ناجي | R70: 0
A71: 64 | B71: 27 | C71: 911-13583-27 | D71: امير سعد ناجي حسن | E71: 26000 | F71: 14000 | R71: =SUM(E71:Q71) -> 40000 | S71: =SUM(R71:R73) -> 40000
A72: 65 | C72: 911-13583-27-1 | D72: سعد ناجي حسن الموشكي | R72: 0
A73: 66 | C73: 911-13583-27-2 | D73: عزيه سعد ناصر اليريمي | R73: 0
A74: =A73+1 -> 67 | B74: 28 | C74: 911-13583-28 | D74: محمد مسعد ناجي حسن الموشكي | R74: 0 | S74: =SUM(R74:R75) -> 0
A75: 68 | C75: 911-13583-28-1 | D75: روضة حسن علي اليريمي | R75: 0
A76: 69 | B76: 29 | C76: 911-13583-29 | D76: رشاد احمد صالح حسن العنسي | E76: 26000 | F76: 14000 | G76: 60000 | R76: 100000 | S76: =SUM(R76:R78) -> 100000
A77: 70 | C77: 911-13583-29-1 | D77: بكيل أحمد صالح حسن العنسي | R77: 0
A78: 71 | C78: 911-13583-29-2 | D78: عُلا أحمد صالح حسن العنسي | R78: 0
A79: 72 | B79: 30 | C79: 911-13583-30 | D79: الشرفي علي ناجي سعيد | E79: 26000 | F79: 14000 | R79: 40000 | S79: =SUM(R79:R81) -> 40000
A80: 73 | C80: 911-13583-30-1 | D80: كاتبه حسن اليريمي | R80: 0
A81: 74 | C81: 911-13583-30-2 | D81: شيماء علي ناجي سعيد | R81: 0
A82: 75 | B82: 31 | C82: 911-13583-31 | D82: علي علي محمد ناصر الموشكي | E82: 26000 | F82: 14000 | G82: 60000 | R82: 100000 | S82: =SUM(R82:R83) -> 100000
A83: 76 | C83: 911-13583-31-1 | D83: امان علي ناجي حسن | R83: 0
A84: 77 | B84: 32 | C84: 911-13583-32 | D84: صادق علي محمد سعيد ناصر | E84: 26000 | F84: 14000 | G84: 60000 | R84: 100000 | S84: =SUM(R84:R85) -> 100000
A85: 78 | C85: 911-13583-32-1 | D85: سماح عبده علي الآنسي | R85: 0
A86: 79 | B86: 33 | C86: 911-13583-33 | D86: محمد علي محمد سعيد | E86: 26000 | F86: 14000 | R86: 40000 | S86: =SUM(R86:R87) -> 40000
A87: 80 | C87: 911-13583-33-1 | D87: نديمه عبده ناجي حسن | R87: 0
A88: 81 | B88: 34 | C88: 911-13583-34 | D88: محي الدين محمد محمد الموشكى | E88: 26000 | F88: 14000 | G88: 60000 | R88: 100000 | S88: =SUM(R88:R89) -> 100000
A89: 82 | C89: 911-13583-34-1 | D89: خيزران محمد حسين الظاهري | R89: 0
A90: 83 | B90: 35 | C90: 911-13583-35 | D90: علي محمد سعيد الموشكي | E90: 26000 | F90: 14000 | G90: 60000 | R90: 100000 | S90: =SUM(R90:R92) -> 100000
A91: 84 | C91: 911-13583-35-1 | D91: مجاهد علي محمد سعيد الموشكي | R91: 0
A92: 85 | C92: 911-13583-35-2 | D92: دليله محمد محمد سعيد | R92: 0
A93: 86 | B93: 36 | C93: 911-13583-36 | D93: محمد محسن ناجي الشجني | R93: 0 | S93: =SUM(R93:R95) -> 0
A94: 87 | C94: 911-13583-36-1 | D94: جميله صالح علي اليريمي | R94: 0
A95: 88 | C95: 911-13583-36-2 | D95: سمر حسن مسعد علي | R95: 0
A96: 89 | B96: 37 | C96: 911-13583-37 | D96: مراد مجاهد على محمد الموقعي | E96: 26000 | F96: 14000 | R96: 40000 | S96: =SUM(R96:R98) -> 40000
A97: 90 | C97: 911-13583-37-1 | D97: امان ناصر محمد الموشكي | R97: 0
A98: 91 | C98: 911-13583-37-2 | D98: امة الرحمن عبد الواحد محسن | R98: 0
A99: 92 | B99: 38 | C99: 911-13583-38 | D99: حفظ الله صالح محمد صالح الموشكي | E99: 26000 | F99: 14000 | R99: 40000 | S99: =SUM(R99:R101) -> 40000
A100: 93 | C100: 911-13583-38-1 | D100: اميره ناصر محمد الموشكي | R100: 0
A101: 94 | C101: 911-13583-38-2 | D101: حفصه حفظ الله صالح الموشكي | R101: 0
A102: 95 | B102: 39 | C102: 911-13583-39 | D102: عبد الله سعد حسن علي الموشكي | E102: 26000 | F102: 14000 | R102: 40000 | S102: =SUM(R102:R104) -> 40000
A103: 96 | C103: 911-13583-39-1 | D103: امينه يحيى محمد علي سعد | R103: 0
A104: 97 | C104: 911-13583-39-2 | D104: بسمه عبدالله سعد الموشكي | R104: 0
A105: 98 | B105: 40 | C105: 911-13583-40 | D105: تقوى محمد أحمد الظاهري | R105: 0 | S105: =SUM(R105:R107) -> 0
A106: 99 | C106: 911-13583-40-1 | D106: علي سعد عبدالله حسن | R106: 0
A107: 100 | C107: 911-13583-40-2 | D107: مجاهد سعد عبد الله حسن | R107: 0
A108: 101 | B108: 41 | C108: 911-13583-41 | D108: عبد الله محمد سعيد الموشكي | R108: 0 | S108: =SUM(R108:R110) -> 0
A109: 102 | C109: 911-13583-41-1 | D109: نبات سعد حسن علي | R109: 0
A110: 103 | C110: 911-13583-41-2 | D110: سليم عبدالله محمد سعيد | R110: 0
A111: 104 | B111: 42 | C111: 911-13583-42 | D111: علي صالح محمد سعيد أحمد | R111: 0 | S111: =SUM(R111:R112) -> 0
A112: 105 | C112: 911-13583-42-1 | D112: سماح علي أحمد الجبري | R112: 0
A113: 106 | B113: 43 | C113: 911-13583-43 | D113: محمد صالح محمد سعيد الموشكي | E113: 26000 | F113: 14000 | R113: 40000 | S113: =SUM(R113:R114) -> 40000
A114: 107 | C114: 911-13583-43-1 | D114: ندية محمد عبده الظاهري | R114: 0
A115: 108 | B115: 44 | C115: 911-13583-44 | D115: عبده علي محمد الموشكي | E115: 26000 | F115: 14000 | G115: 60000 | R115: 100000 | S115: =SUM(R115:R116) -> 100000
A116: 109 | C116: 911-13583-44-1 | D116: الهام قائد ناجي الشجني | R116: 0
A117: 110 | B117: 45 | C117: 911-13583-45 | D117: ابراهيم يحيى علي سعيد الموشكي | E117: 26000 | F117: 14000 | R117: 40000 | S117: =SUM(R117:R118) -> 40000
A118: 111 | C118: 911-13583-45-1 | D118: امل محمد ناصر محمد الموشكي | R118: 0
A119: 112 | B119: 46 | C119: 911-13583-46 | D119: حميد عبده ناجي حسن | E119: 26000 | F119: 14000 | G119: 60000 | R119: 100000 | S119: =SUM(R119:R121) -> 100000
A120: 113 | C120: 911-13583-46-1 | D120: عبده ناجي حسن | R120: 0
A121: 114 | C121: 911-13583-46-2 | D121: ابتسام عبد الله سعد حسن | R121: 0
A122: 115 | B122: 47 | C122: 911-13583-47 | D122: مراد ناجي أحمد غالب علي | E122: 26000 | F122: 14000 | R122: 40000 | S122: =SUM(R122:R124) -> 40000
A123: 116 | C123: 911-13583-47-1 | D123: نوريه سعد علي حزام | R123: 0
A124: 117 | C124: 911-13583-47-2 | D124: غانيه ناجي أحمد غالب علي | R124: 0
A125: 118 | B125: 48 | C125: 911-13583-48 | D125: صدام ناجي أحمد غالب الموقعي | E125: 26000 | F125: 14000 | G125: 60000 | R125: 100000 | S125: =SUM(R125:R126) -> 100000
A126: 119 | C126: 911-13583-48-1 | D126: رسيله يحيى أحمد حسن الموشكي | R126: 0
A127: 120 | B127: 49 | C127: 911-13583-49 | D127: عبده ناجي أحمد الموشكي | E127: 26000 | F127: 14000 | R127: 40000 | S127: =SUM(R127:R128) -> 40000
A128: 121 | C128: 911-13583-49-1 | D128: جميله محمد علي حسن المحلى | R128: 0
A129: 122 | B129: 50 | C129: 911-13583-50 | D129: خليل محمد صالح أحمد الموشكي | E129: 26000 | F129: 14000 | G129: 60000 | R129: 100000 | S129: =SUM(R129:R130) -> 100000
A130: 123 | C130: 911-13583-50-1 | D130: سوسن حسين محمد حزام الموشكي | R130: 0
A131: 124 | B131: 51 | C131: 911-13583-51 | D131: عبده محمد صالح أحمد الموشكي | E131: 26000 | F131: 14000 | G131: 60000 | R131: 100000 | S131: =SUM(R131:R132) -> 100000
A132: 125 | C132: 911-13583-51-1 | D132: امل ناصر سعد ناصر الموشكي | R132: 0
A133: 126 | B133: 52 | C133: 911-13583-52 | D133: علي ناجي أحمد الموشكي | E133: 26000 | F133: 14000 | G133: 60000 | R133: 100000 | S133: =SUM(R133:R134) -> 100000
A134: 127 | C134: 911-13583-52-1 | D134: ملوك محمد أحمد المقبلي | R134: 0
A135: 128 | B135: 53 | C135: 911-13583-53 | D135: رمزي محمد صالح أحمد | E135: 26000 | F135: 14000 | G135: 60000 | R135: =SUM(E135:Q135) -> 100000 | S135: =SUM(R135:R137) -> 100000
A136: 129 | C136: 911-13583-53-1 | D136: محمد صالح أحمد الموشكي | R136: 0
A137: 130 | C137: 911-13583-53-2 | D137: مبروك محمد صالح أحمد | R137: 0
A138: =A137+1 -> 131 | B138: 54 | C138: 911-13583-54 | D138: مديره محمد ناجي الموشكي | E138: 26000 | F138: 14000 | G138: 60000 | R138: 100000 | S138: =SUM(R138:R139) -> 100000
A139: 132 | C139: 911-13583-54-1 | D139: هلال محمد ناجي الموشكي | R139: 0
A140: 133 | B140: 55 | C140: 911-13583-55 | D140: كاتبه عبد الله محمد الموشكي | E140: 26000 | F140: 14000 | G140: 60000 | R140: 100000 | S140: =SUM(R140:R142) -> 100000
A141: 134 | C141: 911-13583-55-1 | D141: ناديه مجاهد عبد الله محمد الموشكي | R141: 0
A142: 135 | C142: 911-13583-55-2 | D142: صلاح محمد صالح الموشكي | R142: 0
A143: 136 | B143: 56 | C143: 911-13583-56 | D143: عمار محمد صالح الموشكي | E143: 26000 | F143: 14000 | R143: 40000 | S143: =SUM(R143:R145) -> 40000
A144: 137 | C144: 911-13583-56-1 | D144: خالد محمد صالح علي الموشكي | R144: 0
A145: 138 | C145: 911-13583-56-2 | D145: محمد محمد صالح علي الموشكي | R145: 0
A146: 139 | B146: 57 | C146: 911-13583-57 | D146: مبروك محمد صالح على الموشكي | E146: 26000 | F146: 14000 | R146: 40000 | S146: =SUM(R146:R148) -> 40000
A147: 140 | C147: 911-13583-57-1 | D147: بلقيس يحيى علي سعيد | R147: 0
A148: 141 | C148: 911-13583-57-2 | D148: مستوره علي محمد قاسم | R148: 0
A149: 142 | B149: 58 | C149: 911-13583-58 | D149: عدنان صالح صالح حسن | E149: 26000 | R149: 26000 | S149: =SUM(R149:R150) -> 26000
A150: 143 | C150: 911-13583-58-1 | D150: حنان ناجي علي سعد الجلال | R150: 0
A151: 144 | B151: 59 | C151: 911-13583-59 | D151: عبد الحكيم محسن علي صالح | R151: 0 | S151: =SUM(R151:R153) -> 0
A152: 145 | C152: 911-13583-59-1 | D152: اسماعيل محسن علي صالح | R152: 0
A153: 146 | C153: 911-13583-59-2 | D153: محسن علي صالح صالح الموشكي | R153: 0
A154: 147 | B154: 60 | C154: 911-13583-60 | D154: سعد عبدالله حسن الموشكي | R154: 0 | S154: =SUM(R154:R155) -> 0
A155: 148 | C155: 911-13583-60-1 | D155: حاكمه محمد علي أحمد | R155: 0
A156: 149 | B156: 61 | C156: 911-13583-61 | D156: (المدرسة) محمد ناصر محمد الموشكي | E156: 26000 | F156: 14000 | R156: 40000 | S156: =SUM(R156:R158) -> 40000
A157: 150 | C157: 911-13583-61-1 | D157: صادق احمد احمد الموشكي | R157: 0
A158: 151 | C158: 911-13583-61-2 | D158: عبدالخالق احمد احمد الموشكي | R158: 0
A159: 152 | B159: 62 | C159: 911-13583-62 | D159: اكرم علي غالب زيدان | E159: 26000 | F159: 14000 | R159: 40000 | S159: =SUM(R159:R160) -> 40000
A160: 153 | C160: 911-13583-62-1 | D160: رياض محمد غالب محمد زيدان | R160: 0
A161: 154 | B161: 63 | C161: 911-13583-63 | D161: محمد غالب محمد زيدان | E161: 26000 | F161: 14000 | R161: 40000 | S161: =SUM(R161:R162) -> 40000
A162: 155 | C162: 911-13583-63-1 | D162: غاليه محمد قايد احمد | R162: 0
A163: 156 | B163: 64 | C163: 911-13583-64 | D163: فؤاد محمد غالب محمد ثابت زيدان | E163: 26000 | F163: 14000 | R163: 40000 | S163: =SUM(R163:R164) -> 40000
A164: 157 | C164: 911-13583-64-1 | D164: عزيه ناصر محمد زيدان | R164: 0
A165: 158 | B165: 65 | C165: 911-13583-65 | D165: علي أحمد غالب زيدان | E165: 26000 | F165: 14000 | G165: 60000 | R165: 100000 | S165: =SUM(R165:R167) -> 100000
A166: 159 | C166: 911-13583-65-1 | D166: زيدان علي أحمد غالب زيدان | R166: 0
A167: 160 | C167: 911-13583-65-2 | D167: سعد علي أحمد غالب زيدان | R167: 0
A168: 161 | B168: 66 | C168: 911-13583-66 | D168: فاطمه سعد احمد احمد زيدان | E168: 26000 | F168: 14000 | G168: 60000 | R168: 100000 | S168: =SUM(R168:R169) -> 100000
A169: 162 | C169: 911-13583-66-1 | D169: عفاف محمد احمد زيدان | R169: 0
A170: 163 | B170: 67 | C170: 911-13583-67 | D170: زيد محمد علي صالح زيدان | E170: 26000 | F170: 14000 | G170: 60000 | R170: 100000 | S170: =SUM(R170:R172) -> 100000
A171: 164 | C171: 911-13583-67-1 | D171: ذكرى ناجي صالح العفيري | R171: 0
A172: 165 | C172: 911-13583-67-2 | D172: يمن زيد محمد علي زيدان | R172: 0
A173: 166 | B173: 68 | C173: 911-13583-68 | D173: علي غالب محمد زيدان | E173: 26000 | F173: 14000 | R173: 40000 | S173: =SUM(R173:R175) -> 40000
A174: 167 | C174: 911-13583-68-1 | D174: محضه قايد احمد العفيري | R174: 0
A175: 168 | C175: 911-13583-68-2 | D175: الناظري علي غالب زيدان | R175: 0
A176: 169 | B176: 69 | C176: 911-13583-69 | D176: محمد علي غالب محمد زيدان | E176: 26000 | F176: 14000 | R176: 40000 | S176: =SUM(R176:R178) -> 40000
A177: 170 | C177: 911-13583-69-1 | D177: غصون محمد احمد زيدان | R177: 0
A178: 171 | C178: 911-13583-69-2 | D178: اماني علي صالح الفتوحي | R178: 0
A179: 172 | B179: 70 | C179: 911-13583-70 | D179: حمود مسعد محمد العفيري | E179: 26000 | F179: 14000 | R179: 40000 | S179: =SUM(R179:R181) -> 40000
A180: 173 | C180: 911-13583-70-1 | D180: كامله محمد ناصر الوتيف | R180: 0
A181: 174 | C181: 911-13583-70-2 | D181: معتز حمود مسعد محمد العفيري | R181: 0
A182: 175 | B182: 71 | C182: 911-13583-71 | D182: سعد أحمد سعيد العفيري | E182: 26000 | F182: 14000 | G182: 60000 | H182: 60000 | R182: 160000 | S182: =SUM(R182:R184) -> 160000
A183: 176 | C183: 911-13583-71-1 | D183: فاطمه محمد علي العفيري | R183: 0
A184: 177 | C184: 911-13583-71-2 | D184: ديانا سعد أحمد سعيد العفيري | R184: 0
A185: 178 | B185: 72 | C185: 911-13583-72 | D185: خالد أحمد سعيد العفيري | E185: 26000 | F185: 14000 | G185: 60000 | R185: 100000 | S185: =SUM(R185:R186) -> 100000
A186: 179 | C186: 911-13583-72-1 | D186: جميله علي غالب زيدان | R186: 0
A187: 180 | B187: 73 | C187: 911-13583-73 | D187: علي سعد ناجي العفيري | E187: 26000 | F187: 14000 | R187: 40000 | S187: =SUM(R187:R188) -> 40000
A188: 181 | C188: 911-13583-73-1 | D188: صالح علي سعد ناجي العفيري | R188: 0
A189: 182 | B189: 74 | C189: 911-13583-74 | D189: أحمد علي سعد العفيري | E189: 26000 | F189: 14000 | R189: 40000 | S189: =SUM(R189:R190) -> 40000
A190: 183 | C190: 911-13583-74-1 | D190: ليبيا محمد غالب | R190: 0
A191: 184 | B191: 75 | C191: 911-13583-75 | D191: امل علي سعد ناجي العفيري | R191: 0 | S191: =SUM(R191:R192) -> 0
A192: 185 | C192: 911-13583-75-1 | D192: نصر علي سعد العفيري | R192: 0
A193: 186 | B193: 76 | C193: 911-13583-76 | D193: جمال جميل مسعد محمد زيدان | E193: 26000 | R193: 26000 | S193: =SUM(R193:R194) -> 26000
A194: 187 | C194: 911-13583-76-1 | D194: جميل مسعد محمد علي زيدان | R194: 0
A195: 188 | B195: 77 | C195: 911-13583-77 | D195: مراد علي غالب محمد زيدان | E195: 26000 | F195: 14000 | R195: 40000 | S195: =SUM(R195:R196) -> 40000
A196: 189 | C196: 911-13583-77-1 | D196: هديه محمد قايد الفقيه | R196: 0
A197: 190 | B197: 78 | C197: 911-13583-78 | D197: عبد الكريم غالب قايد زيدان | E197: 26000 | F197: 14000 | R197: 40000 | S197: =SUM(R197:R198) -> 40000
A198: 191 | C198: 911-13583-78-1 | D198: اسماء احمد حسن علي | R198: 0
A199: 192 | B199: 79 | C199: 911-13583-79 | D199: لطف غالب قايد زيدان | E199: 26000 | F199: 14000 | R199: =SUM(E199:Q199) -> 40000 | S199: =SUM(R199:R200) -> 40000
A200: 193 | C200: 911-13583-79-1 | D200: ريسيا محمد غالب زيدان | R200: 0
... 15 more rows

Sheet تحليلي دفعة 2 - مع الفنيين (hidden)
A1: الجمهورية اليمنية | E1: كشف تحليلي للدفعة رقم (2) (مستخلص 2) المستحقة لمالكي السقايات | N1: مشروع: السقايات الخاصة لقرية الموقعة - عزلة موشك
A2: رثاسة مجلس الوزراء | E2: للفترة من 12 / 03 / 2021 م الى 21 / 03 / 2021 م | N2: مديرية مغرب عنس - ذمار
A3: الصندوق الإجتماعي للتنمية فرع ذمار - البيضاء | N3: رقم المشروع: 13583 - 911
A4: وحدة المياه والبيئة | E4: نسبة الإنجاز = 6,196,000 * 100 / 36,288,000 = 17.07% | N4: رقم الدفعة: (2)
A5: قطاع المياه | N5: مبلغ الدفعة = | P5: =R215 -> 6468510
A6: م | B6: رقم السقاية | C6: كود المستفيد | D6: البند اسم مالك السقاية | E6: الحفر(أ) | F6: الحفر(ب) | G6: المباني بانواعها المختلفة (أ) | H6: المباني بانواعها المختلفة (ب) | I6: ارضية السقايات (أ) | J6: ارضية السقايات (ب) | K6: التلبيس (أ) | L6: التلبيس (ب) | M6: انجاز 50% من السطح بانواعة المختلفة | N6: اكمال السقف مع المعالجة بطلاء مناسب للبيئة | O6: ملحقات السقاية (انابيب التوصيل, حنفيه ان وجدت,غطاء فتحة السقف,فلتر التنظيف) | P6: تنظيف المساحات الساكبه | Q6: رفع المخلفات | R6: الاجمالي | S6: إجمالي المبلغ المنصرف لكل سقاية | V6: 36288000
E7: 26000 | F7: 14000 | G7: 60000 | H7: 60000 | I7: 26000 | J7: 26000 | K7: 30000 | L7: 30000 | M7: 70000 | N7: 40000 | O7: 22000 | P7: 14000 | Q7: 14000 | R7: =SUM(E7:Q7) -> 432000
A8: 1 | B8: 1 | C8: 911-13583-1 | D8: زين احمد احمد الظاهري | H8: 60000 | R8: 60000 | S8: =SUM(R8:R10) -> 60000
A9: =A8+1 -> 2 | C9: 911-13583-1-1 | D9: أيمن محمد ناصر محمد | R9: 0
A10: =A9+1 -> 3 | C10: 911-13583-1-2 | D10: أشرف محمد ناصر محمد | R10: 0
A11: 4 | B11: 2 | C11: 911-13583-2 | D11: يحيى ناصر محمد الموشكي | G11: 60000 | H11: 60000 | R11: 120000 | S11: =SUM(R11:R13) -> 120000
A12: 5 | C12: 911-13583-2-1 | D12: البدر يحيى ناصر محمد الموشكي | R12: 0
A13: 6 | C13: 911-13583-2-2 | D13: اسماء صالح علي ناصر اليريمي | R13: 0
A14: 7 | B14: 3 | C14: 911-13583-3 | D14: صلاح الدين ناصر محمد الموشكي | H14: 60000 | I14: 26000 | R14: 86000 | S14: =SUM(R14:R15) -> 86000
A15: 8 | C15: 911-13583-3-1 | D15: سبأ أحمد أحمد ناصر الظاهري | R15: 0
A16: 9 | B16: 4 | C16: 911-13583-4 | D16: لطيفه حسن علي ناصر اليريمي | R16: 0 | S16: =SUM(R16:R17) -> 0
A17: 10 | C17: 911-13583-4-1 | D17: عبد الواحد محسن محمد | R17: 0
A18: 11 | B18: 5 | C18: 911-13583-5 | D18: جمال أحمد ثابت محمد الموشكي | E18: 26000 | F18: 14000 | R18: 40000 | S18: =SUM(R18:R19) -> 40000
A19: 12 | C19: 911-13583-5-1 | D19: نورا صالح علي محمد الموشكي | R19: 0
A20: 13 | B20: 6 | C20: 911-13583-6 | D20: بدره أحمد ثابت محمد سعيد | E20: 26000 | F20: 14000 | R20: 40000 | S20: =SUM(R20:R22) -> 40000
A21: 14 | C21: 911-13583-6-1 | D21: شعيب أحمد ثابت الموشكي | R21: 0
A22: 15 | C22: 911-13583-6-2 | D22: فاطمه حسين غالب | R22: 0
A23: 16 | B23: 7 | C23: 911-13583-7 | D23: ماجد ثابت عبد الله الموشكي | E23: 26000 | F23: 14000 | G23: 60000 | R23: 100000 | S23: =SUM(R23:R24) -> 100000
A24: 17 | C24: 911-13583-7-1 | D24: عائشه محمد سعد سعيد | R24: 0
A25: 18 | B25: 8 | C25: 911-13583-8 | D25: رزيقه محمد حسين المحلي | R25: 0 | S25: =SUM(R25:R26) -> 0
A26: 19 | C26: 911-13583-8-1 | D26: نجم الدين محمد عبدالله | R26: 0
A27: 20 | B27: 9 | C27: 911-13583-9 | D27: عادل علي محمد الموشكي | G27: 60000 | H27: 60000 | R27: 120000 | S27: =SUM(R27:R29) -> 120000
A28: 21 | C28: 911-13583-9-1 | D28: الصديق عادل علي الموشكي | R28: 0
A29: 22 | C29: 911-13583-9-2 | D29: سميره يحيى ثابت سعد | R29: 0
A30: 23 | B30: 10 | C30: 911-13583-10 | D30: عبدالملك محمد علي سعيد الموشكي | G30: 60000 | H30: 60000 | R30: 120000 | S30: =SUM(R30:R32) -> 120000
A31: 24 | C31: 911-13583-10-1 | D31: محمد علي سعيد الموشكي | R31: 0
A32: 25 | C32: 911-13583-10-2 | D32: نجلاء محمد صالح علي | R32: 0
A33: 26 | B33: 11 | C33: 911-13583-11 | D33: كريمه حسن علي سعيد | G33: 60000 | R33: 60000 | S33: =SUM(R33:R34) -> 60000
A34: 27 | C34: 911-13583-11-1 | D34: عبد الرحمن محمد يحيى الموشكي | R34: 0
A35: 28 | B35: 12 | C35: 911-13583-12 | D35: محمد سعد سعيد الموشكي | G35: 60000 | R35: 60000 | S35: =SUM(R35:R37) -> 60000
A36: 29 | C36: 911-13583-12-1 | D36: عبد السلام محمد سعد سعيد | R36: 0
A37: 30 | C37: 911-13583-12-2 | D37: نبيله حسين علي أحمد | R37: 0
A38: 31 | B38: 13 | C38: 911-13583-13 | D38: صالح محمد سعيد الموشكي | G38: 60000 | H38: 60000 | R38: 120000 | S38: =SUM(R38:R39) -> 120000
A39: 32 | C39: 911-13583-13-1 | D39: كفاء حسن علي ناصر اليريمي | R39: 0
A40: 33 | B40: 14 | C40: 911-13583-14 | D40: عادل قائد ناجي الموشكي | R40: 0 | S40: =SUM(R40:R42) -> 0
A41: 34 | C41: 911-13583-14-1 | D41: العماد عادل قائد ناجي الموشكي | R41: 0
A42: 35 | C42: 911-13583-14-2 | D42: نجلاء محمد ناجي الشجني | R42: 0
A43: 36 | B43: 15 | C43: 911-13583-15 | D43: محسن عبد الله حسن الموشكي | G43: 60000 | R43: 60000 | S43: =SUM(R43:R44) -> 60000
A44: 37 | C44: 911-13583-15-1 | D44: ايمان علي ناجي حسن | R44: 0
A45: 38 | B45: 16 | C45: 911-13583-16 | D45: فارس محمد سعد سعيد الموشكي | G45: 60000 | R45: 60000 | S45: =SUM(R45:R46) -> 60000
A46: 39 | C46: 911-13583-16-1 | D46: انتصار علي محمد سعيد ناصر | R46: 0
A47: 40 | B47: 17 | C47: 911-13583-17 | D47: أحمد ناصر عبد الله الموشكي | R47: 0 | S47: =SUM(R47:R48) -> 0
A48: 41 | C48: 911-13583-17-1 | D48: منال علي عبد الله حسن | R48: 0
A49: 42 | B49: 18 | C49: 911-13583-18 | D49: هيثم صالح صالح حسن | G49: 60000 | R49: 60000 | S49: =SUM(R49:R50) -> 60000
A50: 43 | C50: 911-13583-18-1 | D50: اخلاق سعد ناجي حسن الموقعي | R50: 0
A51: 44 | B51: 19 | C51: 911-13583-19 | D51: حفظ الله محمد سعيد الموشكي | G51: 60000 | R51: 60000 | S51: =SUM(R51:R53) -> 60000
A52: 45 | C52: 911-13583-19-1 | D52: امنه علي يحيى حسن الحاج | R52: 0
A53: 46 | C53: 911-13583-19-2 | D53: حفيظه يحيى علي سعيد | R53: 0
A54: 47 | B54: 20 | C54: 911-13583-20 | D54: يحيى ثابت محمد سعيد الموشكي | H54: 60000 | I54: 26000 | R54: 86000 | S54: =SUM(R54:R56) -> 86000
A55: 48 | C55: 911-13583-20-1 | D55: اديبه علي أحمد سعيد | R55: 0
A56: 49 | C56: 911-13583-20-2 | D56: العز يحيى ثابت محمد | R56: 0
A57: 50 | B57: 21 | C57: 911-13583-21 | D57: عبد الرحمن عبد الواحد محسن محمد | H57: 60000 | I57: 26000 | R57: 86000 | S57: =SUM(R57:R59) -> 86000
A58: 51 | C58: 911-13583-21-1 | D58: محمد عبد الواحد محسن محمد | R58: 0
A59: 52 | C59: 911-13583-21-2 | D59: نبيله سعد سعيد | R59: 0
A60: 53 | B60: 22 | C60: 911-13583-22 | D60: عزالدين محمد محمد سعيد الموشكي | H60: 60000 | R60: 60000 | S60: =SUM(R60:R61) -> 60000
A61: 54 | C61: 911-13583-22-1 | D61: تهاني علي ناجي سعيد | R61: 0
A62: 55 | B62: 23 | C62: 911-13583-23 | D62: حمود عبده ناجي حسن الموقعي | E62: 26000 | F62: 14000 | G62: 60000 | H62: 60000 | R62: 160000 | S62: =SUM(R62:R63) -> 160000
A63: 56 | C63: 911-13583-23-1 | D63: امان على حسين الموقعي | R63: 0
A64: 57 | B64: 24 | C64: 911-13583-24 | D64: محمد عبده ناجي الموشكي | G64: 60000 | H64: 60000 | R64: 120000 | S64: =SUM(R64:R65) -> 120000
A65: 58 | C65: 911-13583-24-1 | D65: أحلام محمد صالح الموقعي | R65: 0
A66: 59 | B66: 25 | C66: 911-13583-25 | D66: صادق علي ناصر العنسي | G66: 60000 | R66: 60000 | S66: =SUM(R66:R67) -> 60000
A67: 60 | C67: 911-13583-25-1 | D67: هدى محمد عبد الله حسن | R67: 0
A68: 61 | B68: 26 | C68: 911-13583-26 | D68: ضيف الله علي ناجي حسن | R68: 0 | S68: =SUM(R68:R70) -> 0
A69: 62 | C69: 911-13583-26-1 | D69: علي ناجي صالح علي العنسي | R69: 0
A70: 63 | C70: 911-13583-26-2 | D70: جميله علي سعد ناجي | R70: 0
A71: 64 | B71: 27 | C71: 911-13583-27 | D71: امير سعد ناجي حسن | G71: 60000 | I71: 26000 | R71: =SUM(E71:Q71) -> 86000 | S71: =SUM(R71:R73) -> 86000
A72: 65 | C72: 911-13583-27-1 | D72: سعد ناجي حسن الموشكي | R72: 0
A73: 66 | C73: 911-13583-27-2 | D73: عزيه سعد ناصر اليريمي | R73: 0
A74: =A73+1 -> 67 | B74: 28 | C74: 911-13583-28 | D74: محمد مسعد ناجي حسن الموشكي | E74: 26000 | F74: 14000 | R74: 40000 | S74: =SUM(R74:R75) -> 40000
A75: 68 | C75: 911-13583-28-1 | D75: روضة حسن علي اليريمي | R75: 0
A76: 69 | B76: 29 | C76: 911-13583-29 | D76: رشاد احمد صالح حسن العنسي | R76: 0 | S76: =SUM(R76:R78) -> 0
A77: 70 | C77: 911-13583-29-1 | D77: بكيل أحمد صالح حسن العنسي | R77: 0
A78: 71 | C78: 911-13583-29-2 | D78: عُلا أحمد صالح حسن العنسي | R78: 0
A79: 72 | B79: 30 | C79: 911-13583-30 | D79: الشرفي علي ناجي سعيد | G79: 60000 | H79: 60000 | R79: 120000 | S79: =SUM(R79:R81) -> 120000
A80: 73 | C80: 911-13583-30-1 | D80: كاتبه حسن اليريمي | R80: 0
A81: 74 | C81: 911-13583-30-2 | D81: شيماء علي ناجي سعيد | R81: 0
A82: 75 | B82: 31 | C82: 911-13583-31 | D82: علي علي محمد ناصر الموشكي | H82: 60000 | R82: 60000 | S82: =SUM(R82:R83) -> 60000
A83: 76 | C83: 911-13583-31-1 | D83: امان علي ناجي حسن | R83: 0
A84: 77 | B84: 32 | C84: 911-13583-32 | D84: صادق علي محمد سعيد ناصر | H84: 60000 | R84: 60000 | S84: =SUM(R84:R85) -> 60000
A85: 78 | C85: 911-13583-32-1 | D85: سماح عبده علي الآنسي | R85: 0
A86: 79 | B86: 33 | C86: 911-13583-33 | D86: محمد علي محمد سعيد | G86: 60000 | R86: 60000 | S86: =SUM(R86:R87) -> 60000
A87: 80 | C87: 911-13583-33-1 | D87: نديمه عبده ناجي حسن | R87: 0
A88: 81 | B88: 34 | C88: 911-13583-34 | D88: محي الدين محمد محمد الموشكى | H88: 60000 | R88: 60000 | S88: =SUM(R88:R89) -> 60000
A89: 82 | C89: 911-13583-34-1 | D89: خيزران محمد حسين الظاهري | R89: 0
A90: 83 | B90: 35 | C90: 911-13583-35 | D90: علي محمد سعيد الموشكي | H90: 60000 | R90: 60000 | S90: =SUM(R90:R92) -> 60000
A91: 84 | C91: 911-13583-35-1 | D91: مجاهد علي محمد سعيد الموشكي | R91: 0
A92: 85 | C92: 911-13583-35-2 | D92: دليله محمد محمد سعيد | R92: 0
A93: 86 | B93: 36 | C93: 911-13583-36 | D93: محمد محسن ناجي الشجني | R93: 0 | S93: =SUM(R93:R95) -> 0
A94: 87 | C94: 911-13583-36-1 | D94: جميله صالح علي اليريمي | R94: 0
A95: 88 | C95: 911-13583-36-2 | D95: سمر حسن مسعد علي | R95: 0
A96: 89 | B96: 37 | C96: 911-13583-37 | D96: مراد مجاهد على محمد الموقعي | G96: 60000 | H96: 60000 | R96: 120000 | S96: =SUM(R96:R98) -> 120000
A97: 90 | C97: 911-13583-37-1 | D97: امان ناصر محمد الموشكي | R97: 0
A98: 91 | C98: 911-13583-37-2 | D98: امة الرحمن عبد الواحد محسن | R98: 0
A99: 92 | B99: 38 | C99: 911-13583-38 | D99: حفظ الله صالح محمد صالح الموشكي | G99: 60000 | H99: 60000 | R99: 120000 | S99: =SUM(R99:R101) -> 120000
A100: 93 | C100: 911-13583-38-1 | D100: اميره ناصر محمد الموشكي | R100: 0
A101: 94 | C101: 911-13583-38-2 | D101: حفصه حفظ الله صالح الموشكي | R101: 0
A102: 95 | B102: 39 | C102: 911-13583-39 | D102: عبد الله سعد حسن علي الموشكي | G102: 60000 | H102: 60000 | I102: 26000 | R102: 146000 | S102: =SUM(R102:R104) -> 146000
A103: 96 | C103: 911-13583-39-1 | D103: امينه يحيى محمد علي سعد | R103: 0
A104: 97 | C104: 911-13583-39-2 | D104: بسمه عبدالله سعد الموشكي | R104: 0
A105: 98 | B105: 40 | C105: 911-13583-40 | D105: تقوى محمد أحمد الظاهري | R105: 0 | S105: =SUM(R105:R107) -> 0
A106: 99 | C106: 911-13583-40-1 | D106: علي سعد عبدالله حسن | R106: 0
A107: 100 | C107: 911-13583-40-2 | D107: مجاهد سعد عبد الله حسن | R107: 0
A108: 101 | B108: 41 | C108: 911-13583-41 | D108: عبد الله محمد سعيد الموشكي | R108: 0 | S108: =SUM(R108:R110) -> 0
A109: 102 | C109: 911-13583-41-1 | D109: نبات سعد حسن علي | R109: 0
A110: 103 | C110: 911-13583-41-2 | D110: سليم عبدالله محمد سعيد | R110: 0
A111: 104 | B111: 42 | C111: 911-13583-42 | D111: علي صالح محمد سعيد أحمد | R111: 0 | S111: =SUM(R111:R112) -> 0
A112: 105 | C112: 911-13583-42-1 | D112: سماح علي أحمد الجبري | R112: 0
A113: 106 | B113: 43 | C113: 911-13583-43 | D113: محمد صالح محمد سعيد الموشكي | G113: 60000 | R113: 60000 | S113: =SUM(R113:R114) -> 60000
A114: 107 | C114: 911-13583-43-1 | D114: ندية محمد عبده الظاهري | R114: 0
A115: 108 | B115: 44 | C115: 911-13583-44 | D115: عبده علي محمد الموشكي | H115: 60000 | R115: 60000 | S115: =SUM(R115:R116) -> 60000
A116: 109 | C116: 911-13583-44-1 | D116: الهام قائد ناجي الشجني | R116: 0
A117: 110 | B117: 45 | C117: 911-13583-45 | D117: ابراهيم يحيى علي سعيد الموشكي | G117: 60000 | R117: 60000 | S117: =SUM(R117:R118) -> 60000
A118: 111 | C118: 911-13583-45-1 | D118: امل محمد ناصر محمد الموشكي | R118: 0
A119: 112 | B119: 46 | C119: 911-13583-46 | D119: حميد عبده ناجي حسن | H119: 60000 | R119: 60000 | S119: =SUM(R119:R121) -> 60000
A120: 113 | C120: 911-13583-46-1 | D120: عبده ناجي حسن | R120: 0
A121: 114 | C121: 911-13583-46-2 | D121: ابتسام عبد الله سعد حسن | R121: 0
A122: 115 | B122: 47 | C122: 911-13583-47 | D122: مراد ناجي أحمد غالب علي | G122: 60000 | H122: 60000 | I122: 26000 | R122: 146000 | S122: =SUM(R122:R124) -> 146000
A123: 116 | C123: 911-13583-47-1 | D123: نوريه سعد علي حزام | R123: 0
A124: 117 | C124: 911-13583-47-2 | D124: غانيه ناجي أحمد غالب علي | R124: 0
A125: 118 | B125: 48 | C125: 911-13583-48 | D125: صدام ناجي أحمد غالب الموقعي | H125: 60000 | I125: 26000 | R125: 86000 | S125: =SUM(R125:R126) -> 86000
A126: 119 | C126: 911-13583-48-1 | D126: رسيله يحيى أحمد حسن الموشكي | R126: 0
A127: 120 | B127: 49 | C127: 911-13583-49 | D127: عبده ناجي أحمد الموشكي | G127: 60000 | H127: 60000 | I127: 26000 | R127: 146000 | S127: =SUM(R127:R128) -> 146000
A128: 121 | C128: 911-13583-49-1 | D128: جميله محمد علي حسن المحلى | R128: 0
A129: 122 | B129: 50 | C129: 911-13583-50 | D129: خليل محمد صالح أحمد الموشكي | H129: 60000 | R129: 60000 | S129: =SUM(R129:R130) -> 60000
A130: 123 | C130: 911-13583-50-1 | D130: سوسن حسين محمد حزام الموشكي | R130: 0
A131: 124 | B131: 51 | C131: 911-13583-51 | D131: عبده محمد صالح أحمد الموشكي | H131: 60000 | I131: 26000 | R131: 86000 | S131: =SUM(R131:R132) -> 86000
A132: 125 | C132: 911-13583-51-1 | D132: امل ناصر سعد ناصر الموشكي | R132: 0
A133: 126 | B133: 52 | C133: 911-13583-52 | D133: علي ناجي أحمد الموشكي | H133: 60000 | R133: 60000 | S133: =SUM(R133:R134) -> 60000
A134: 127 | C134: 911-13583-52-1 | D134: ملوك محمد أحمد المقبلي | R134: 0
A135: 128 | B135: 53 | C135: 911-13583-53 | D135: رمزي محمد صالح أحمد | H135: 60000 | R135: =SUM(E135:Q135) -> 60000 | S135: =SUM(R135:R137) -> 60000
A136: 129 | C136: 911-13583-53-1 | D136: محمد صالح أحمد الموشكي | R136: 0
A137: 130 | C137: 911-13583-53-2 | D137: مبروك محمد صالح أحمد | R137: 0
A138: =A137+1 -> 131 | B138: 54 | C138: 911-13583-54 | D138: مديره محمد ناجي الموشكي | H138: 60000 | I138: 26000 | R138: 86000 | S138: =SUM(R138:R139) -> 86000
A139: 132 | C139: 911-13583-54-1 | D139: هلال محمد ناجي الموشكي | R139: 0
A140: 133 | B140: 55 | C140: 911-13583-55 | D140: كاتبه عبد الله محمد الموشكي | H140: 60000 | R140: 60000 | S140: =SUM(R140:R142) -> 60000
A141: 134 | C141: 911-13583-55-1 | D141: ناديه مجاهد عبد الله محمد الموشكي | R141: 0
A142: 135 | C142: 911-13583-55-2 | D142: صلاح محمد صالح الموشكي | R142: 0
A143: 136 | B143: 56 | C143: 911-13583-56 | D143: عمار محمد صالح الموشكي | G143: 60000 | H143: 60000 | I143: 26000 | R143: 146000 | S143: =SUM(R143:R145) -> 146000
A144: 137 | C144: 911-13583-56-1 | D144: خالد محمد صالح علي الموشكي | R144: 0
A145: 138 | C145: 911-13583-56-2 | D145: محمد محمد صالح علي الموشكي | R145: 0
A146: 139 | B146: 57 | C146: 911-13583-57 | D146: مبروك محمد صالح على الموشكي | G146: 60000 | H146: 60000 | R146: 120000 | S146: =SUM(R146:R148) -> 120000
A147: 140 | C147: 911-13583-57-1 | D147: بلقيس يحيى علي سعيد | R147: 0
A148: 141 | C148: 911-13583-57-2 | D148: مستوره علي محمد قاسم | R148: 0
A149: 142 | B149: 58 | C149: 911-13583-58 | D149: عدنان صالح صالح حسن | F149: 14000 | G149: 60000 | R149: 74000 | S149: =SUM(R149:R150) -> 74000
A150: 143 | C150: 911-13583-58-1 | D150: حنان ناجي علي سعد الجلال | R150: 0
A151: 144 | B151: 59 | C151: 911-13583-59 | D151: عبد الحكيم محسن علي صالح | R151: 0 | S151: =SUM(R151:R153) -> 0
A152: 145 | C152: 911-13583-59-1 | D152: اسماعيل محسن علي صالح | R152: 0
A153: 146 | C153: 911-13583-59-2 | D153: محسن علي صالح صالح الموشكي | R153: 0
A154: 147 | B154: 60 | C154: 911-13583-60 | D154: سعد عبدالله حسن الموشكي | R154: 0 | S154: =SUM(R154:R155) -> 0
A155: 148 | C155: 911-13583-60-1 | D155: حاكمه محمد علي أحمد | R155: 0
A156: 149 | B156: 61 | C156: 911-13583-61 | D156: (المدرسة) محمد ناصر محمد الموشكي | R156: 0 | S156: =SUM(R156:R158) -> 0
A157: 150 | C157: 911-13583-61-1 | D157: صادق احمد احمد الموشكي | R157: 0
A158: 151 | C158: 911-13583-61-2 | D158: عبدالخالق احمد احمد الموشكي | R158: 0
A159: 152 | B159: 62 | C159: 911-13583-62 | D159: اكرم علي غالب زيدان | G159: 60000 | R159: 60000 | S159: =SUM(R159:R160) -> 60000
A160: 153 | C160: 911-13583-62-1 | D160: رياض محمد غالب محمد زيدان | R160: 0
A161: 154 | B161: 63 | C161: 911-13583-63 | D161: محمد غالب محمد زيدان | G161: 60000 | R161: 60000 | S161: =SUM(R161:R162) -> 60000
A162: 155 | C162: 911-13583-63-1 | D162: غاليه محمد قايد احمد | R162: 0
A163: 156 | B163: 64 | C163: 911-13583-64 | D163: فؤاد محمد غالب محمد ثابت زيدان | G163: 60000 | R163: 60000 | S163: =SUM(R163:R164) -> 60000
A164: 157 | C164: 911-13583-64-1 | D164: عزيه ناصر محمد زيدان | R164: 0
A165: 158 | B165: 65 | C165: 911-13583-65 | D165: علي أحمد غالب زيدان | H165: 60000 | R165: 60000 | S165: =SUM(R165:R167) -> 60000
A166: 159 | C166: 911-13583-65-1 | D166: زيدان علي أحمد غالب زيدان | R166: 0
A167: 160 | C167: 911-13583-65-2 | D167: سعد علي أحمد غالب زيدان | R167: 0
A168: 161 | B168: 66 | C168: 911-13583-66 | D168: فاطمه سعد احمد احمد زيدان | H168: 60000 | R168: 60000 | S168: =SUM(R168:R169) -> 60000
A169: 162 | C169: 911-13583-66-1 | D169: عفاف محمد احمد زيدان | R169: 0
A170: 163 | B170: 67 | C170: 911-13583-67 | D170: زيد محمد علي صالح زيدان | H170: 60000 | R170: 60000 | S170: =SUM(R170:R172) -> 60000
A171: 164 | C171: 911-13583-67-1 | D171: ذكرى ناجي صالح العفيري | R171: 0
A172: 165 | C172: 911-13583-67-2 | D172: يمن زيد محمد علي زيدان | R172: 0
A173: 166 | B173: 68 | C173: 911-13583-68 | D173: علي غالب محمد زيدان | G173: 60000 | I173: 26000 | R173: 86000 | S173: =SUM(R173:R175) -> 86000
A174: 167 | C174: 911-13583-68-1 | D174: محضه قايد احمد العفيري | R174: 0
A175: 168 | C175: 911-13583-68-2 | D175: الناظري علي غالب زيدان | R175: 0
A176: 169 | B176: 69 | C176: 911-13583-69 | D176: محمد علي غالب محمد زيدان | G176: 60000 | R176: 60000 | S176: =SUM(R176:R178) -> 60000
A177: 170 | C177: 911-13583-69-1 | D177: غصون محمد احمد زيدان | R177: 0
A178: 171 | C178: 911-13583-69-2 | D178: اماني علي صالح الفتوحي | R178: 0
A179: 172 | B179: 70 | C179: 911-13583-70 | D179: حمود مسعد محمد العفيري | G179: 60000 | H179: 60000 | R179: 120000 | S179: =SUM(R179:R181) -> 120000
A180: 173 | C180: 911-13583-70-1 | D180: كامله محمد ناصر الوتيف | R180: 0
A181: 174 | C181: 911-13583-70-2 | D181: معتز حمود مسعد محمد العفيري | R181: 0
A182: 175 | B182: 71 | C182: 911-13583-71 | D182: سعد أحمد سعيد العفيري | I182: 26000 | K182: 30000 | R182: 56000 | S182: =SUM(R182:R184) -> 56000
A183: 176 | C183: 911-13583-71-1 | D183: فاطمه محمد علي العفيري | R183: 0
A184: 177 | C184: 911-13583-71-2 | D184: ديانا سعد أحمد سعيد العفيري | R184: 0
A185: 178 | B185: 72 | C185: 911-13583-72 | D185: خالد أحمد سعيد العفيري | H185: 60000 | I185: 26000 | R185: 86000 | S185: =SUM(R185:R186) -> 86000
A186: 179 | C186: 911-13583-72-1 | D186: جميله علي غالب زيدان | R186: 0
A187: 180 | B187: 73 | C187: 911-13583-73 | D187: علي سعد ناجي العفيري | G187: 60000 | H187: 60000 | R187: 120000 | S187: =SUM(R187:R188) -> 120000
A188: 181 | C188: 911-13583-73-1 | D188: صالح علي سعد ناجي العفيري | R188: 0
A189: 182 | B189: 74 | C189: 911-13583-74 | D189: أحمد علي سعد العفيري | G189: 60000 | H189: 60000 | R189: 120000 | S189: =SUM(R189:R190) -> 120000
A190: 183 | C190: 911-13583-74-1 | D190: ليبيا محمد غالب | R190: 0
A191: 184 | B191: 75 | C191: 911-13583-75 | D191: امل علي سعد ناجي العفيري | E191: 26000 | F191: 14000 | G191: 60000 | H191: 60000 | R191: 160000 | S191: =SUM(R191:R192) -> 160000
A192: 185 | C192: 911-13583-75-1 | D192: نصر علي سعد العفيري | R192: 0
A193: 186 | B193: 76 | C193: 911-13583-76 | D193: جمال جميل مسعد محمد زيدان | R193: 0 | S193: =SUM(R193:R194) -> 0
A194: 187 | C194: 911-13583-76-1 | D194: جميل مسعد محمد علي زيدان | R194: 0
A195: 188 | B195: 77 | C195: 911-13583-77 | D195: مراد علي غالب محمد زيدان | G195: 60000 | H195: 60000 | R195: 120000 | S195: =SUM(R195:R196) -> 120000
A196: 189 | C196: 911-13583-77-1 | D196: هديه محمد قايد الفقيه | R196: 0
A197: 190 | B197: 78 | C197: 911-13583-78 | D197: عبد الكريم غالب قايد زيدان | G197: 60000 | H197: 60000 | R197: 120000 | S197: =SUM(R197:R198) -> 120000
A198: 191 | C198: 911-13583-78-1 | D198: اسماء احمد حسن علي | R198: 0
A199: 192 | B199: 79 | C199: 911-13583-79 | D199: لطف غالب قايد زيدان | G199: 60000 | H199: 60000 | R199: =SUM(E199:Q199) -> 120000 | S199: =SUM(R199:R200) -> 120000
A200: 193 | C200: 911-13583-79-1 | D200: ريسيا محمد غالب زيدان | R200: 0
... 15 more rows

Sheet كشف البنك د1 مع الفنيين (hidden)
A1: الجمهورية اليمنية | E1: مشروع: السقايات الخاصة لقرية الموقعة
A2: رثاسة مجلس الوزراء | E2: عزلة موشك - مديرية مغرب عنس - م ذمار
A3: الصندوق الإجتماعي للتنمية | E3: رقم المشروع: 13583 - 911
A4: فرع ذمار - البيضاء | E4: رقم الدفعة: (1)
A5: وحدة المياه والبيئة | E5: مبلغ الدفعة: | F5: =E123 -> 4425120
A6: قطاع المياه
A7: كشف مستحقات العاملين للفترة من 6/ 3/ 2021م وحتى 2021/3/11م
A8: م | B8: رقم السقاية | C8: رقم المالك | D8: اسم مالك السقاية | E8: المبلغ | F8: التوقيع أو البصمة
A9: 1 | B9: 1 | C9: 911-13583-1 | D9: زين احمد احمد الظاهري | E9: 100000
A10: 2 | B10: 2 | C10: 911-13583-2 | D10: يحيى ناصر محمد الموشكي | E10: 40000
A11: 3 | B11: 3 | C11: 911-13583-3 | D11: صلاح الدين ناصر محمد الموشكي | E11: 100000
A12: 4 | B12: 4 | C12: 911-13583-4 | D12: لطيفه حسن علي ناصر اليريمي | E12: 100000
A13: 5 | B13: 5 | C13: 911-13583-5 | D13: جمال أحمد ثابت محمد الموشكي | E13: 0
A14: 6 | B14: 6 | C14: 911-13583-6 | D14: بدره أحمد ثابت محمد سعيد | E14: 0
A15: 7 | B15: 7 | C15: 911-13583-7 | D15: ماجد ثابت عبد الله الموشكي | E15: 0
A16: 8 | B16: 8 | C16: 911-13583-8 | D16: رزيقه محمد حسين المحلي | E16: 0
A17: 9 | B17: 9 | C17: 911-13583-9 | D17: عادل علي محمد الموشكي | E17: 40000
A18: 10 | B18: 10 | C18: 911-13583-10 | D18: عبدالملك محمد علي سعيد الموشكي | E18: 40000
A19: 11 | B19: 11 | C19: 911-13583-11 | D19: كريمه حسن علي سعيد | E19: 40000 | G19: =SUM(E9:E19) -> 460000
A20: جملة الصفحة الحالية | E20: =SUM(E9:E19) -> 460000
A23: إجمالي ما قبله | E23: =E20 -> 460000
A24: 12 | B24: 12 | C24: 911-13583-12 | D24: محمد سعد سعيد الموشكي | E24: 40000
A25: 13 | B25: 13 | C25: 911-13583-13 | D25: صالح محمد سعيد الموشكي | E25: 40000 | H25: صورة الكرت باسم صالح محمد سعيد احمد
A26: 14 | B26: 14 | C26: 911-13583-14 | D26: عادل قائد ناجي الموشكي | E26: 0
A27: 15 | B27: 15 | C27: 911-13583-15 | D27: محسن عبد الله حسن الموشكي | E27: 40000
A28: 16 | B28: 16 | C28: 911-13583-16 | D28: فارس محمد سعد سعيد الموشكي | E28: 40000
A29: 17 | B29: 17 | C29: 911-13583-17 | D29: أحمد ناصر عبد الله الموشكي | E29: 0 | H29: صورة الكرت باسم أحمد ناصر عبد الله حسن الموشكي
A30: 18 | B30: 18 | C30: 911-13583-18 | D30: هيثم صالح صالح حسن | E30: 40000 | H30: صورة الكرت باسم هيثم صالح صالح الموشكي
A31: 19 | B31: 19 | C31: 911-13583-19 | D31: حفظ الله محمد سعيد الموشكي | E31: 40000
A32: 20 | B32: 20 | C32: 911-13583-20 | D32: يحيى ثابت محمد سعيد الموشكي | E32: 100000
A33: 21 | B33: 21 | C33: 911-13583-21 | D33: عبد الرحمن عبد الواحد محسن محمد | E33: 100000
A34: 22 | B34: 22 | C34: 911-13583-22 | D34: عزالدين محمد محمد سعيد الموشكي | E34: 100000 | G34: =SUM(E24:E34) -> 540000
A35: جملة الصفحة الحالية | E35: =SUM(E23:E34) -> 1000000
A38: إجمالي ما قبله | E38: =E35 -> 1000000
A39: 23 | B39: 23 | C39: 911-13583-23 | D39: حمود عبده ناجي حسن الموقعي | E39: 0
A40: 24 | B40: 24 | C40: 911-13583-24 | D40: محمد عبده ناجي الموشكي | E40: 40000
A41: 25 | B41: 25 | C41: 911-13583-25 | D41: صادق علي ناصر العنسي | E41: 40000
A42: 26 | B42: 26 | C42: 911-13583-26 | D42: ضيف الله علي ناجي حسن | E42: 0 | H42: صورة الكرت بغسم ضيف الله علي ناجي الموشكي
A43: 27 | B43: 27 | C43: 911-13583-27 | D43: امير سعد ناجي حسن | E43: 40000
A44: 28 | B44: 28 | C44: 911-13583-28 | D44: محمد مسعد ناجي حسن الموشكي | E44: 0
A45: 29 | B45: 29 | C45: 911-13583-29 | D45: رشاد احمد صالح حسن العنسي | E45: 100000
A46: 30 | B46: 30 | C46: 911-13583-30 | D46: الشرفي علي ناجي سعيد | E46: 40000
A47: 31 | B47: 31 | C47: 911-13583-31 | D47: علي علي محمد ناصر الموشكي | E47: 100000
A48: 32 | B48: 32 | C48: 911-13583-32 | D48: صادق علي محمد سعيد ناصر | E48: 100000
A49: 33 | B49: 33 | C49: 911-13583-33 | D49: محمد علي محمد سعيد | E49: 40000 | G49: =SUM(E39:E49) -> 500000
A50: جملة الصفحة الحالية | E50: =SUM(E38:E49) -> 1500000
A53: إجمالي ما قبله | E53: =E50 -> 1500000
A54: 34 | B54: 34 | C54: 911-13583-34 | D54: محي الدين محمد محمد الموشكى | E54: 100000
A55: 35 | B55: 35 | C55: 911-13583-35 | D55: علي محمد سعيد الموشكي | E55: 100000
A56: 36 | B56: 36 | C56: 911-13583-36 | D56: محمد محسن ناجي الشجني | E56: 0
A57: 37 | B57: 37 | C57: 911-13583-37 | D57: مراد مجاهد علي محمد الموقعي | E57: 40000 | H57: صورة الكرت باسم مراد مجاهد علي الموقعي
A58: 38 | B58: 38 | C58: 911-13583-38 | D58: حفظ الله صالح محمد صالح الموشكي | E58: 40000
A59: 39 | B59: 39 | C59: 911-13583-39 | D59: عبد الله سعد حسن علي الموشكي | E59: 40000
A60: 40 | B60: 40 | C60: 911-13583-40 | D60: تقوى محمد أحمد الظاهري | E60: 0
A61: 41 | B61: 41 | C61: 911-13583-41 | D61: عبد الله محمد سعيد الموشكي | E61: 0
A62: 42 | B62: 42 | C62: 911-13583-42 | D62: علي صالح محمد سعيد أحمد | E62: 0
A63: 43 | B63: 43 | C63: 911-13583-43 | D63: محمد صالح محمد سعيد الموشكي | E63: 40000
A64: 44 | B64: 44 | C64: 911-13583-44 | D64: عبده علي محمد الموشكي | E64: 100000 | G64: =SUM(E54:E64) -> 460000
A65: جملة الصفحة الحالية | E65: =SUM(E53:E64) -> 1960000
A68: إجمالي ما قبله | E68: =E65 -> 1960000
A69: 45 | B69: 45 | C69: 911-13583-45 | D69: ابراهيم يحيى علي سعيد الموشكي | E69: 40000
A70: 46 | B70: 46 | C70: 911-13583-46 | D70: حميد عبده ناجي حسن | E70: 100000 | H70: تم بالخطأ إدراج صورة مراد ناجي رقم 47 بدل حميد عبده 46
A71: 47 | B71: 47 | C71: 911-13583-47 | D71: مراد ناجي أحمد غالب علي | E71: 40000
A72: 48 | B72: 48 | C72: 911-13583-48 | D72: صدام ناجي أحمد غالب الموقعي | E72: 100000
A73: 49 | B73: 49 | C73: 911-13583-49 | D73: عبده ناجي أحمد الموشكي | E73: 40000
A74: 50 | B74: 50 | C74: 911-13583-50 | D74: خليل محمد صالح أحمد الموشكي | E74: 100000
A75: 51 | B75: 51 | C75: 911-13583-51 | D75: عبده محمد صالح أحمد الموشكي | E75: 100000
A76: 52 | B76: 52 | C76: 911-13583-52 | D76: علي ناجي أحمد الموشكي | E76: 100000
A77: 53 | B77: 53 | C77: 911-13583-53 | D77: رمزي محمد صالح أحمد | E77: 100000
A78: 54 | B78: 54 | C78: 911-13583-54 | D78: مديره محمد ناجي الموشكي | E78: 100000
A79: 55 | B79: 55 | C79: 911-13583-55 | D79: كاتبه عبد الله محمد الموشكي | E79: 100000 | G79: =SUM(E69:E79) -> 920000
A80: جملة الصفحة الحالية | E80: =SUM(E68:E79) -> 2880000
A83: إجمالي ما قبله | E83: =E80 -> 2880000
A84: 56 | B84: 56 | C84: 911-13583-56 | D84: عمار محمد صالح الموشكي | E84: 40000
A85: 57 | B85: 57 | C85: 911-13583-57 | D85: مبروك محمد صالح علي الموشكي | E85: 40000 | H85: صورة الكرت باسم مبروك محمد صالح علي
A86: 58 | B86: 58 | C86: 911-13583-58 | D86: عدنان صالح صالح حسن | E86: 26000
A87: 59 | B87: 59 | C87: 911-13583-59 | D87: عبد الحكيم محسن علي صالح | E87: 0 | H87: صورة الكرت باسم عبد الحكيم محسن علي الموشكي
A88: 60 | B88: 60 | C88: 911-13583-60 | D88: سعد عبدالله حسن الموشكي | E88: 0
A89: 61 | B89: 61 | C89: 911-13583-61 | D89: (المدرسة) محمد ناصر محمد الموشكي | E89: 40000
A90: 62 | B90: 62 | C90: 911-13583-62 | D90: اكرم علي غالب زيدان | E90: 40000
A91: 63 | B91: 63 | C91: 911-13583-63 | D91: محمد غالب محمد زيدان | E91: 40000
A92: 64 | B92: 64 | C92: 911-13583-64 | D92: فؤاد محمد غالب محمد زيدان | E92: 40000 | H92: صورة الكرت باسم فؤاد محمد غالب محمد ثابت زيدان
A93: 65 | B93: 65 | C93: 911-13583-65 | D93: علي أحمد غالب زيدان | E93: 100000
A94: 66 | B94: 66 | C94: 911-13583-66 | D94: فاطمه سعد احمد احمد زيدان | E94: 100000 | G94: =SUM(E84:E94) -> 466000 | H94: بطاقتها باسم فاطمة سعد احمد إسماعيل العفيري
A95: جملة الصفحة الحالية | E95: =SUM(E83:E94) -> 3346000
A98: إجمالي ما قبله | E98: =E95 -> 3346000
A99: 67 | B99: 67 | C99: 911-13583-67 | D99: زيد محمد علي صالح زيدان | E99: 100000
A100: 68 | B100: 68 | C100: 911-13583-68 | D100: علي غالب محمد زيدان | E100: 40000
A101: 69 | B101: 69 | C101: 911-13583-69 | D101: محمد علي غالب محمد زيدان | E101: 40000
A102: 70 | B102: 70 | C102: 911-13583-70 | D102: حمود مسعد محمد العفيري | E102: 40000
A103: 71 | B103: 71 | C103: 911-13583-71 | D103: سعد أحمد سعيد العفيري | E103: 160000
A104: 72 | B104: 72 | C104: 911-13583-72 | D104: خالد أحمد سعيد العفيري | E104: 100000
A105: 73 | B105: 73 | C105: 911-13583-73 | D105: علي سعد ناجي العفيري | E105: 40000
A106: 74 | B106: 74 | C106: 911-13583-74 | D106: أحمد علي سعد العفيري | E106: 40000
A107: 75 | B107: 75 | C107: 911-13583-75 | D107: امل علي سعد ناجي العفيري | E107: 0
A108: 76 | B108: 76 | C108: 911-13583-76 | D108: جمال جميل مسعد محمد زيدان | E108: 26000 | H108: صورة الكرت باسم جمال جميل مسعد زيدان
A109: 77 | B109: 77 | C109: 911-13583-77 | D109: مراد علي غالب محمد زيدان | E109: 40000 | G109: =SUM(E99:E109) -> 626000
A110: جملة الصفحة الحالية | E110: =SUM(E98:E109) -> 3972000
A113: إجمالي ما قبله | E113: =E110 -> 3972000
A114: 78 | B114: 78 | C114: 911-13583-78 | D114: عبد الكريم غالب قايد زيدان | E114: 40000
A115: 79 | B115: 79 | C115: 911-13583-79 | D115: لطف غالب قايد زيدان | E115: 40000
A116: 80 | B116: 80 | C116: 911-13583-80 | D116: عبدالخالق محمد علي علي زيدان | E116: 40000
A117: 81 | B117: 81 | C117: 911-13583-81 | D117: عبده علي أحمد عبدالله العفيري | E117: 40000
A118: 82 | B118: 82 | C118: 911-13583-82 | D118: مثير غالب قايد محمد زيدان | E118: 26000
A119: 83 | B119: 83 | C119: 911-13583-83 | D119: محي الدين محمد أحمد العفيري | E119: 40000
A120: 84 | B120: 84 | C120: 911-13583-84 | D120: عبدالسلام محمد أحمد زيدان | E120: 26000
A121: 85 | B121: 85 | C121: 911-13583-85 | D121: م. محمد عبد المغني | E121: 100560
A122: 86 | B122: 86 | C122: 911-13583-86 | D122: م. عبد القوي الشامي | E122: 100560 | G122: =SUM(E114:E120) -> 252000
A123: الإجمالي العام | E123: =SUM(E113:E122) -> 4425120 | G123: =SUM(G9:G122) -> 4224000

Sheet كشف البنك د2 مع الفنيين (hidden)
A1: الجمهورية اليمنية | E1: مشروع: السقايات الخاصة لقرية الموقعة
A2: رثاسة مجلس الوزراء | E2: عزلة موشك - مديرية مغرب عنس - م ذمار
A3: الصندوق الإجتماعي للتنمية | E3: رقم المشروع: 13583 - 911
A4: فرع ذمار - البيضاء | E4: رقم الدفعة: (2)
A5: وحدة المياه والبيئة | E5: مبلغ الدفعة: | F5: =E123 -> 6468510 | G5: 6468510
A6: قطاع المياه
A7: كشف مستحقات العاملين للفترة من 12/ 3/ 2021م وحتى 2021/3/21م
A8: م | B8: رقم السقاية | C8: رقم المالك | D8: اسم مالك السقاية | E8: المبلغ | F8: التوقيع أو البصمة
A9: 1 | B9: 1 | C9: 911-13583-1 | D9: زين احمد احمد الظاهري | E9: 60000
A10: 2 | B10: 2 | C10: 911-13583-2 | D10: يحيى ناصر محمد الموشكي | E10: 120000
A11: 3 | B11: 3 | C11: 911-13583-3 | D11: صلاح الدين ناصر محمد الموشكي | E11: 86000
A12: 4 | B12: 4 | C12: 911-13583-4 | D12: لطيفه حسن علي ناصر اليريمي | E12: 0
A13: 5 | B13: 5 | C13: 911-13583-5 | D13: جمال أحمد ثابت محمد الموشكي | E13: 40000
A14: 6 | B14: 6 | C14: 911-13583-6 | D14: بدره أحمد ثابت محمد سعيد | E14: 40000
A15: 7 | B15: 7 | C15: 911-13583-7 | D15: ماجد ثابت عبد الله الموشكي | E15: 100000
A16: 8 | B16: 8 | C16: 911-13583-8 | D16: رزيقه محمد حسين المحلي | E16: 0
A17: 9 | B17: 9 | C17: 911-13583-9 | D17: عادل علي محمد الموشكي | E17: 120000
A18: 10 | B18: 10 | C18: 911-13583-10 | D18: عبدالملك محمد علي سعيد الموشكي | E18: 120000
A19: 11 | B19: 11 | C19: 911-13583-11 | D19: كريمه حسن علي سعيد | E19: 60000 | G19: =SUM(E9:E19) -> 746000
A20: جملة الصفحة الحالية | E20: =SUM(E9:E19) -> 746000
A23: إجمالي ما قبله | E23: =E20 -> 746000
A24: 12 | B24: 12 | C24: 911-13583-12 | D24: محمد سعد سعيد الموشكي | E24: 60000
A25: 13 | B25: 13 | C25: 911-13583-13 | D25: صالح محمد سعيد الموشكي | E25: 120000
A26: 14 | B26: 14 | C26: 911-13583-14 | D26: عادل قائد ناجي الموشكي | E26: 0
A27: 15 | B27: 15 | C27: 911-13583-15 | D27: محسن عبد الله حسن الموشكي | E27: 60000
A28: 16 | B28: 16 | C28: 911-13583-16 | D28: فارس محمد سعد سعيد الموشكي | E28: 60000
A29: 17 | B29: 17 | C29: 911-13583-17 | D29: أحمد ناصر عبد الله الموشكي | E29: 0
A30: 18 | B30: 18 | C30: 911-13583-18 | D30: هيثم صالح صالح حسن | E30: 60000
A31: 19 | B31: 19 | C31: 911-13583-19 | D31: حفظ الله محمد سعيد الموشكي | E31: 60000
A32: 20 | B32: 20 | C32: 911-13583-20 | D32: يحيى ثابت محمد سعيد الموشكي | E32: 86000
A33: 21 | B33: 21 | C33: 911-13583-21 | D33: عبد الرحمن عبد الواحد محسن محمد | E33: 86000
A34: 22 | B34: 22 | C34: 911-13583-22 | D34: عزالدين محمد محمد سعيد الموشكي | E34: 60000 | G34: =SUM(E24:E34) -> 652000
A35: جملة الصفحة الحالية | E35: =SUM(E23:E34) -> 1398000
A38: إجمالي ما قبله | E38: =E35 -> 1398000
A39: 23 | B39: 23 | C39: 911-13583-23 | D39: حمود عبده ناجي حسن الموقعي | E39: 160000
A40: 24 | B40: 24 | C40: 911-13583-24 | D40: محمد عبده ناجي الموشكي | E40: 120000
A41: 25 | B41: 25 | C41: 911-13583-25 | D41: صادق علي ناصر العنسي | E41: 60000
A42: 26 | B42: 26 | C42: 911-13583-26 | D42: ضيف الله علي ناجي حسن | E42: 0
A43: 27 | B43: 27 | C43: 911-13583-27 | D43: امير سعد ناجي حسن | E43: 86000
A44: 28 | B44: 28 | C44: 911-13583-28 | D44: محمد مسعد ناجي حسن الموشكي | E44: 40000
A45: 29 | B45: 29 | C45: 911-13583-29 | D45: رشاد احمد صالح حسن العنسي | E45: 0
A46: 30 | B46: 30 | C46: 911-13583-30 | D46: الشرفي علي ناجي سعيد | E46: 120000
A47: 31 | B47: 31 | C47: 911-13583-31 | D47: علي علي محمد ناصر الموشكي | E47: 60000
A48: 32 | B48: 32 | C48: 911-13583-32 | D48: صادق علي محمد سعيد ناصر | E48: 60000
A49: 33 | B49: 33 | C49: 911-13583-33 | D49: محمد علي محمد سعيد | E49: 60000 | G49: =SUM(E39:E49) -> 766000
A50: جملة الصفحة الحالية | E50: =SUM(E38:E49) -> 2164000
A53: إجمالي ما قبله | E53: =E50 -> 2164000
A54: 34 | B54: 34 | C54: 911-13583-34 | D54: محي الدين محمد محمد الموشكى | E54: 60000
A55: 35 | B55: 35 | C55: 911-13583-35 | D55: علي محمد سعيد الموشكي | E55: 60000
A56: 36 | B56: 36 | C56: 911-13583-36 | D56: محمد محسن ناجي الشجني | E56: 0
A57: 37 | B57: 37 | C57: 911-13583-37 | D57: مراد مجاهد على محمد الموقعي | E57: 120000
A58: 38 | B58: 38 | C58: 911-13583-38 | D58: حفظ الله صالح محمد صالح الموشكي | E58: 120000
A59: 39 | B59: 39 | C59: 911-13583-39 | D59: عبد الله سعد حسن علي الموشكي | E59: 146000
A60: 40 | B60: 40 | C60: 911-13583-40 | D60: تقوى محمد أحمد الظاهري | E60: 0
A61: 41 | B61: 41 | C61: 911-13583-41 | D61: عبد الله محمد سعيد الموشكي | E61: 0
A62: 42 | B62: 42 | C62: 911-13583-42 | D62: علي صالح محمد سعيد أحمد | E62: 0
A63: 43 | B63: 43 | C63: 911-13583-43 | D63: محمد صالح محمد سعيد الموشكي | E63: 60000
A64: 44 | B64: 44 | C64: 911-13583-44 | D64: عبده علي محمد الموشكي | E64: 60000 | G64: =SUM(E54:E64) -> 626000
A65: جملة الصفحة الحالية | E65: =SUM(E53:E64) -> 2790000
A68: إجمالي ما قبله | E68: =E65 -> 2790000
A69: 45 | B69: 45 | C69: 911-13583-45 | D69: ابراهيم يحيى علي سعيد الموشكي | E69: 60000
A70: 46 | B70: 46 | C70: 911-13583-46 | D70: حميد عبده ناجي حسن | E70: 60000
A71: 47 | B71: 47 | C71: 911-13583-47 | D71: مراد ناجي أحمد غالب علي | E71: 146000
A72: 48 | B72: 48 | C72: 911-13583-48 | D72: صدام ناجي أحمد غالب الموقعي | E72: 86000
A73: 49 | B73: 49 | C73: 911-13583-49 | D73: عبده ناجي أحمد الموشكي | E73: 146000
A74: 50 | B74: 50 | C74: 911-13583-50 | D74: خليل محمد صالح أحمد الموشكي | E74: 60000
A75: 51 | B75: 51 | C75: 911-13583-51 | D75: عبده محمد صالح أحمد الموشكي | E75: 86000
A76: 52 | B76: 52 | C76: 911-13583-52 | D76: علي ناجي أحمد الموشكي | E76: 60000
A77: 53 | B77: 53 | C77: 911-13583-53 | D77: رمزي محمد صالح أحمد | E77: 60000
A78: 54 | B78: 54 | C78: 911-13583-54 | D78: مديره محمد ناجي الموشكي | E78: 86000
A79: 55 | B79: 55 | C79: 911-13583-55 | D79: كاتبه عبد الله محمد الموشكي | E79: 60000 | G79: =SUM(E69:E79) -> 910000
A80: جملة الصفحة الحالية | E80: =SUM(E68:E79) -> 3700000
A83: إجمالي ما قبله | E83: =E80 -> 3700000
A84: 56 | B84: 56 | C84: 911-13583-56 | D84: عمار محمد صالح الموشكي | E84: 146000
A85: 57 | B85: 57 | C85: 911-13583-57 | D85: مبروك محمد صالح علي الموشكي | E85: 120000
A86: 58 | B86: 58 | C86: 911-13583-58 | D86: عدنان صالح صالح حسن | E86: 74000
A87: 59 | B87: 59 | C87: 911-13583-59 | D87: عبد الحكيم محسن علي صالح | E87: 0
A88: 60 | B88: 60 | C88: 911-13583-60 | D88: سعد عبدالله حسن الموشكي | E88: 0
A89: 61 | B89: 61 | C89: 911-13583-61 | D89: (المدرسة) محمد ناصر محمد الموشكي | E89: 0
A90: 62 | B90: 62 | C90: 911-13583-62 | D90: اكرم علي غالب زيدان | E90: 60000
A91: 63 | B91: 63 | C91: 911-13583-63 | D91: محمد غالب محمد زيدان | E91: 60000
A92: 64 | B92: 64 | C92: 911-13583-64 | D92: فؤاد محمد غالب محمد زيدان | E92: 60000
A93: 65 | B93: 65 | C93: 911-13583-65 | D93: علي أحمد غالب زيدان | E93: 60000
A94: 66 | B94: 66 | C94: 911-13583-66 | D94: فاطمه سعد احمد احمد زيدان | E94: 60000 | G94: =SUM(E84:E94) -> 640000
A95: جملة الصفحة الحالية | E95: =SUM(E83:E94) -> 4340000
A98: إجمالي ما قبله | E98: =E95 -> 4340000
A99: 67 | B99: 67 | C99: 911-13583-67 | D99: زيد محمد علي صالح زيدان | E99: 60000
A100: 68 | B100: 68 | C100: 911-13583-68 | D100: علي غالب محمد زيدان | E100: 86000
A101: 69 | B101: 69 | C101: 911-13583-69 | D101: محمد علي غالب محمد زيدان | E101: 60000
A102: 70 | B102: 70 | C102: 911-13583-70 | D102: حمود مسعد محمد العفيري | E102: 120000
A103: 71 | B103: 71 | C103: 911-13583-71 | D103: سعد أحمد سعيد العفيري | E103: 56000
A104: 72 | B104: 72 | C104: 911-13583-72 | D104: خالد أحمد سعيد العفيري | E104: 86000
A105: 73 | B105: 73 | C105: 911-13583-73 | D105: علي سعد ناجي العفيري | E105: 120000
A106: 74 | B106: 74 | C106: 911-13583-74 | D106: أحمد علي سعد العفيري | E106: 120000
A107: 75 | B107: 75 | C107: 911-13583-75 | D107: امل علي سعد ناجي العفيري | E107: 160000
A108: 76 | B108: 76 | C108: 911-13583-76 | D108: جمال جميل مسعد محمد زيدان | E108: 0
A109: 77 | B109: 77 | C109: 911-13583-77 | D109: مراد علي غالب محمد زيدان | E109: 120000 | G109: =SUM(E99:E109) -> 988000
A110: جملة الصفحة الحالية | E110: =SUM(E98:E109) -> 5328000
A113: إجمالي ما قبله | E113: =E110 -> 5328000
A114: 78 | B114: 78 | C114: 911-13583-78 | D114: عبد الكريم غالب قايد زيدان | E114: 120000
A115: 79 | B115: 79 | C115: 911-13583-79 | D115: لطف غالب قايد زيدان | E115: 120000
A116: 80 | B116: 80 | C116: 911-13583-80 | D116: عبدالخالق محمد علي علي زيدان | E116: 120000
A117: 81 | B117: 81 | C117: 911-13583-81 | D117: عبده علي أحمد عبدالله العفيري | E117: 120000
A118: 82 | B118: 82 | C118: 911-13583-82 | D118: مثير غالب قايد محمد زيدان | E118: 134000
A119: 83 | B119: 83 | C119: 911-13583-83 | D119: محي الدين محمد أحمد العفيري | E119: 120000
A120: 84 | B120: 84 | C120: 911-13583-84 | D120: عبدالسلام محمد أحمد زيدان | E120: 134000
A121: 85 | B121: 85 | C121: 911-13583-85 | D121: م. محمد عبد الله حمود عبدالمغني | E121: 136255
A122: 86 | B122: 86 | C122: 911-13583-86 | D122: م.عبدالقوي عبده أمين الشامي | E122: 136255 | G122: =SUM(E114:E122) -> 1140510
A123: الإجمالي العام | E123: =SUM(E113:E122) -> 6468510 | G123: =SUM(G9:G122) -> 6468510

Sheet مستحقات الفني 1 تصحيح (hidden)
B2: الجمهورية اليمنية | C2: مشروع السقايات الخاصة لقرية الموقعة -موشك -مغرب عنس-ذمار
B4: رئاسة مجلس الوزراء | C4: رقم المشروع: | E4: 911-13583
B5: الصندوق الاجتماعي للتنمية | C5: كشف صرف مستحقات الفني
B6: فرع ذمار/ البيضاء | C6: 06/03/2021 من | D6: إلى | E6: 2021-03-11
B7: وحدة المياه والبيئة | C7: رقم الدفعة = | E7: 1
B8: قطاع المياه | C8: نسبة الأعمال المنجزة = | E8: 0.1164
C9: رقم الدفعة = | E9: 2
B10: الفني المقيم رقم 1 | C10: نسبة الأعمال المنجزة = | E10: 0.1707
B12: م/ محمد عبد الله حمود عبدالمغني
B15: نسبة مايتم صرفه للفني من إجمالي قيمة العقد الخاص به = | E15: بحسب نسبة الإنجاز عن كل دفعة
B16: سعر صرف الدولار بحسب العقد مقابل الريال اليمني = | C16: 585
B17: قيمة العقد بالدولار = | C17: 1410
B18: معادل قيمة العقد بالريال اليمني = | C18: =C17*C16 -> 824850
B20: المبلغ المستحق عن الدفعة الأولى بالريال بنسبة إنجاز 11.64% = | C20: 96013
B21: المبلغ المستحق عن الدفعة الثانية بالريال بنسبة إنجاز 17.07% = | C21: 140802
B22: إجمالي المبلغ المستحق عن الدفعتين الأولى + الثانية = | C22: =E28 -> 236815 | E22: إجمالي المبالغ المستلمة بالريال اليمني
B23: المبلغ المستلم عن الدفعة الأولى بالريال يالزيادة = | C23: 100560 | E23: =C20 -> 96013
B24: إجمالي المبلغ المستحق عن الدفعة الثانية بالريال بعد خصم الفارق = | C24: =C22-C23 -> 136255 | E24: =C21 -> 140802
D28: الإجمالي= | E28: =E23+E24+E25+E26 -> 236815
B33: استشاري المشروع | C33: ضابط المشروع
B34: م / عبدالقادر صالح سعيد القريشي | C34: اسمهان الفقيه | E34: إجمالي المبالغ المستلمة بالدولار
B37: محاسب المشروع
B38: صقر محمد محمد المقري
D39: الإجمالي=
C45: 57937160

Sheet مستحقات الفني 2 تصحيح (hidden)
B2: الجمهورية اليمنية | C2: مشروع السقايات الخاصة لقرية الموقعة -موشك -مغرب عنس-ذمار
B4: رئاسة مجلس الوزراء | C4: رقم المشروع: | E4: 911-13583
B5: الصندوق الاجتماعي للتنمية | C5: كشف صرف مستحقات الفني
B6: فرع ذمار/ البيضاء | C6: 06/03/2021 من | D6: إلى | E6: 2021-03-11
B7: وحدة المياه والبيئة | C7: رقم الدفعة = | E7: 1
B8: قطاع المياه | C8: نسبة الأعمال المنجزة = | E8: 0.1164
C9: رقم الدفعة = | E9: 2
B10: الفني المقيم رقم 1 | C10: نسبة الأعمال المنجزة = | E10: 0.1707
B12: م/ عبدالقوي عبده أمين الشامي
B15: نسبة مايتم صرفه للفني من إجمالي قيمة العقد الخاص به = | E15: بحسب نسبة الإنجاز عن كل دفعة
B16: سعر صرف الدولار بحسب العقد مقابل الريال اليمني = | C16: 585
B17: قيمة العقد بالدولار = | C17: 1410
B18: معادل قيمة العقد بالريال اليمني = | C18: =C17*C16 -> 824850
B20: المبلغ المستحق عن الدفعة الأولى بالريال بنسبة إنجاز 11.64% = | C20: 96013
B21: المبلغ المستحق عن الدفعة الثانية بالريال بنسبة إنجاز 17.07% = | C21: 140802
B22: إجمالي المبلغ المستحق عن الدفعتين الأولى + الثانية = | C22: =E28 -> 236815 | E22: إجمالي المبالغ المستلمة بالريال اليمني
B23: المبلغ المستلم عن الدفعة الأولى بالريال يالزيادة = | C23: 100560 | E23: =C20 -> 96013
B24: إجمالي المبلغ المستحق عن الدفعة الثانية بالريال بعد خصم الفارق = | C24: =C22-C23 -> 136255 | E24: =C21 -> 140802
D28: الإجمالي= | E28: =E23+E24+E25+E26 -> 236815
B33: استشاري المشروع | C33: ضابط المشروع
B34: م / عبدالقادر صالح سعيد القريشي | C34: اسمهان الفقيه | E34: إجمالي المبالغ المستلمة بالدولار
B37: محاسب المشروع
B38: صقر محمد محمد المقري
D39: الإجمالي=
C45: 57937160

Sheet مستحقات الفني 1 (hidden)
B2: الجمهورية اليمنية | C2: مشروع السقايات الخاصة لقرية الموقعة -موشك -مغرب عنس-ذمار
B4: رئاسة مجلس الوزراء | C4: رقم المشروع: | E4: 911-13583
B5: الصندوق الاجتماعي للتنمية | C5: كشف صرف مستحقات الفني
B6: فرع ذمار/ البيضاء | C6: 06/03/2021 من | D6: إلى | E6: 2021-03-11
B7: وحدة المياه والبيئة | C7: رقم الدفعة = | E7: 1
B8: قطاع المياه | C8: نسبة الأعمال المنجزة = | E8: 0.1164
B10: الفني المقيم رقم 1
B12: م/ محمد عبدالله عبدالمغني
B14: نسبة مايتم صرفه للفني من إجمالي قيمة العقد الخاص به | E14: حسب نسبة الانجاز
B15: قيمة العقد = | C15: 1440
B16: المبلغ المستحق عن الدفعة الأولى بالدولار = | C16: 167.6
B17: سعر صرف الدولار في تاريخ الرفع مقابل الريال اليمني = | C17: 600
B19: المبلغ المستحق عن الدفعة الأولى بالريال بنسبة إنجاز 11.64% = | C19: =C16*C17 -> 100560
E22: إجمالي المبالغ المستلمة بالريال اليمني
E23: =C19 -> 100560
D28: الإجمالي= | E28: =E23+E24+E25+E26 -> 100560
B33: استشاري المشروع | C33: ضابط المشروع
B34: م / عبدالقادر صالح سعيد القريشي | C34: أسمهان الفقيه | E34: إجمالي المبالغ المستلمة بالدولار
E36: =C16 -> 167.6
B37: محاسب المشروع | E37: =C23 -> 0
B38: صقر محمد محمد المقري | E38: =C27 -> 0
D39: الإجمالي= | E39: =E35+E36+E37+E38 -> 167.6
C45: 57937160

Sheet مستحقات الفني 2 (hidden)
B2: الجمهورية اليمنية | C2: مشروع السقايات الخاصة لقرية الموقعة -موشك -مغرب عنس-ذمار
B4: رئاسة مجلس الوزراء | C4: رقم المشروع: | E4: 911-13583
B5: الصندوق الاجتماعي للتنمية | C5: كشف صرف مستحقات الفني
B6: فرع ذمار/ البيضاء | C6: 06/03/2021 من | D6: إلى | E6: 2021-03-11
B7: وحدة المياه والبيئة | C7: رقم الدفعة = | E7: 1
B8: قطاع المياه | C8: نسبة الأعمال المنجزة = | E8: 0.1164
B10: الفني المقيم رقم 2
B12: م/ عبدالقوي عبده أمين الشامي
B14: نسبة مايتم صرفه للفني من إجمالي قيمة العقد الخاص به | E14: حسب نسبة الانجاز
B15: قيمة العقد = | C15: 1440
B16: المبلغ المستحق عن الدفعة الأولى بالدولار = | C16: 167.6
B17: سعر صرف الدولار في تاريخ الرفع مقابل الريال اليمني = | C17: 600
B19: المبلغ المستحق عن الدفعة الأولى بالريال بنسبة إنجاز 11.64% = | C19: =C16*C17 -> 100560
E22: إجمالي المبالغ المستلمة بالريال اليمني
E23: =C19 -> 100560
D28: الإجمالي= | E28: =E23+E24+E25+E26 -> 100560
B33: استشاري المشروع | C33: ضابط المشروع
B34: م / عبدالقادر صالح سعيد القريشي | C34: اسمهان الفقيه | E34: إجمالي المبالغ المستلمة بالدولار
E36: =C16 -> 167.6
B37: محاسب المشروع | E37: =C23 -> 0
B38: صقر محمد محمد المقري | E38: =C27 -> 0
D39: الإجمالي= | E39: =E35+E36+E37+E38 -> 167.6
C45: 57937160

Sheet جملة منصرف مع نسبة الإنجاز (hidden)
A1: جدول يوضح إجمالي المنصرف للعاملين على مستوى كل دفعة مالية على حدة
A2: م | B2: البيان | C2: عدد الأسر | D2: عدد المستفيدين بحسب كشوفات الصرف | E2: إجمالي الأجور | F2: نسبة الإنجاز %
A3: 1 | B3: الدفعة الأولى | C3: 68 | D3: 68 | E3: 4224000 | F3: =E3/$D$10 -> 0.1164021164
A4: 2 | B4: الدفعة الثانية | C4: 70 | D4: 70 | E4: 6196000 | F4: =E4/$D$10 -> 0.1707451499
A5: 3 | B5: الدفعة الثالثة | F5: 0
A6: 4 | B6: الدفعة الرابعة | F6: 0
A7: الإجمــــــــــــــــــــــــالي | D7: =SUM(D3:D6) -> 138 | E7: =SUM(E3:E6) -> 10420000 | F7: 0.2871472663
A9: م | B9: إجمالي المبلغ المخصص لكل سقاية على حدة | C9: عدد السقايات المعتمدة | D9: إجمالي المبلغ المعتمد للسقايات كاملة | E9: ملاحظات
A10: 1 | B10: 432000 | C10: 84 | D10: =B10*C10 -> 36288000

Sheet ورقة5 (hidden)
F5: 1 | G5: 26000
F6: 2 | G6: 26000
F7: 3 | G7: 26000
F8: 4 | G8: 26000
F9: 5 | G9: 26000
F10: 6 | G10: 26000
F11: 7 | G11: 26000
F12: 8 | G12: 26000
F13: 9 | G13: 26000
F14: 10 | G14: 26000
F15: 11 | G15: 26000
F16: 12 | G16: 26000
F17: 13 | G17: 26000
F18: 14 | G18: 26000
F19: 15 | G19: 26000
F20: 16 | G20: 26000
F21: 17 | G21: 26000
F22: 18 | G22: 26000
F23: 19 | G23: 26000
F24: 20 | G24: 26000
F25: 21 | G25: 26000
F26: 22 | G26: 26000
F27: 23 | G27: 26000
F28: 24 | G28: 26000
F29: 25 | G29: 26000
F30: 26 | G30: 26000
F31: 27 | G31: 26000
F32: 28 | G32: 26000
F33: 29 | G33: 26000
F34: 30 | G34: 26000
F35: 31 | G35: 26000
F36: 32 | G36: 26000
F37: 33 | G37: 26000
F38: 34 | G38: 26000
F39: 35 | G39: 26000
F40: 36 | G40: 26000
F41: 37 | G41: 26000
F42: 38 | G42: 26000
F43: 39 | G43: 26000
F44: 40 | G44: 26000
F45: 41 | G45: 26000
F46: 42 | G46: 26000
F47: 43 | G47: 26000
F48: 44 | G48: 26000
F49: 45 | G49: 26000
F50: 46 | G50: 26000
F51: 47 | G51: 26000
F52: 48 | G52: 26000
F53: 49 | G53: 26000
F54: 50 | G54: 26000
F55: 51 | G55: 26000
F56: 52 | G56: 26000
F57: 53 | G57: 26000
F58: 54 | G58: 26000
F59: 55 | G59: 26000
F60: 56 | G60: 26000
F61: 57 | G61: 26000
F62: 58 | G62: 26000
F63: 59 | G63: 26000
F64: 60 | G64: 26000
F65: 61 | G65: 26000
F66: 62 | G66: 26000
F67: 63 | G67: 26000
F68: 64 | G68: 26000
F69: 65 | G69: 26000
F70: 66 | G70: 26000
F71: 67 | G71: 26000
F72: 68 | G72: 26000

Sheet مطابقة البطائق (hidden)
A1: كشف البطائق الشخصية لملاك السقايات الخاصة بقرية الموقعة موشك مغرب عنس
A2: م | B2: رقم السقاية | C2: رقم المالك | D2: اسم مالك السقاية بحسب كشوفاتنا | E2: اسم مالك السقاية من واقع البطاقة الشخصية | F2: رقم البطاقة الإلكترونية | G2: ملاحظات | I2: رقم السقاية | J2: الاسم الصحيح من عدم الممانعة - عمار طاهر | K2: رقم البطاقة
A3: 1 | B3: 1 | C3: 911-13583-1 | D3: زين احمد احمد الظاهري | E3: زين احمد احمد الظاهري | F3: 17000076145 | I3: 1 | J3: زين احمد احمد الظاهري | K3: 17000076145
A4: 2 | B4: 2 | C4: 911-13583-2 | D4: يحيى ناصر محمد الموشكي | E4: يحيى ناصر محمد الموشكي | F4: 17010027563 | I4: 2 | J4: يحيى ناصر محمد الموشكي | K4: 17010027563
A5: 3 | B5: 3 | C5: 911-13583-3 | D5: صلاح الدين ناصر محمد الموشكي | E5: صلاح الدين ناصر محمد الموشكي | F5: 17010040204 | I5: 3 | J5: صلاح الدين ناصر محمد الموشكي | K5: 17010040204
A6: 4 | B6: 4 | C6: 911-13583-4 | D6: لطيفه حسن علي ناصر اليريمي | E6: ؟؟؟ | F6: 17000072751 | G6: البطاقة غير موجودة | I6: 4 | J6: لطيفه حسن علي ناصر اليريمي | K6: 17000072751
A7: 5 | B7: 5 | C7: 911-13583-5 | D7: جمال أحمد ثابت محمد الموشكي | E7: جمال أحمد ثابت الموشكي | F7: 17010230045 | I7: 5 | J7: جمال أحمد ثابت محمد الموشكي | K7: 17010230045
A8: 6 | B8: 6 | C8: 911-13583-6 | D8: بدره أحمد ثابت محمد سعيد | E8: بدره أحمد ثابت محمد سعيد | F8: 17000050469 | I8: 6 | J8: بدره أحمد ثابت محمد سعيد | K8: 17000050469
A9: 7 | B9: 7 | C9: 911-13583-7 | D9: ماجد ثابت عبد الله الموشكي | E9: ماجد ثابت عبد الله الموشكي | F9: 17010044881 | G9: البطاقة غير واضح اللقب | I9: 7 | J9: ماجد ثابت عبد الله الموشكي | K9: 17010044881
A10: 8 | B10: 8 | C10: 911-13583-8 | D10: رزيقه محمد حسين المحلي | E10: رزيقه محمد حسين المحلي | F10: 17000054661 | I10: 8 | J10: رزيقه محمد حسين المحلي | K10: 17000054661
A11: 9 | B11: 9 | C11: 911-13583-9 | D11: عادل علي محمد الموشكي | E11: عادل علي محمد الموشكي | F11: 17010027391 | I11: 9 | J11: عادل علي محمد الموشكي | K11: 17010027391
A12: 10 | B12: 10 | C12: 911-13583-10 | D12: عبدالملك محمد علي سعيد الموشكي | E12: ؟؟؟ | F12: 17010092910 | G12: البطاقة غير موجودة | I12: 10 | J12: عبدالملك محمد علي سعيد الموشكي | K12: 17010092910
A13: 11 | B13: 11 | C13: 911-13583-11 | D13: كريمه حسن علي سعيد | E13: ؟؟؟ | F13: 17000032603 | G13: البطاقة غير موجودة | I13: 11 | J13: كريمه حسن علي سعيد | K13: 17000032603
A14: 12 | B14: 12 | C14: 911-13583-12 | D14: محمد سعد سعيد الموشكي | E14: محمد سعد سعيد الموشكي | F14: 17010286917 | I14: 12 | J14: محمد سعد سعيد الموشكي | K14: 17010286917
A15: 13 | B15: 13 | C15: 911-13583-13 | D15: صالح محمد سعيد الموشكي | E15: ؟؟؟ | F15: 17010287863 | G15: البطاقة غير موجودة | I15: 13 | J15: صالح محمد سعيد أحمد الموشكي | K15: 17010287863
A16: 14 | B16: 14 | C16: 911-13583-14 | D16: عادل قائد ناجي الموشكي | E16: عادل قائد ناجي الموشكي | F16: 17010180130 | G16: يتم تعديل رقم البطاقة في البرنامج | I16: 14 | J16: عادل قائد ناجي الموشكي | K16: 1701080130
A17: 15 | B17: 15 | C17: 911-13583-15 | D17: محسن عبد الله حسن الموشكي | E17: محسن عبد الله حسن الموشكي | F17: 01010601418 | G17: يتم تعديل رقم البطاقة في البرنامج | I17: 15 | J17: محسن عبد الله حسن الموشكي | K17: 1010601418
A18: 16 | B18: 16 | C18: 911-13583-16 | D18: فارس محمد سعد سعيد الموشكي | E18: فارس محمد سعد سعيد | F18: 17010010566 | G18: يتم تعديل رقم البطاقة في البرنامج | I18: 16 | J18: فارس محمد سعد سعيد الموشكي | K18: 1701001566
A19: 17 | B19: 17 | C19: 911-13583-17 | D19: أحمد ناصر عبد الله الموشكي | E19: أحمد ناصر عبد الله الموشكي | F19: 01010041146 | I19: 17 | J19: أحمد ناصر عبد الله الموشكي
A20: 18 | B20: 18 | C20: 911-13583-18 | D20: هيثم صالح صالح حسن | E20: ؟؟؟ | F20: 17010106056 | G20: البطاقة غير موجودة | I20: 18 | J20: هيثم صالح صالح حسن | K20: 17010106056
A21: 19 | B21: 19 | C21: 911-13583-19 | D21: حفظ الله محمد سعيد الموشكي | E21: ؟؟؟ | F21: 17010215162 | G21: البطاقة غير موجودة | I21: 19 | J21: حفظ الله محمد سعيد الموشكي | K21: 17010215162
A22: 20 | B22: 20 | C22: 911-13583-20 | D22: يحيى ثابت محمد سعيد الموشكي | E22: يحيى ثابت محمد سعيد الموشكي | F22: 01010575750 | G22: 17010215162 يتم تعديل رقم البطاقة الخطأ في البرنامج | I22: 20 | J22: يحيى ثابت محمد سعيد الموشكي | K22: 17010215162
A23: 21 | B23: 21 | C23: 911-13583-21 | D23: عبد الرحمن عبد الواحد محسن محمد | E23: عبد الرحمن عبد الواحد محسن محمد | F23: 17010256841 | I23: 21 | J23: عبد الرحمن عبد الواحد محسن محمد | K23: 17010256841
A24: 22 | B24: 22 | C24: 911-13583-22 | D24: عزالدين محمد محمد سعيد الموشكي | E24: عزالدين محمد محمد سعيد الموشكي | F24: 17010068515 | I24: 22 | J24: عزالدين محمد محمد سعيد الموشكي | K24: 17010068515
A25: 23 | B25: 23 | C25: 911-13583-23 | D25: حمود عبده ناجي حسن الموقعي | E25: حمود عبده ناجي حسن علي الموقعي | F25: 01010890469 | G25: يضاف اسم علي بعد حسن بحسب الاستبيان | I25: 23 | J25: حمود عبده ناجي حسن الموقعي | K25: 1010890469
A26: 24 | B26: 24 | C26: 911-13583-24 | D26: محمد عبده ناجي الموشكي | E26: محمد عبده ناجي الموشكي | F26: 17010040374 | I26: 24 | J26: محمد عبده ناجي حسن | K26: 17010040374
A27: 25 | B27: 25 | C27: 911-13583-25 | D27: صادق علي ناصر العنسي | E27: صادق علي ناصر العنسي | F27: 17010036624 | I27: 25 | J27: صادق علي ناصر العنسي | K27: 17010036624
A28: 26 | B28: 26 | C28: 911-13583-26 | D28: ضيف الله علي ناجي حسن | E28: ؟؟؟ | F28: 01010458247 | G28: البطاقة غير موجودة | I28: 26 | J28: ضيف الله علي ناجي حسن | K28: 1010458247
A29: 27 | B29: 27 | C29: 911-13583-27 | D29: امير سعد ناجي حسن | E29: امير سعد ناجي حسن | F29: 17010256747 | I29: 27 | J29: امير سعد ناجي حسن | K29: 17010256747
A30: 28 | B30: 28 | C30: 911-13583-28 | D30: محمد مسعد ناجي حسن الموشكي | E30: محمد مسعد ناجي حسن الموشكي | F30: 17010262763 | G30: يتم تعديل رقم البطاقة في البرنامج | I30: 28 | J30: محمد مسعد ناجي حسن الموشكي | K30: 17010252763
A31: 29 | B31: 29 | C31: 911-13583-29 | D31: رشاد احمد صالح حسن العنسي | E31: رشاد احمد صالح حسن العنسي | F31: 01010888931 | G31: 1010728193 يتم تعديل رقم البطاقة الخطأ في البرنامج | I31: 29 | J31: رشاد احمد صالح حسن العنسي | K31: 1010728192
A32: 30 | B32: 30 | C32: 911-13583-30 | D32: الشرفي علي ناجي سعيد | E32: الشرفي علي ناجي سعيد | F32: 17010203412 | G32: الاستبيان غير واضح وطلبنا منه قطع بدل تالف | I32: 30 | J32: الشرفي علي ناجي سعيد الشجني | K32: 17010203412
A33: 31 | B33: 31 | C33: 911-13583-31 | D33: علي علي محمد ناصر الموشكي | E33: علي علي محمد ناصر الموشكي | F33: 17010133469 | I33: 31 | J33: علي علي محمد ناصر الموشكي | K33: 17010133469
A34: 32 | B34: 32 | C34: 911-13583-32 | D34: صادق علي محمد سعيد ناصر | E34: صادق علي محمد سعيد ناصر | F34: 17010042527 | I34: 32 | J34: صادق علي محمد سعيد ناصر | K34: 17010042527
A35: 33 | B35: 33 | C35: 911-13583-33 | D35: محمد علي محمد سعيد | E35: محمد علي محمد سعيد | F35: 17010011617 | G35: البطاقة غير واضحة وطلبنا منه قطع بدل تالف ولم نعرف رقم البطاقة إلا من الوجه الخلفي | I35: 33 | J35: محمد علي محمد سعيد | K35: 17010011617
A36: 34 | B36: 34 | C36: 911-13583-34 | D36: محي الدين محمد محمد الموشكى | E36: محي الدين محمد محمد الموشكى | F36: 17010144377 | I36: 34 | J36: محي الدين محمد محمد الموشكى | K36: 17010144377
A37: 35 | B37: 35 | C37: 911-13583-35 | D37: علي محمد سعيد الموشكي | E37: علي محمد سعيد الموشكي | F37: 17010263172 | I37: 35 | J37: علي محمد سعيد الموشكي | K37: 17010263172
A38: 36 | B38: 36 | C38: 911-13583-36 | D38: محمد محسن ناجي الشجني | E38: ؟؟؟ | F38: 17010177802 | G38: البطاقة غير موجودة | I38: 36 | J38: محمد محسن ناجي الشجني | K38: 17010177802
A39: 37 | B39: 37 | C39: 911-13583-37 | D39: مراد مجاهد على محمد الموقعي | E39: مراد مجاهد على محمد الموقعي | F39: 17010046359 | I39: 37 | J39: مراد مجاهد على الموقعي
A40: 38 | B40: 38 | C40: 911-13583-38 | D40: حفظ الله صالح محمد صالح الموشكي | E40: حفظ الله صالح محمد صالح الموشكي | F40: 17010274991 | I40: 38 | J40: حفظ الله صالح محمد صالح الموشكي | K40: 17010274991
A41: 39 | B41: 39 | C41: 911-13583-39 | D41: عبد الله سعد حسن علي الموشكي | E41: عبد الله سعد حسن علي الموشكي | F41: 17010010993 | G41: يملك بطاقة + استبيان بنفس البيانات | I41: 39 | J41: عبد الله سعد حسن علي الموشكي | K41: 17010010993
A42: 40 | B42: 40 | C42: 911-13583-40 | D42: تقوى محمد أحمد الظاهري | E42: ؟؟؟ | F42: 100302769 | G42: البطاقة غير موجودة | I42: 40 | J42: تقوى محمد أحمد الظاهري | K42: 100302769
A43: 41 | B43: 41 | C43: 911-13583-41 | D43: عبد الله محمد سعيد الموشكي | E43: ؟؟؟ | F43: 17010246761 | G43: البطاقة غير موجودة | I43: 41 | J43: عبد الله محمد سعيد الموشكي | K43: 17010246761
A44: 42 | B44: 42 | C44: 911-13583-42 | D44: علي صالح محمد سعيد أحمد | E44: علي صالح محمد سعيد أحمد | F44: 17010040418 | G44: البطاقة غير واضحة لأنها صورة ورقية فقط ولا يوجد أصل | I44: 42 | J44: علي صالح محمد سعيد أحمد | K44: 17010040418 | L44: البطاقة غير واضحة لأنها صورة ورقية فقط ولا يوجد أصل
A45: 43 | B45: 43 | C45: 911-13583-43 | D45: محمد صالح محمد سعيد الموشكي | E45: محمد صالح محمد سعيد الموشكي | F45: 17010035340 | I45: 43 | J45: محمد صالح محمد سعيد الموشكي | K45: 17010035340
A46: 44 | B46: 44 | C46: 911-13583-44 | D46: عبده علي محمد الموشكي | E46: عبده علي محمد الموشكي | F46: 17010271326 | I46: 44 | J46: عبده علي محمد الموشكي | K46: 17010271326
A47: 45 | B47: 45 | C47: 911-13583-45 | D47: ابراهيم يحيى علي سعيد الموشكي | E47: ابراهيم يحيى علي سعيد الموشكي | F47: 01010211928 | I47: 45 | J47: ابراهيم يحيى علي سعيد الموشكي | K47: 1010211928
A48: 46 | B48: 46 | C48: 911-13583-46 | D48: حميد عبده ناجي حسن | E48: حميد عبده ناجي حسن | F48: 17010202177 | G48: يتم تعديل رقم البطاقة في البرنامج وإدراج صورة المالك الصحيحة بدل الخطأ لأنه تم إدراج صورة مالك سقاية رقم 47 | I48: 46 | J48: حميد عبده ناجي حسن | K48: 1701020177
A49: 47 | B49: 47 | C49: 911-13583-47 | D49: مراد ناجي أحمد غالب علي | E49: مراد ناجي أحمد غالب علي | F49: 17010040816 | I49: 47 | J49: مراد ناجي أحمد غالب علي | K49: 17010040816
A50: 48 | B50: 48 | C50: 911-13583-48 | D50: صدام ناجي أحمد غالب الموقعي | E50: صدام ناجي أحمد غالب الموقعي | F50: 17010051086 | I50: 48 | J50: صدام ناجي أحمد غالب الموقعي | K50: 17010051086
A51: 49 | B51: 49 | C51: 911-13583-49 | D51: عبده ناجي أحمد الموشكي | E51: عبده ناجي أحمد الموشكي | F51: 17010085522 | I51: 49 | J51: عبده ناجي أحمد الموشكي | K51: 17010085522
A52: 50 | B52: 50 | C52: 911-13583-50 | D52: خليل محمد صالح أحمد الموشكي | E52: خليل محمد صالح أحمد الموشكي | F52: 17010040132 | I52: 50 | J52: خليل محمد صالح أحمد الموشكي | K52: 17010040132
A53: 51 | B53: 51 | C53: 911-13583-51 | D53: عبده محمد صالح أحمد الموشكي | E53: عبده محمد صالح أحمد الموشكي | F53: 17010070516 | I53: 51 | J53: عبده محمد صالح أحمد الموشكي | K53: 17010070516
A54: 52 | B54: 52 | C54: 911-13583-52 | D54: علي ناجي أحمد الموشكي | E54: علي ناجي أحمد الموشكي | F54: 17010144940 | I54: 52 | J54: علي ناجي أحمد الموشكي | K54: 17010144940
A55: 53 | B55: 53 | C55: 911-13583-53 | D55: رمزي محمد صالح أحمد | E55: رمزي محمد صالح أحمد | F55: 17010254472 | I55: 53 | J55: رمزي محمد صالح أحمد | K55: 17010254472
A56: 54 | B56: 54 | C56: 911-13583-54 | D56: مديره محمد ناجي الموشكي | E56: ؟؟؟ | F56: 17000069941 | G56: البطاقة غير موجودة | I56: 54 | J56: مديره محمد ناجي الموشكي | K56: 17000069941
A57: 55 | B57: 55 | C57: 911-13583-55 | D57: كاتبه عبد الله محمد الموشكي | E57: كاتبه عبد الله محمد الموشكي | F57: 17000069231 | I57: 55 | J57: كاتبه عبد الله محمد الموشكي | K57: 17000069231
A58: 56 | B58: 56 | C58: 911-13583-56 | D58: عمار محمد صالح الموشكي | E58: عمار محمد صالح الموشكي | F58: 17010067525 | I58: 56 | J58: عمار محمد صالح الموشكي | K58: 17010067525
A59: 57 | B59: 57 | C59: 911-13583-57 | D59: مبروك محمد صالح علي الموشكي | E59: ؟؟؟ | F59: 17010254364 | G59: البطاقة غير موجودة | I59: 57 | J59: مبروك محمد صالح على الموشكي | K59: 17010254364
A60: 58 | B60: 58 | C60: 911-13583-58 | D60: عدنان صالح صالح حسن | E60: ؟؟؟ | F60: 17010108703 | G60: البطاقة غير موجودة | I60: 58 | J60: عدنان صالح صالح حسن | K60: 17010108703
A61: 59 | B61: 59 | C61: 911-13583-59 | D61: عبد الحكيم محسن علي صالح | E61: ؟؟؟ | F61: 17010169249 | G61: البطاقة غير موجودة | I61: 59 | J61: عبد الحكيم محسن علي صالح | K61: 17010169249
A62: 60 | B62: 60 | C62: 911-13583-60 | D62: سعد عبدالله حسن الموشكي | E62: ؟؟؟ | F62: 17010155242 | G62: البطاقة غير موجودة | I62: 60 | J62: سعد عبدالله حسن الموشكي | K62: 17010155242
A63: 61 | B63: 61 | C63: 911-13583-61 | D63: (المدرسة) محمد ناصر محمد الموشكي | E63: (المدرسة) محمد ناصر محمد الموشكي | F63: 17010000683 | I63: 61 | J63: (المدرسة) محمد ناصر محمد الموشكي | K63: 17010000683
A64: 62 | B64: 62 | C64: 911-13583-62 | D64: اكرم علي غالب زيدان | E64: اكرم علي غالب زيدان | F64: 17010256354 | I64: 62 | J64: اكرم علي غالب زيدان | K64: 17010256354
A65: 63 | B65: 63 | C65: 911-13583-63 | D65: محمد غالب محمد زيدان | E65: محمد غالب محمد زيدان | F65: 17010160960 | I65: 63 | J65: محمد غالب محمد زيدان | K65: 17010160960
A66: 64 | B66: 64 | C66: 911-13583-64 | D66: فؤاد محمد غالب محمد زيدان | E66: فؤاد محمد غالب محمد ثابت زيدان | F66: 17010222565 | G66: يضاف اسم ثابت بعد محمد بحسب الاستبيان | I66: 64 | J66: فؤاد محمد غالب محمد زيدان | K66: 17010222565
A67: 65 | B67: 65 | C67: 911-13583-65 | D67: علي أحمد غالب زيدان | E67: علي أحمد غالب زيدان | F67: 17010144416 | I67: 65 | J67: علي أحمد غالب زيدان | K67: 17010144416
A68: 66 | B68: 66 | C68: 911-13583-66 | D68: فاطمة سعد احمد احمد زيدان | E68: فاطمة سعد احمد اسماعيل العفيري | F68: 17000078054 | G68: يتم تعديل الاسم في البرنامج وإدراج الصورة بعد التعديل | I68: 66 | J68: فاطمه سعد احمد احمد زيدان | K68: 17000078054 | L68: فاطمة سعد احمد إسماعيل العفيري
A69: 67 | B69: 67 | C69: 911-13583-67 | D69: زيد محمد علي صالح زيدان | E69: زيد محمد علي صالح زيدان | F69: 17010147513 | I69: 67 | J69: زيد محمد علي صالح زيدان | K69: 17010147513
A70: 68 | B70: 68 | C70: 911-13583-68 | D70: علي غالب محمد زيدان | E70: علي غالب محمد زيدان | F70: 17010144989 | I70: 68 | J70: علي غالب محمد زيدان | K70: 17010144989
A71: 69 | B71: 69 | C71: 911-13583-69 | D71: محمد علي غالب محمد زيدان | E71: محمد علي غالب محمد زيدان | F71: 17010144261 | I71: 69 | J71: محمد علي غالب زيدان
A72: 70 | B72: 70 | C72: 911-13583-70 | D72: حمود مسعد محمد العفيري | E72: حمود مسعد محمد العفيري | F72: 17010148006 | I72: 70 | J72: حمود مسعد محمد العفيري | K72: 17010148006
A73: 71 | B73: 71 | C73: 911-13583-71 | D73: سعد أحمد سعيد العفيري | E73: ؟؟؟ | F73: 17010286840 | G73: البطاقة غير موجودة | I73: 71 | J73: سعد أحمد سعيد العفيري | K73: 17010286840
A74: 72 | B74: 72 | C74: 911-13583-72 | D74: خالد أحمد سعيد العفيري | E74: ؟؟؟ | F74: 17010287914 | G74: البطاقة غير موجودة | I74: 72 | J74: خالد أحمد سعيد العفيري | K74: 17010287914
A75: 73 | B75: 73 | C75: 911-13583-73 | D75: علي سعد ناجي العفيري | E75: علي سعد ناجي العفيري | F75: 17010165685 | I75: 73 | J75: علي سعد ناجي العفيري | K75: 17010165685
A76: 74 | B76: 74 | C76: 911-13583-74 | D76: أحمد علي سعد العفيري | E76: أحمد علي سعد العفيري | F76: 17010071906 | I76: 74 | J76: أحمد علي سعد ناجي | K76: 17010071906
A77: 75 | B77: 75 | C77: 911-13583-75 | D77: امل علي سعد ناجي العفيري | E77: ؟؟؟ | F77: 17000078132 | G77: البطاقة غير موجودة | I77: 75 | J77: امل علي سعد ناجي العفيري | K77: 17000078132
A78: 76 | B78: 76 | C78: 911-13583-76 | D78: جمال جميل مسعد محمد زيدان | E78: جمال جميل مسعد محمد زيدان | F78: 17010251726 | I78: 76 | J78: جمال جميل مسعد محمد زيدان | K78: 17010251726
A79: 77 | B79: 77 | C79: 911-13583-77 | D79: مراد علي غالب محمد زيدان | E79: مراد علي غالب محمد زيدان | F79: 17010098613 | I79: 77 | J79: مراد علي غالب محمد زيدان | K79: 17010098613
A80: 78 | B80: 78 | C80: 911-13583-78 | D80: عبد الكريم غالب قايد زيدان | E80: عبد الكريم غالب قايد زيدان | F80: 17010038640 | I80: 78 | J80: عبد الكريم غالب قايد زيدان | K80: 17010038640
A81: 79 | B81: 79 | C81: 911-13583-79 | D81: لطف غالب قايد زيدان | E81: لطف غالب قايد زيدان | F81: 17010003001 | I81: 79 | J81: لطف غالب قايد زيدان | K81: 17010003001
A82: 80 | B82: 80 | C82: 911-13583-80 | D82: عبدالخالق محمد علي علي زيدان | E82: عبدالخالق محمد علي علي زيدان | F82: 17010098661 | I82: 80 | J82: عبدالخالق محمد علي علي زيدان | K82: 17010098661
A83: 81 | B83: 81 | C83: 911-13583-81 | D83: عبده علي أحمد عبدالله العفيري | E83: عبده علي أحمد عبدالله العفيري | F83: 17010148453 | I83: 81 | J83: عبده علي أحمد عبدالله العفيري | K83: 17010148453
A84: 82 | B84: 82 | C84: 911-13583-82 | D84: مثير غالب قايد محمد زيدان | E84: مثير غالب قايد محمد زيدان | F84: 17010080583 | I84: 82 | J84: مثير غالب قايد محمد زيدان | K84: 17010080583
A85: 83 | B85: 83 | C85: 911-13583-83 | D85: محي الدين محمد أحمد العفيري | E85: محي الدين محمد أحمد العفيري | F85: 17010165947 | I85: 83 | J85: محي الدين محمد أحمد العفيري | K85: 17010165947
A86: 84 | B86: 84 | C86: 911-13583-84 | D86: عبدالسلام محمد أحمد زيدان | E86: عبدالسلام محمد أحمد زيدان | F86: 17010166033 | I86: 84 | J86: عبدالسلام محمد أحمد زيدان | K86: 17010166033

Sheet ورقة2 (hidden)
D5: 1 | E5: 0
D6: 2 | E6: 0
D7: 3 | E7: 0
D8: 4 | E8: 0
D9: 5 | E9: 0
D10: 6 | E10: 0
D11: 7 | E11: 0
D12: 8 | E12: 0
D13: 9 | E13: 0
D14: 10 | E14: 0
D15: 11 | E15: 0
D16: 12 | E16: 0
D17: 13 | E17: 0
D18: 14 | E18: 0
D19: 15 | E19: 0
D20: 16 | E20: 0
D21: 17 | E21: 0
D22: 18 | E22: 0
D23: 19 | E23: 0
D24: 20 | E24: 0
D25: 21 | E25: 0
D26: 22 | E26: 0
D27: 23 | E27: 0
D28: 24 | E28: 0
D29: 25 | E29: 0
D30: 26 | E30: 0
D31: 27 | E31: 0
D32: 28 | E32: 0
D33: 29 | E33: 0
D34: 30 | E34: 0
D35: 31 | E35: 0
D36: 32 | E36: 0
D37: 33 | E37: 0
D38: 34 | E38: 0
D39: 35 | E39: 0
D40: 36 | E40: 0
D41: 37 | E41: 0
D42: 38 | E42: 0
D43: 39 | E43: 0
D44: 40 | E44: 0
D45: 41 | E45: 0
D46: 42 | E46: 0
D47: 43 | E47: 0
D48: 44 | E48: 0
D49: 45 | E49: 0
D50: 46 | E50: 0
D51: 47 | E51: 0
D52: 48 | E52: 0
D53: 49 | E53: 0
D54: 50 | E54: 0
D55: 51 | E55: 0
D56: 52 | E56: 0
D57: 53 | E57: 0
D58: 54 | E58: 0
D59: 55 | E59: 0
D60: 56 | E60: 0
D61: 57 | E61: 0
D62: 58 | E62: 0
D63: 59 | E63: 0
D64: 60 | E64: 0

Sheet ورقة1 (hidden)
F4: البطائق التي لا يوجد صور عندي لها
F5: م | G5: رقم السقاية | H5: الاسم
F6: 1 | G6: 4 | H6: لطيفه حسن علي ناصر اليريمي
F7: 2 | G7: 10 | H7: عبدالملك محمد علي سعيد الموشكي
F8: 3 | G8: 11 | H8: كريمه حسن علي سعيد
F9: 4 | G9: 13 | H9: صالح محمد سعيد الموشكي
F10: 5 | G10: 18 | H10: هيثم صالح صالح حسن
F11: 6 | G11: 19 | H11: حفظ الله محمد سعيد الموشكي
F12: 7 | G12: 26 | H12: ضيف الله علي ناجي حسن
F13: 8 | G13: 36 | H13: محمد محسن ناجي الشجني
F14: 9 | G14: 40 | H14: تقوى محمد أحمد الظاهري
F15: 10 | G15: 41 | H15: عبد الله محمد سعيد الموشكي
F16: 11 | G16: 54 | H16: مديره محمد ناجي الموشكي
F17: 12 | G17: 57 | H17: مبروك محمد صالح علي الموشكي
F18: 13 | G18: 58 | H18: عدنان صالح صالح حسن
F19: 14 | G19: 59 | H19: عبد الحكيم محسن علي صالح
F20: 15 | G20: 60 | H20: سعد عبدالله حسن الموشكي
F21: 16 | G21: 71 | H21: سعد أحمد سعيد العفيري
F22: 17 | G22: 72 | H22: خالد أحمد سعيد العفيري
F23: 18 | G23: 75 | H23: امل علي سعد ناجي العفيري

Sheet ورقة4 (hidden)

Sheet بيانات الملاك (hidden)
E1: كشف بيانات الأسر الخاص بالدراسة الفنية لمشروع السقايات الخاصه لقربه :الموقعة.-عزلة: موشك.-مديريه :مغرب عنس -محافظة:ذمار | T1: رقم المشروع : | V1: 911-13583
B2: N | C2: رقم السقاية | D2: رقم الاسره | E2: ققيذ | F2: المالك | G2: رقم الهوية ش/ع | H2: نوعها | I2: رقم الهاتف | J2: القريه | K2: اسم المحل | L2: العمر | M2: الجنس | N2: الصفة أب ام زوجه ابن ابنة | O2: عدد الافراد ضمن الاسره | Q2: عدد الافراد العاملين | S2: نوع تاثر الاسره في المجتمع | V2: منطقة النزوح | X2: عامل ماهر | Y2: المستوى التعليمي | Z2: استخدام الاندرويد | AA2: الموقع الجغرافي
O3: ذكور | P3: اناث | Q3: ذكور | R3: اناث | S3: اصلي | T3: نازح | U3: عائد | V3: محافظه | W3: مديريه | AA3: longitude | AB3: Atitude
B4: 1 | C4: 1 | D4: 1 | E4: زين احمد احمد الظاهري | F4: √ | G4: 17000076145 | H4: شخصيه | I4: 772903323 | J4: الموقعة | K4: الموقعه | L4: 43 | M4: ذكر | N4: رب الاسره | O4: 3 | P4: 4 | Q4: 2 | R4: 1 | S4: √ | AA4: 44.135249° | AB4: 14.538923°
B5: =#REF!+1 ->  | C5: 2 | D5: 2 | E5: يحيى ناصر محمد الموشكي | F5: √ | G5: 17010027563 | H5: شخصيه | I5: 775958420 | J5: الموقعة | K5: الموقعه | L5: 44 | M5: ذكر | N5: رب الاسره | O5: 2 | P5: 1 | Q5: 2 | R5: 1 | S5: √ | Y5: دبلوم | Z5: 1 | AA5: 44.135385° | AB5: 14.538980°
B6: =#REF!+1 ->  | C6: 3 | D6: 3 | E6: صلاح الدين ناصر محمد الموشكي | F6: √ | G6: 17010040204 | H6: شخصيه | I6: 773456139 | J6: الموقعة | K6: الموقعه | L6: 31 | M6: ذكر | N6: رب اسره | O6: 1 | P6: 2 | Q6: 1 | R6: 1 | S6: √ | Y6: دبلوم | Z6: 1 | AA6: 44.135492° | AB6: 14.538755°
B7: =#REF!+1 ->  | C7: 4 | D7: 4 | E7: لطيفه حسن علي ناصر اليريمي | F7: √ | G7: 17000072751 | H7: شخصيه | I7: 777608971 | J7: الموقعة | K7: الموقعه | L7: 35 | M7: انثى | N7: ربة اسره | O7: 4 | P7: 5 | Q7: 1 | R7: 1 | S7: √ | Y7: ثانوي | Z7: 1 | AA7: 44.135378° | AB7: 14.538749°
B8: =#REF!+1 ->  | C8: 5 | D8: 5 | E8: جمال أحمد ثابت محمد الموشكي | F8: √ | G8: 17010230045 | H8: شخصيه | I8: 773730403 | J8: الموقعة | K8: الموقعه | L8: 39 | M8: ذكر | N8: رب اسره | O8: 3 | P8: 1 | Q8: 1 | R8: 1 | Y8: جامعي | Z8: 1 | AA8: 44.135635° | AB8: 14.539070°
B9: =#REF!+1 ->  | C9: 6 | D9: 6 | E9: بدره أحمد ثابت محمد سعيد | F9: √ | G9: 17000050469 | H9: شخصيه | I9: 772543430 | J9: الموقعة | K9: الموقعه | L9: 23 | M9: انثى | N9: ربة اسره | O9: 1 | P9: 2 | Q9: 1 | R9: 2 | S9: √ | AA9: 44.135608° | AB9: 14.539141°
B10: =#REF!+1 ->  | C10: 7 | D10: 7 | E10: ماجد ثابت عبد الله الموشكي | F10: √ | G10: 17010044881 | H10: شخصيه | I10: 776541570 | J10: الموقعة | K10: الموقعه | L10: 30 | M10: ذكر | N10: رب اسره | O10: 3 | P10: 1 | Q10: 1 | R10: 1 | S10: √ | AA10: 44.135565° | AB10: 14.539325°
B11: =#REF!+1 ->  | C11: 8 | D11: 8 | E11: رزيقه محمد حسين المحلي | F11: √ | G11: 17000054661 | H11: شخصيه | I11: 770179496 | J11: الموقعة | K11: الموقعه | L11: 75 | M11: انثى | N11: ربة اسره | O11: 1 | P11: 2 | Q11: 1 | R11: 1 | S11: √ | X11: معدم | AA11: 44.135758° | AB11: 14.539139°
B12: =#REF!+1 ->  | C12: 9 | D12: 9 | E12: عادل علي محمد الموشكي | F12: √ | G12: 17010027391 | H12: شخصيه | I12: 778392025 | J12: الموقعة | K12: الموقعه | L12: 43 | M12: ذكر | N12: رب اسره | O12: 4 | P12: 6 | Q12: 2 | R12: 1 | S12: √ | X12: كهرباء تلييس | Z12: 1 | AA12: 44.135918° | AB12: 14.539225°
B13: =B12+1 ->  | E13: الصديق عادل علي الموشكي | G13: 7408656 | H13: جواز سفر | I13: 774630719 | L13: 22 | M13: ذكر | N13: ابن
B14: =#REF!+1 ->  | C14: 10 | D14: 10 | E14: عبدالملك محمد علي سعيد الموشكي | F14: √ | G14: 17010092910 | H14: شخصيه | I14: 770154757 | J14: الموقعة | K14: الموقعه | L14: 33 | M14: ذكر | N14: رب اسره | O14: 5 | P14: 4 | Q14: 2 | R14: 1 | S14: √ | X14: لا | Y14: ثانوي | Z14: 1 | AA14: 44.136031° | AB14: 14.539378°
B15: =#REF!+1 ->  | C15: 11 | D15: 11 | E15: كريمه حسن علي سعيد | F15: √ | G15: 17000032603 | H15: شخصيه | I15: 771304829 | J15: الموقعة | K15: الموقعه | L15: 36 | M15: انثى | N15: رب اسره | O15: 2 | P15: 3 | Q15: 1 | R15: 1 | S15: √ | AA15: 44.136081° | AB15: 14.539097°
B16: =#REF!+1 ->  | C16: 12 | D16: 12 | E16: محمد سعد سعيد الموشكي | F16: √ | G16: 17010286917 | H16: شخصيه | I16: 777489720 | J16: الموقعة | K16: الموقعه | L16: 53 | M16: ذكر | N16: رب اسره | O16: 3 | P16: 4 | Q16: 2 | R16: 1 | S16: √ | AA16: 44.136034° | AB16: 14.539483°
B17: =#REF!+1 ->  | C17: 13 | D17: 13 | E17: صالح محمد سعيد أحمد الموشكي | F17: √ | G17: 17010287863 | H17: شخصيه | I17: 772351347 | J17: الموقعة | K17: الموقعه | L17: 60 | M17: ذكر | N17: رب اسره | O17: 2 | P17: 3 | Q17: 1 | R17: 1 | S17: √ | AA17: 44.135918° | AB17: 14.539545°
B18: =#REF!+1 ->  | C18: 14 | D18: 14 | E18: عادل قائد ناجي الموشكي | F18: √ | G18: 1701080130 | H18: شخصيه | I18: 773981393 | J18: الموقعة | K18: الموقعه | L18: 44 | M18: ذكر | N18: رب اسره | O18: 5 | P18: 2 | Q18: 2 | R18: 1 | S18: √ | Y18: ثانوي | Z18: 1 | AA18: 44.135681° | AB18: 14.538589°
B19: =#REF!+1 ->  | C19: 15 | D19: 15 | E19: محسن عبد الله حسن الموشكي | F19: √ | G19: 1010601418 | H19: شخصيه | I19: 776020850 | J19: الموقعة | K19: الموقعه | L19: 42 | M19: ذكر | N19: رب اسره | O19: 4 | P19: 3 | Q19: 1 | R19: 1 | S19: √ | Y19: ثانوي | AA19: 44.135458° | AB19: 14.538837°
B20: =#REF!+1 ->  | C20: 16 | D20: 16 | E20: فارس محمد سعد سعيد الموشكي | F20: √ | G20: 1701001566 | H20: شخصيه | I20: 772332741 | J20: الموقعة | K20: الموقعه | L20: 32 | M20: ذكر | N20: رب اسره | O20: 3 | P20: 3 | Q20: 1 | R20: 1 | S20: √ | Y20: ثانوي | Z20: 1 | AA20: 44.135432° | AB20: 14.538401°
B21: =#REF!+1 ->  | C21: 18 | D21: 18 | E21: هيثم صالح صالح حسن | F21: √ | G21: 17010106056 | I21: 772629684 | J21: الموقعة | K21: الموقعه | L21: 25 | M21: انثى | N21: ربة اسره | O21: 3 | P21: 2 | Q21: 1 | R21: 1 | S21: √ | AA21: 44.135602° | AB21: 14.538305°
A22: م | B22: =#REF!+1 ->  | C22: 19 | D22: 19 | E22: حفظ الله محمد سعيد الموشكي | G22: 17010215162 | H22: شخصيه | I22: 777629150 | J22: الموقعة | K22: الموقعه | L22: 36 | M22: ذكر | N22: رب اسره | O22: 4 | P22: 3 | Q22: 1 | R22: 2 | S22: √ | Y22: اساسي | AA22: 44.135366° | AB22: 14.538307°
B23: =#REF!+1 ->  | C23: 20 | D23: 20 | E23: يحيى ثابت محمد سعيد الموشكي | F23: √ | G23: 17010215162 | H23: شخصيه | I23: 777505441 | J23: الموقعة | K23: الموقعه | L23: 46 | M23: ذكر | N23: رب اسره | O23: 3 | P23: 5 | Q23: 1 | R23: 2 | S23: √ | X23: معدم | AA23: 44.135380° | AB23: 14.538237°
B24: =#REF!+1 ->  | C24: 21 | D24: 21 | E24: عبد الرحمن عبد الواحد محسن محمد | F24: √ | G24: 17010256841 | H24: شخصيه | I24: 770737499 | J24: الموقعة | K24: الموقعه | L24: 19 | M24: ذكر | N24: رب اسره | O24: 3 | P24: 3 | Q24: 2 | R24: 1 | S24: √ | Y24: ثانوي | Z24: 1 | AA24: 44.135214° | AB24: 14.537933°
B25: =#REF!+1 ->  | C25: 22 | D25: 22 | E25: عزالدين محمد محمد سعيد الموشكي | F25: √ | G25: 17010068515 | H25: شخصيه | I25: 771795920 | J25: الموقعة | K25: الموقعه | L25: 28 | M25: ذكر | N25: رب اسره | O25: 3 | P25: 4 | Q25: 1 | R25: 1 | S25: √ | Y25: اساسي | Z25: 1 | AA25: 44.135138° | AB25: 14.537947°
B26: =#REF!+1 ->  | C26: 23 | D26: 23 | E26: حمود عبده ناجي حسن الموقعي | F26: √ | G26: 1010890469 | H26: شخصيه | I26: 773733906 | J26: الموقعة | K26: الموقعه | L26: 34 | M26: ذكر | N26: رب اسره | O26: 3 | P26: 2 | Q26: 1 | R26: 1 | S26: √ | Y26: اساسي | Z26: 1 | AA26: 44.135188° | AB26: 14.537402°
B27: =#REF!+1 ->  | C27: 24 | D27: 24 | E27: محمد عبده ناجي حسن | F27: √ | G27: 17010040374 | H27: شخصيه | I27: 772254616 | J27: الموقعة | K27: الموقعه | L27: 30 | M27: ذكر | N27: رب اسره | O27: 4 | P27: 3 | Q27: 1 | R27: 1 | S27: √ | AA27: 44.135076° | AB27: 14.537979°
B28: =#REF!+1 ->  | C28: 25 | D28: 25 | E28: صادق علي ناصر العنسي | F28: √ | G28: 17010036624 | H28: شخصيه | I28: 771868306 | J28: الموقعة | K28: الموقعه | L28: 35 | M28: ذكر | N28: رب اسره | O28: 3 | P28: 2 | Q28: 1 | R28: 1 | U28: √ | Y28: اساسي | Z28: 1 | AA28: 44.134772° | AB28: 14.537725°
B29: =#REF!+1 ->  | C29: 26 | D29: 26 | E29: ضيف الله علي ناجي حسن | F29: √ | G29: 1010458247 | H29: شخصيه | I29: 771489101 | J29: الموقعة | K29: الموقعه | L29: 40 | M29: ذكر | N29: رب اسره | O29: 4 | P29: 4 | Q29: 2 | R29: 1 | S29: √ | Y29: اساسي | Z29: 1 | AA29: 44.134637° | AB29: 14.537662°
B30: =#REF!+1 ->  | C30: 27 | D30: 27 | E30: امير سعد ناجي حسن | F30: √ | G30: 17010256747 | H30: شخصيه | I30: 771147139 | J30: الموقعة | K30: الموقعه | L30: 28 | M30: ذكر | N30: رب اسره | O30: 2 | P30: 1 | Q30: 2 | R30: 1 | S30: √ | Y30: اساسي | Z30: 1 | AA30: 44.134989° | AB30: 14.537729°
B31: =#REF!+1 ->  | C31: 28 | D31: 28 | E31: محمد مسعد ناجي حسن الموشكي | F31: √ | G31: 17010252763 | H31: شخصيه | I31: 773859233 | J31: الموقعة | K31: الموقعه | L31: 46 | M31: ذكر | N31: رب اسره | O31: 3 | P31: 6 | Q31: 1 | R31: 1 | S31: √ | Y31: اساسي | Z31: 1 | AA31: 44.135175° | AB31: 14.537763°
B32: =#REF!+1 ->  | C32: 29 | D32: 29 | E32: رشاد احمد صالح حسن العنسي | F32: √ | G32: 1010728192 | H32: شخصيه | I32: 777034595 | J32: الموقعة | K32: الموقعه | L32: 21 | M32: ذكر | N32: رب اسره | O32: 5 | P32: 5 | Q32: 3 | R32: 0 | S32: √ | Y32: ثانوي | AA32: 44.135101° | AB32: 14.537667°
B33: =#REF!+1 ->  | C33: 30 | D33: 30 | E33: الشرفي علي ناجي سعيد الشجني | F33: √ | G33: 17010203412 | H33: شخصيه | I33: 773585640 | J33: الموقعة | K33: الموقعه | L33: 21 | M33: ذكر | N33: رب اسره | O33: 2 | P33: 3 | Q33: 2 | R33: 1 | S33: √ | Y33: اساسي | Z33: 1 | AA33: 44.135602° | AB33: 14.537282°
B34: =#REF!+1 ->  | C34: 31 | D34: 31 | E34: علي علي محمد ناصر الموشكي | F34: √ | G34: 17010133469 | H34: شخصيه | I34: 771699480 | J34: الموقعة | K34: الموقعه | L34: 38 | M34: ذكر | N34: رب اسره | O34: 6 | P34: 1 | Q34: 1 | R34: 1 | S34: √ | X34: بناء | Y34: اساسي | Z34: 1 | AA34: 44.135755° | AB34: 14.537461°
B35: =#REF!+1 ->  | C35: 32 | D35: 32 | E35: صادق علي محمد سعيد ناصر | F35: √ | G35: 17010042527 | H35: شخصيه | I35: 771865392 | J35: الموقعة | K35: الموقعه | L35: 31 | M35: ذكر | N35: رب اسره | O35: 2 | P35: 4 | Q35: 1 | R35: 1 | S35: √ | AA35: 44.135827° | AB35: 14.537504°
B36: =#REF!+1 ->  | C36: 33 | D36: 33 | E36: محمد علي محمد سعيد | F36: √ | G36: 17010011617 | H36: شخصيه | I36: 770453992 | J36: الموقعة | K36: الموقعه | L36: 33 | M36: ذكر | N36: رب اسره | O36: 3 | P36: 3 | Q36: 1 | R36: 1 | S36: √ | X36: بناء | Y36: ثانوي | Z36: 1 | AA36: 44.135829° | AB36: 14.537613°
B37: =#REF!+1 ->  | C37: 34 | D37: 34 | E37: محي الدين محمد محمد الموشكى | F37: √ | G37: 17010144377 | H37: شخصيه | I37: 777697695 | J37: الموقعة | K37: الموقعه | L37: 50 | M37: ذكر | N37: رب اسره | O37: 1 | P37: 1 | Q37: 1 | R37: 1 | U37: √ | Y37: اساسي | Z37: 1 | AA37: 44.135801° | AB37: 14.537683°
B38: =#REF!+1 ->  | C38: 35 | D38: 35 | E38: علي محمد سعيد الموشكي | F38: √ | G38: 17010263172 | H38: شخصيه | I38: 770950718 | J38: الموقعة | K38: الموقعه | L38: 65 | M38: ذكر | N38: رب اسره | O38: 3 | P38: 4 | Q38: 2 | R38: 1 | S38: √ | AA38: 44.135812° | AB38: 14.537210°
B39: =B38+1 ->  | E39: مجاهد علي محمد سعيد الموشكي | G39: 17010263172 | H39: شخصيه | L39: 40 | M39: ذكر | N39: ابن
B40: =#REF!+1 ->  | C40: 36 | D40: 36 | E40: محمد محسن ناجي الشجني | F40: √ | G40: 17010177802 | H40: شخصيه | I40: 770649997 | J40: الموقعة | K40: الموقعه | L40: 20 | M40: ذكر | N40: رب اسره | O40: 4 | P40: 2 | Q40: 1 | R40: 2 | S40: √ | Y40: جامعي | Z40: 1 | AA40: 44.135589° | AB40: 14.537155°
B41: =#REF!+1 ->  | C41: 38 | D41: 38 | E41: حفظ الله صالح محمد صالح الموشكي | F41: √ | G41: 17010274991 | H41: شخصيه | I41: 777599578 | J41: الموقعة | K41: الموقعه | L41: 38 | M41: ذكر | N41: رب اسره | O41: 5 | P41: 3 | Q41: 1 | R41: 2 | S41: √ | Y41: اساسي | Z41: 1 | AA41: 44.136448° | AB41: 14.536482°
B42: =#REF!+1 ->  | C42: 39 | D42: 39 | E42: عبد الله سعد حسن علي الموشكي | F42: √ | G42: 17010010993 | H42: شخصيه | I42: 770980749 | J42: الموقعة | K42: الموقعه | L42: 58 | M42: ذكر | N42: رب اسره | O42: 1 | P42: 2 | Q42: 1 | R42: 2 | S42: √ | Y42: اساسي | AA42: 44.136991° | AB42: 14.536959°
B43: =#REF!+1 ->  | C43: 40 | D43: 40 | E43: تقوى محمد أحمد الظاهري | F43: √ | G43: 100302769 | H43: شخصيه | I43: 771689838 | J43: الموقعة | K43: الموقعه | L43: 58 | M43: انثى | N43: ربة اسره | O43: 4 | P43: 1 | Q43: 2 | R43: 1 | S43: √ | AA43: 44.135856° | AB43: 14.539052°
B44: =#REF!+1 ->  | C44: 41 | D44: 41 | E44: عبد الله محمد سعيد الموشكي | F44: √ | G44: 17010246761 | H44: شخصيه | I44: 773190815 | J44: الموقعة | K44: الموقعه | L44: 45 | M44: ذكر | N44: رب اسره | O44: 4 | P44: 3 | Q44: 2 | R44: 1 | U44: √ | AA44: 44.137190° | AB44: 14.537217°
B45: =#REF!+1 ->  | C45: 42 | D45: 42 | E45: علي صالح محمد سعيد أحمد | F45: √ | G45: 17010040418 | H45: شخصيه | I45: 773016336 | J45: الموقعة | K45: الموقعه | L45: 26 | M45: ذكر | N45: رب اسره | O45: 1 | P45: 2 | Q45: 1 | R45: 1 | S45: √ | Y45: اساسي | Z45: 1 | AA45: 44.135332° | AB45: 14.538346°
B46: =#REF!+1 ->  | C46: 43 | D46: 43 | E46: محمد صالح محمد سعيد الموشكي | F46: √ | G46: 17010035340 | H46: شخصيه | I46: 772945441 | J46: الموقعة | K46: الموقعه | L46: 35 | M46: ذكر | N46: رب اسره | O46: 4 | P46: 3 | Q46: 1 | R46: 1 | U46: √ | X46: بناء | Y46: اساسي | Z46: 1 | AA46: 44.137519° | AB46: 14.536214°
B47: =#REF!+1 ->  | C47: 44 | D47: 44 | E47: عبده علي محمد الموشكي | F47: √ | G47: 17010271326 | H47: شخصيه | I47: 775279042 | J47: الموقعة | K47: الموقعه | L47: 42 | M47: ذكر | N47: رب اسره | O47: 4 | P47: 2 | Q47: 1 | R47: 1 | S47: √ | Y47: اساسي | Z47: 1 | AA47: 44.135746° | AB47: 14.537302°
B48: =#REF!+1 ->  | C48: 45 | D48: 45 | E48: ابراهيم يحيى علي سعيد الموشكي | F48: √ | G48: 1010211928 | H48: شخصيه | I48: 771603665 | J48: الموقعة | K48: الموقعه | L48: 35 | M48: ذكر | N48: رب اسره | O48: 2 | P48: 3 | Q48: 1 | R48: 1 | S48: √ | AA48: 44.135432° | AB48: 14.538401°
B49: =#REF!+1 ->  | C49: 46 | D49: 46 | E49: حميد عبده ناجي حسن | F49: √ | G49: 1701020177 | H49: شخصيه | I49: 775866246 | J49: الموقعة | K49: الموقعه | L49: 22 | M49: ذكر | N49: رب اسره | O49: 2 | P49: 3 | Q49: 2 | R49: 1 | S49: √ | Y49: ثانوي | Z49: 1 | AA49: 44.137357° | AB49: 14.537432°
B50: =#REF!+1 ->  | C50: 47 | D50: 47 | E50: مراد ناجي أحمد غالب علي | F50: √ | G50: 17010040816 | H50: شخصيه | I50: 773415231 | J50: الموقعة | K50: معشره | L50: 30 | M50: ذكر | N50: رب اسره | O50: 5 | P50: 2 | Q50: 1 | R50: 2 | S50: √ | Y50: اساسي | Z50: 1 | AA50: 44.140884° | AB50: 14.538522°
B51: =#REF!+1 ->  | C51: 48 | D51: 48 | E51: صدام ناجي أحمد غالب الموقعي | F51: √ | G51: 17010051086 | H51: شخصيه | I51: 777365519 | J51: الموقعة | K51: معشره | L51: 32 | M51: ذكر | N51: رب اسره | O51: 3 | P51: 3 | Q51: 1 | R51: 1 | S51: √ | Y51: اساسي | Z51: 1 | AA51: 44.140926° | AB51: 14.538627°
B52: =#REF!+1 ->  | C52: 49 | D52: 49 | E52: عبده ناجي أحمد الموشكي | F52: √ | G52: 17010085522 | H52: شخصيه | I52: 770393019 | J52: الموقعة | K52: معشره | L52: 35 | M52: ذكر | N52: رب اسره | O52: 4 | P52: 4 | Q52: 1 | R52: 1 | S52: √ | Y52: اساسي | Z52: 1 | AA52: 44.140768° | AB52: 14.538681°
B53: =#REF!+1 ->  | C53: 50 | D53: 50 | E53: خليل محمد صالح أحمد الموشكي | F53: √ | G53: 17010040132 | H53: شخصيه | I53: 774624830 | J53: الموقعة | K53: معشرة | L53: 30 | M53: ذكر | N53: رب اسره | O53: 5 | P53: 1 | Q53: 1 | R53: 1 | S53: √ | X53: بناء | Y53: اساسي | Z53: 1 | AA53: 44.140716° | AB53: 14.538150°
B54: =#REF!+1 ->  | C54: 51 | D54: 51 | E54: عبده محمد صالح أحمد الموشكي | F54: √ | G54: 17010070516 | H54: شخصيه | I54: 770491172 | J54: الموقعة | K54: معشره | L54: 28 | M54: ذكر | N54: رب اسره | O54: 3 | P54: 2 | Q54: 1 | R54: 1 | S54: √ | Y54: اساسي | Z54: 1 | AA54: 44.140587° | AB54: 14.538280°
B55: =#REF!+1 ->  | C55: 52 | D55: 52 | E55: علي ناجي أحمد الموشكي | F55: √ | G55: 17010144940 | H55: شخصيه | I55: 771310800 | J55: الموقعة | K55: معشره | L55: 44 | M55: ذكر | N55: رب اسره | O55: 3 | P55: 6 | Q55: 1 | R55: 1 | S55: √ | Y55: اساسي | Z55: 1 | AA55: 44.140335° | AB55: 14.538022°
B56: =#REF!+1 ->  | C56: 53 | D56: 53 | E56: رمزي محمد صالح أحمد | F56: √ | G56: 17010254472 | H56: شخصيه | I56: 770393189 | J56: الموقعة | K56: معشره | L56: 21 | M56: ذكر | N56: رب اسره | O56: 3 | P56: 1 | Q56: 3 | R56: 0 | S56: √ | Y56: اساسي | Z56: 1 | AA56: 44.140651° | AB56: 14.538209°
B57: =#REF!+1 ->  | C57: 54 | D57: 54 | E57: مديره محمد ناجي الموشكي | F57: √ | G57: 17000069941 | H57: شخصيه | I57: 771310800 | J57: الموقعة | K57: معشره | L57: 18 | M57: انثى | N57: ربة اسره | O57: 1 | P57: 5 | Q57: 1 | R57: 1 | S57: √ | X57: معدم | AA57: 44.140285° | AB57: 14.537794°
B58: =#REF!+1 ->  | C58: 55 | D58: 55 | E58: كاتبه عبد الله محمد الموشكي | F58: √ | G58: 17000069231 | H58: شخصيه | I58: 773945109 | J58: الموقعة | K58: المريد | L58: 39 | M58: انثى | N58: ربة اسره | O58: 1 | P58: 8 | Q58: 1 | R58: 2 | S58: √ | X58: معدم | AA58: 44.141223° | AB58: 14.536334°
B59: =#REF!+1 ->  | C59: 56 | D59: 56 | E59: عمار محمد صالح الموشكي | F59: √ | G59: 17010067525 | H59: شخصيه | I59: 771678998 | J59: الموقعة | K59: المريد | L59: 29 | M59: ذكر | N59: رب اسره | O59: 5 | P59: 4 | Q59: 3 | R59: 0 | S59: √ | Y59: ثانوي | AA59: 44.140582° | AB59: 14.536976°
B60: =#REF!+1 ->  | C60: 57 | D60: 57 | E60: مبروك محمد صالح على الموشكي | F60: √ | G60: 17010254364 | H60: شخصيه | I60: 772097473 | J60: الموقعة | K60: المريد | L60: 35 | M60: ذكر | N60: رب اسره | O60: 5 | P60: 5 | Q60: 1 | R60: 2 | S60: √ | AA60: 44.140517° | AB60: 14.537002°
B61: =#REF!+1 ->  | C61: 58 | D61: 58 | E61: عدنان صالح صالح حسن | F61: √ | G61: 17010108703 | H61: شخصيه | I61: 772406019 | J61: الموقعة | K61: الموقعه | L61: 26 | M61: ذكر | N61: رب اسره | O61: 4 | P61: 3 | Q61: 1 | R61: 1 | S61: √ | Y61: اساسي | Z61: 1 | AA61: 44.137487° | AB61: 14.534770°
B62: =#REF!+1 ->  | C62: 59 | D62: 59 | E62: عبد الحكيم محسن علي صالح | F62: √ | G62: 17010169249 | I62: 774608024 | J62: الموقعة | K62: المريد | L62: 28 | M62: ذكر | N62: رب اسره | O62: 5 | P62: 3 | Q62: 3 | R62: 0 | S62: √ | X62: معدم | Y62: اساسي | Z62: 1 | AA62: 44.141112° | AB62: 14.536352°
B63: =#REF!+1 ->  | C63: 60 | D63: 60 | E63: سعد عبدالله حسن الموشكي | F63: √ | G63: 17010155242 | H63: شخصيه | I63: 777087560 | J63: الموقعة | K63: الموقعه | L63: 54 | M63: ذكر | N63: ربة اسره | O63: 2 | P63: 3 | Q63: 1 | R63: 1 | S63: √ | AA63: 44.135856° | AB63: 14.539052°
B64: =#REF!+1 ->  | C64: 61 | D64: 61 | E64: (المدرسة) محمد ناصر محمد الموشكي | F64: √ | G64: 17010000683 | H64: شخصيه | I64: 777568199 | J64: الموقعة | K64: الموقعه | L64: 55 | M64: ذكر | N64: مدير مدرسة | O64: 3 | P64: 0 | Q64: 3 | R64: 0 | S64: √ | Y64: جامعي | Z64: 1 | AA64: 44.137711° | AB64: 14.537538°
B65: =#REF!+1 ->  | C65: 62 | D65: 62 | E65: اكرم علي غالب زيدان | F65: √ | G65: 17010256354 | H65: شخصيه | I65: 773205013 | J65: الموقعة | K65: بني زيدان | L65: 24 | M65: ذكر | N65: رب اسره | O65: 5 | P65: 3 | Q65: 2 | R65: 0 | S65: √ | Y65: ثانوي | Z65: 1 | AA65: 44.134575° | AB65: 14.532337°
B66: =#REF!+1 ->  | C66: 63 | D66: 63 | E66: محمد غالب محمد زيدان | F66: √ | G66: 17010160960 | H66: شحصيه | I66: 773096921 | J66: الموقعة | K66: بني زيدان | L66: 59 | M66: ذكر | N66: رب اسره | O66: 3 | P66: 5 | Q66: 1 | R66: 1 | S66: √ | AA66: 44.134660° | AB66: 14.532429°
B67: =#REF!+1 ->  | C67: 64 | D67: 64 | E67: فؤاد محمد غالب محمد زيدان | F67: √ | G67: 17010222565 | H67: شحصيه | I67: 770010321 | J67: الموقعة | K67: بني زيدان | L67: 34 | M67: ذكر | N67: رب اسره | O67: 2 | P67: 3 | Q67: 1 | R67: 1 | S67: √ | X67: بناء ومليس | Y67: ثانوي | Z67: 1 | AA67: 44.134660° | AB67: 14.532429°
B68: =#REF!+1 ->  | C68: 65 | D68: 65 | E68: علي أحمد غالب زيدان | F68: √ | G68: 17010144416 | H68: شحصيه | I68: 777882464 | J68: الموقعة | K68: بني زيدان | L68: 58 | M68: ذكر | N68: رب اسره | O68: 5 | P68: 1 | Q68: 3 | R68: 0 | S68: √ | AA68: 44.134372° | AB68: 14.532467°
B69: =#REF!+1 ->  | C69: 66 | D69: 66 | E69: فاطمه سعد احمد احمد زيدان | F69: √ | G69: 17000078054 | I69: 7738817026 | J69: الموقعة | K69: بني زيدان | L69: 50 | M69: انثى | N69: رب اسره | O69: 1 | P69: 6 | Q69: 0 | R69: 2 | S69: √ | X69: معدم | AA69: 44.134436° | AB69: 14.532325°
B70: =#REF!+1 ->  | C70: 67 | D70: 67 | E70: زيد محمد علي صالح زيدان | F70: √ | G70: 17010147513 | H70: شخصيه | I70: 773196525 | J70: الموقعة | K70: بني زيدان | L70: 60 | M70: ذكر | N70: رب اسره | O70: 3 | P70: 3 | Q70: 1 | R70: 2 | S70: √ | AA70: 44.135379° | AB70: 14.531605°
B71: =#REF!+1 ->  | C71: 68 | D71: 68 | E71: علي غالب محمد زيدان | F71: √ | G71: 17010144989 | H71: شخصيه | I71: 776207182 | J71: الموقعة | K71: بني زيدان | L71: 62 | M71: ذكر | N71: رب اسره | O71: 2 | P71: 1 | Q71: 2 | R71: 1 | S71: √ | X71: بناء | AA71: 44.135065° | AB71: 14.531179°
B72: =#REF!+1 ->  | C72: 70 | D72: 70 | E72: حمود مسعد محمد العفيري | F72: √ | G72: 17010148006 | H72: شخصيه | I72: 770876620 | J72: الموقعة | K72: بني زيدان | L72: 45 | M72: ذكر | N72: رب اسره | O72: 5 | P72: 6 | Q72: 2 | R72: 1 | S72: √ | Y72: اساسي | Z72: 1 | AA72: 44.132710° | AB72: 14.534550°
B73: =#REF!+1 ->  | C73: 71 | D73: 71 | E73: سعد أحمد سعيد العفيري | F73: √ | G73: 17010286840 | H73: عسكريه | I73: 775589773 | J73: الموقعة | K73: بني زيدان | L73: 50 | M73: ذكر | N73: رب اسره | O73: 3 | P73: 5 | Q73: 2 | R73: 1 | S73: √ | AA73: 44.130685° | AB73: 14.533196°
B74: =#REF!+1 ->  | C74: 72 | D74: 72 | E74: خالد أحمد سعيد العفيري | F74: √ | G74: 17010287914 | H74: شخصيه | I74: 770523976 | J74: الموقعة | K74: بني زيدان | L74: 44 | M74: ذكر | N74: رب اسره | O74: 5 | P74: 4 | Q74: 1 | R74: 1 | S74: √ | Y74: ثانوي | Z74: 1 | AA74: 44.130599° | AB74: 14.533176°
B75: =#REF!+1 ->  | C75: 73 | D75: 73 | E75: علي سعد ناجي العفيري | F75: √ | G75: 17010165685 | H75: شخصيه | I75: 777630451 | J75: الموقعة | K75: بني زيدان | L75: 50 | M75: ذكر | N75: رب اسره | O75: 6 | P75: 7 | Q75: 2 | R75: 0 | S75: √ | AA75: 44.130108° | AB75: 14.533119°
B76: =#REF!+1 ->  | C76: 74 | D76: 74 | E76: أحمد علي سعد ناجي | F76: √ | G76: 17010071906 | H76: شخصيه | I76: 773197084 | J76: الموقعة | K76: بني زيدان | L76: 25 | M76: ذكر | N76: رب اسره | O76: 1 | P76: 3 | Q76: 1 | R76: 1 | S76: √ | Y76: جامعي | Z76: 1 | AA76: 44.130312° | AB76: 14.533319°
B77: =#REF!+1 ->  | C77: 75 | D77: 75 | E77: امل علي سعد ناجي العفيري | F77: √ | G77: 17000078132 | H77: ع | I77: 774144769 | J77: الموقعة | K77: بني زيدان | L77: 25 | M77: انثى | N77: ربة اسره | O77: 2 | P77: 2 | Q77: 1 | R77: 1 | S77: √ | AA77: 44.129980° | AB77: 14.533254°
B78: =#REF!+1 ->  | C78: 76 | D78: 76 | E78: جمال جميل مسعد محمد زيدان | F78: √ | G78: 17010251726 | H78: شخصيه | I78: 778928322 | J78: الموقعة | K78: بني زيدان | L78: 19 | M78: ذكر | N78: رب اسره | O78: 3 | P78: 4 | Q78: 2 | R78: 0 | S78: √ | Y78: اساسي | Z78: 1 | AA78: 44.132225° | AB78: 14.531379°
B79: =#REF!+1 ->  | C79: 77 | D79: 77 | E79: مراد علي غالب محمد زيدان | F79: √ | G79: 17010098613 | H79: شخصيه | I79: 776073637 | J79: الموقعة | K79: بني زيدان | L79: 25 | M79: ذكر | N79: رب اسره | O79: 4 | P79: 8 | Q79: 1 | R79: 1 | S79: √ | Y79: اساسي | Z79: 1 | AA79: 44.135299° | AB79: 14.527365°
B80: =#REF!+1 ->  | C80: 78 | D80: 78 | E80: عبد الكريم غالب قايد زيدان | F80: √ | G80: 17010038640 | H80: شخصيه | I80: 777689273 | J80: الموقعة | K80: بني زيدان | L80: 30 | M80: ذكر | N80: رب اسره | O80: 1 | P80: 2 | Q80: 1 | R80: 1 | S80: √ | Y80: ثانوي | Z80: 1 | AA80: 44.135446° | AB80: 14.527257°
B81: =#REF!+1 ->  | C81: 79 | D81: 79 | E81: لطف غالب قايد زيدان | F81: √ | G81: 17010003001 | H81: شحصيه | I81: 770199600 | J81: الموقعة | K81: بني زيدان | L81: 35 | M81: ذكر | N81: رب اسره | O81: 3 | P81: 3 | Q81: 1 | R81: 1 | S81: √ | Y81: ثانوي | Z81: 1 | AA81: 44.135582° | AB81: 14.527363°
B82: =#REF!+1 ->  | C82: 80 | D82: 80 | E82: عبدالخالق محمد علي علي زيدان | F82: √ | G82: 17010098661 | H82: شخصيه | I82: 773713149 | J82: الموقعة | K82: بني زيدان | L82: 31 | M82: ذكر | N82: رب اسره | O82: 4 | P82: 3 | Q82: 2 | R82: 0 | S82: √ | Y82: اساسي | Z82: 1 | AA82: 44.134414° | AB82: 14.531471°
B83: =#REF!+1 ->  | C83: 81 | D83: 81 | E83: عبده علي أحمد عبدالله العفيري | F83: √ | G83: 17010148453 | H83: شخصيه | I83: 772606086 | J83: الموقعة | K83: بني زيدان | L83: 60 | M83: ذكر | N83: رب اسره | O83: 4 | P83: 3 | Q83: 1 | R83: 1 | S83: √ | AA83: 44.135512° | AB83: 14.527264°
B84: =#REF!+1 ->  | C84: 82 | D84: 82 | E84: مثير غالب قايد محمد زيدان | F84: √ | G84: 17010080583 | H84: شخصيه | I84: 773129197 | J84: الموقعة | K84: بني زيدان | L84: 33 | M84: ذكر | N84: رب اسره | O84: 4 | P84: 2 | Q84: 1 | R84: 1 | S84: √ | Y84: اساسي | Z84: 1 | AA84: 44.135535° | AB84: 14.527498°
B85: =#REF!+1 ->  | C85: 83 | D85: 83 | E85: محي الدين محمد أحمد العفيري | F85: √ | G85: 17010165947 | H85: شخصيه | I85: 777164827 | J85: الموقعة | K85: بني زيدان | L85: 40 | M85: ذكر | N85: رب اسره | O85: 5 | P85: 4 | Q85: 1 | R85: 1 | S85: √ | Y85: اساسي | Z85: 1 | AA85: 44.135893° | AB85: 14.527451°
B86: =#REF!+1 ->  | C86: 84 | D86: 84 | E86: عبدالسلام محمد أحمد زيدان | F86: √ | G86: 17010166033 | H86: شخصيه | I86: 773205013 | J86: الموقعة | K86: بني زيدان | L86: 55 | M86: ذكر | N86: رب اسره | O86: 2 | P86: 6 | Q86: 1 | R86: 1 | S86: √ | Y86: اساسي | Z86: 1 | AA86: 44.135681° | AB86: 14.527358°
M90: انثى | N90: زوجه | O90: =SUM(O4:O86) -> 259 | P90: =SUM(P4:P86) -> 260 | Q90: =SUM(Q4:Q86) -> 113 | R90: =SUM(R4:R86) -> 82
O91: =O90+P90 -> 519 | Q91: =R90+Q90 -> 195
G154: جدول الحصر للعد المساكن وافراد الاسر والافراد العاملين ضمن الاسره
G155: القربه | H155: المحلة | I155: عدد المساكن | J155: عدد افراد الاسره | L155: عدد العاملين ضمن الاسره
J156: ذكر | K156: 1 | L156: ذكر | M156: انثى
G157: قربه الموقعة | H157: الموقعة | I157: 49 | J157: 146 | K157: 140 | L157: 64 | M157: 57
H158: معشرة | I158: 8 | J158: 27 | K158: 24 | L158: 9 | M158: 7
H159: المريد | I159: 4 | J159: 16 | K159: 23 | L159: 6 | M159: 3
H160: بني زيدان | I160: 23 | J160: 75 | K160: 91 | L160: 31 | M160: 25
G161: الاجمالي | I161: =SUM(I157:I160) -> 84 | J161: =SUM(J157:J160) -> 264 | K161: =SUM(K157:K160) -> 278 | L161: =SUM(L157:L160) -> 110 | M161: =SUM(M157:M160) -> 92
G162: الاجمالي الكلي | I162: =I161 -> 84 | J162: =J161 -> 264 | K162: =K161 -> 278 | L162: =L161 -> 110 | M162: =M161 -> 92
G163: اجمالي عدد افراد الاسر والعاملين | J163: =J162+K162 -> 542 | L163: =L162+M162 -> 202
G165: جدول حساب ادوات الامن والسلامة مع التكلفة
G166: بيان بالمواد | H166: سترة ( يلق ) | I166: خوذة بلاستيكية | J166: حذاء سلامه | K166: حذاء طويل صبة | L166: كفوف قماشية | M166: كفوف مطاطية | N166: نظارة بلاستيكية | O166: كمامه بالستيكية | P166: الاجمالي
G167: الكمية | H167: =s -> 202 | I167: =s -> 202 | J167: =s -> 202 | K167: =s -> 202 | L167: =s -> 202 | M167: =s -> 202 | N167: =s -> 202 | O167: =s -> 202
G168: استشاري | H168: 1 | I168: 1 | J168: 1 | K168: 1 | L168: 1 | M168: 1 | N168: 1 | O168: 10
G169: محاسب | H169: 1 | I169: 1 | J169: 1 | K169: 0 | L169: 1 | M169: 1 | N169: 0 | O169: 0
G170: فني مقيم | H170: 2 | I170: 2 | J170: 2 | K170: 2 | L170: 2 | M170: 2 | N170: 2 | O170: 10
G171: الاجمالي | H171: =SUM(H167:H170) -> 206 | I171: 206 | J171: 206 | K171: 205 | L171: 206 | M171: 206 | N171: 205 | O171: 222
G172: سعر الوحده | H172: 800 | I172: 800 | J172: 4000 | K172: 1200 | L172: 500 | M172: 500 | N172: 300 | O172: 120
G173: اجمالي قيمة المبلغ | H173: =H172*H171 -> 164800 | I173: =I172*I171 -> 164800 | J173: =J172*J171 -> 824000 | K173: 246000 | L173: 103000 | M173: 103000 | N173: 61500 | O173: 26640 | P173: =SUM(G173:O173) -> 1693740
G174: 514 | H174: =H173/G174 -> 320.6225681 | I174: =I173/G174 -> 320.6225681 | J174: =J173/G174 -> 1603.11284 | K174: =K173/G174 -> 478.5992218 | L174: =L173/G174 -> 200.3891051 | M174: =M173/G174 -> 200.3891051 | N174: =N173/G174 -> 119.6498054 | O174: =O173/G174 -> 51.82879377 | P174: =P173/G174 -> 3295.214008
G176: عدد العاملين | I176: ذكور | J176: اناث
G177: =s -> 202 | I177: =L162 -> 110 | J177: =M162 -> 92
F179: √
F182: √
F185: √
F188: √
F191: √
F194: √
F197: √
B198: =B197+1 -> 1
B199: 2
B200: 3 | F200: √
B201: 4
B202: 5
B203: 6 | F203: √
B204: 7
B205: 8
B206: 9 | F206: √
B207: 10
B208: 11
B209: 12 | F209: √
B210: 13
B211: 14
B212: 15 | F212: √
B213: 16
B214: 17
B215: 18 | F215: √
B216: 19
B217: 20
B218: 21 | F218: √
B219: 22
B220: 23
B221: 24 | F221: √
B222: 25
B223: 26
B224: 27 | F224: √
B225: 28
B226: 29
B227: 30 | F227: √
B228: 31
B229: 32
B230: 33 | F230: √
B231: 34
B232: 35
B233: 36 | F233: √
B234: 37
B235: 38
B236: 39 | F236: √
B237: 40
B238: 41
B239: 42 | F239: √
B240: 43
B241: 44
B242: 45 | F242: √
B243: 46
B244: 47
B245: 48 | F245: √
B246: 49
B247: 50
B248: 51 | F248: √
B249: 52
B250: 53
B251: 54 | F251: √
B252: 55
B253: 56
B254: 57 | F254: √
B255: 58
B256: 59
B257: 60 | F257: √
B258: 61
B259: 62
B260: 63 | F260: √
B261: 64
B262: =B261+1 -> 65
B263: 66 | F263: √
B264: 67
B265: 68
B266: 69 | F266: √
B267: 70
B268: 71
